BodyName,ServiceAreaCategorisation,ServiceDivisionCategorisation,ExpensesType,Date,TransactionNumber,Amount,CapitalorRevenue,SupplierName,MerchantCategory
Peterborough City Council,Corporate Property,Strategic Projects,Agency Staff,02/09/2019,8000152200,16787.50,Revenue,Radicalba Ltd,External Temporary Staff
Peterborough City Council,Children's & Safeguarding,CSC Quality Assurance,Third Party Payments,03/09/2019,30223711,2197.95,Revenue,Cambs & P'boro NHS Foundation Trust,Contributions
Peterborough City Council,Commissioning and Commercial Operations,Clare Lodge,Agency Staff,03/09/2019,30233545,1264.00,Revenue,Wrixon Care Services,External Temporary Staff
Peterborough City Council,Adults,OP/PD/SI,"Tools, Equipment, Furniture & Materials",03/09/2019,30234057,1084.12,Revenue,NRS Healthcare,Occupational Therapy Equipment
Peterborough City Council,Peterborough Highway Services,Transport & Infrastructure Commissioning,Public Transport,03/09/2019,30235340,1937.89,Revenue,Stagecoach in Peterborough,Public Transport
Peterborough City Council,Corporate Property,Office Accomodation,Cleaning & Domestic Supplies,03/09/2019,30236241,1643.28,Revenue,YMCA Cambridge & Peterborough Ltd,Cleaning
Peterborough City Council,Legal Services,Legal Services,Agency Staff,03/09/2019,30237398,1430.00,Revenue,Spinks Notary,External Temporary Staff
Peterborough City Council,Commissioning and Commercial Operations,Access to Resources & Specialist Commissioning,Services,03/09/2019,30239548,1358.00,Revenue,Compass Fostering Central Limited,Boarding Out Fees
Peterborough City Council,Commissioning and Commercial Operations,Access to Resources & Specialist Commissioning,Services,03/09/2019,30239549,1392.82,Revenue,Compass Fostering Central Limited,Boarding Out Fees
Peterborough City Council,Communities,Cultural Services,Services,03/09/2019,30239973,1050.00,Revenue,Peterborough Centre for Young Musicians,Hired Services
Peterborough City Council,Commissioning and Commercial Operations,Access to Resources & Specialist Commissioning,Services,03/09/2019,30240292,10722.86,Revenue,The Cambridge Housing Society Limited,Boarding Out Fees
Peterborough City Council,Development and Construction,Development Management,Customer and client receipts - Fees & Charges,03/09/2019,30240608,2310.00,Revenue,Planning Portal,Refunds
Peterborough City Council,Communities,Housing,Services,03/09/2019,30240688,12963.18,Revenue,Eastfield Guesthouse,Temporary Accommodation Costs
Peterborough City Council,Financial Services,Insurance,Services,03/09/2019,30240810,552.00,Revenue,Weightmans LLP,Legal Costs
Peterborough City Council,Children's & Safeguarding,Adult & Children Safeguarding Board,Services,03/09/2019,30240875,2875.00,Revenue,RJW Associates Ltd,Consultants Fees
Peterborough City Council,Communities,Housing,Services,03/09/2019,30240947,2975.00,Revenue,Singh and Sons Property Management Ltd,Temporary Accommodation Costs
Peterborough City Council,Corporate,Corporate,Non Revenue,03/09/2019,30241141,2112.00,Capital,Rider Levett Bucknall UK Ltd,Consultants Fees
Peterborough City Council,Peterborough Highway Services,Transport & Infrastructure Commissioning,Energy Costs,03/09/2019,30241152,962.42,Revenue,British Gas Business,Electricity
Peterborough City Council,Corporate Property,Commercial Propety,Services,03/09/2019,30241473,1500.00,Revenue,Eddisons Commercial Ltd t/a Barker Storey Matthews,Valuations
Peterborough City Council,Communities,Cohesion,Services,03/09/2019,30241478,14700.00,Revenue,Solutions 4 Health Ltd,Hired Services
Peterborough City Council,Development and Construction,Building Control,Agency Staff,03/09/2019,30241555,1075.05,Revenue,Reed Specialist Recruitment Limited,External Temporary Staff
Peterborough City Council,Adults,Independent Sector Placements,Services,03/09/2019,30241808,1587.12,Revenue,Cross Keys Homes,Home Care
Peterborough City Council,Development and Construction,Building Control,Agency Staff,03/09/2019,30241828,2230.38,Revenue,Reed Specialist Recruitment Limited,External Temporary Staff
Peterborough City Council,Peterborough Highway Services,Highway Services - HoS,Agency Staff,03/09/2019,30241830,853.36,Revenue,Reed Specialist Recruitment Limited,External Temporary Staff
Peterborough City Council,Children's & Safeguarding,Early Help ASC/CSC,Agency Staff,03/09/2019,30241841,569.83,Revenue,Reed Specialist Recruitment Limited,External Temporary Staff
Peterborough City Council,Children's & Safeguarding,Children's Social Care,Agency Staff,03/09/2019,30241999,2913.75,Revenue,Service Care Solutions Ltd,External Temporary Staff
Peterborough City Council,Adults,Independent Sector Placements,Services,03/09/2019,30242116,2550.24,Revenue,Hales Group Ltd,Home Care
Peterborough City Council,Adults,Independent Sector Placements,Services,03/09/2019,30242118,1577.85,Revenue,Hales Group Ltd,Home Care
Peterborough City Council,Adults,Independent Sector Placements,Services,03/09/2019,30242122,2550.24,Revenue,Hales Group Ltd,Home Care
Peterborough City Council,Adults,Independent Sector Placements,Services,03/09/2019,30242125,1565.40,Revenue,Hales Group Ltd,Home Care
Peterborough City Council,Adults,Independent Sector Placements,Services,03/09/2019,30242126,2550.24,Revenue,Hales Group Ltd,Home Care
Peterborough City Council,Commissioning and Commercial Operations,Commissioning Team,Agency Staff,03/09/2019,30242165,616.96,Revenue,Reed Specialist Recruitment Limited,External Temporary Staff
Peterborough City Council,Public Health,DPH Office,Agency Staff,03/09/2019,30242167,653.06,Revenue,Reed Specialist Recruitment Limited,External Temporary Staff
Peterborough City Council,Communities,Cultural Services,Energy Costs,03/09/2019,30242188,974.98,Revenue,Corona Energy Retail 4 Limited,Gas
Peterborough City Council,Communities,Cultural Services,Energy Costs,03/09/2019,30242195,1312.20,Revenue,Corona Energy Retail 4 Limited,Gas
Peterborough City Council,"Waste, Cleansing and Open Spaces",Waste & Operational Svs Mgmt,Energy Costs,03/09/2019,30242195,610.88,Revenue,Corona Energy Retail 4 Limited,Gas
Peterborough City Council,Education,PFI,Energy Costs,03/09/2019,30242195,713.01,Revenue,Corona Energy Retail 4 Limited,Gas
Peterborough City Council,Education,PFI,Energy Costs,03/09/2019,30242195,848.48,Revenue,Corona Energy Retail 4 Limited,Gas
Peterborough City Council,Education,PFI,Energy Costs,03/09/2019,30242195,1755.16,Revenue,Corona Energy Retail 4 Limited,Gas
Peterborough City Council,Legal Services,Legal Services,Agency Staff,03/09/2019,30242225,2025.38,Revenue,Reed Specialist Recruitment Limited,External Temporary Staff
Peterborough City Council,Legal Services,Legal Services,Agency Staff,03/09/2019,30242232,1173.21,Revenue,Reed Specialist Recruitment Limited,External Temporary Staff
Peterborough City Council,Adults,Independent Sector Placements,Services,03/09/2019,30242240,854.00,Revenue,Caring Crew Ltd,Home Care
Peterborough City Council,Adults,Independent Sector Placements,Services,03/09/2019,30242241,854.00,Revenue,Caring Crew Ltd,Home Care
Peterborough City Council,Adults,Independent Sector Placements,Services,03/09/2019,30242242,1387.75,Revenue,Caring Crew Ltd,Home Care
Peterborough City Council,Adults,Independent Sector Placements,Services,03/09/2019,30242243,792.75,Revenue,Caring Crew Ltd,Home Care
Peterborough City Council,Adults,Independent Sector Placements,Services,03/09/2019,30242244,537.82,Revenue,Caring Crew Ltd,Home Care
Peterborough City Council,Adults,Independent Sector Placements,Services,03/09/2019,30242245,1211.36,Revenue,Caring Crew Ltd,Home Care
Peterborough City Council,Adults,Independent Sector Placements,Services,03/09/2019,30242247,2143.90,Revenue,Caring Crew Ltd,Home Care
Peterborough City Council,Adults,Independent Sector Placements,Services,03/09/2019,30242251,2456.78,Revenue,Caring Crew Ltd,Home Care
Peterborough City Council,Adults,Independent Sector Placements,Services,03/09/2019,30242252,6834.96,Revenue,Alysia Caring Ltd T/a Cherry Blossom care Home,Residential Care
Peterborough City Council,Adults,Independent Sector Placements,Services,03/09/2019,30242253,599.57,Revenue,Alysia Caring Ltd T/a Cherry Blossom care Home,Residential Care
Peterborough City Council,Adults,Independent Sector Placements,Services,03/09/2019,30242254,2758.03,Revenue,Alysia Caring Ltd T/a Cherry Blossom care Home,Residential Care
Peterborough City Council,Adults,Independent Sector Placements,Services,03/09/2019,30242255,-3046.39,Revenue,Alysia Caring Ltd T/a Cherry Blossom care Home,Residential Care
Peterborough City Council,Adults,Independent Sector Placements,Services,03/09/2019,30242256,-6726.47,Revenue,Alysia Caring Ltd T/a Cherry Blossom care Home,Residential Care
Peterborough City Council,Peterborough Highway Services,Highway & Drainage Control,Agency Staff,03/09/2019,30242258,1528.06,Revenue,Reed Specialist Recruitment Limited,External Temporary Staff
Peterborough City Council,Financial Services,Finance,Agency Staff,03/09/2019,30242259,1788.86,Revenue,Reed Specialist Recruitment Limited,External Temporary Staff
Peterborough City Council,Peterborough Highway Services,Network and Traffic Management,Agency Staff,03/09/2019,30242293,1351.60,Revenue,Reed Specialist Recruitment Limited,External Temporary Staff
Peterborough City Council,Peterborough Highway Services,Network and Traffic Management,Agency Staff,03/09/2019,30242297,1351.60,Revenue,Reed Specialist Recruitment Limited,External Temporary Staff
Peterborough City Council,Education,School Standards & Effectiveness,Services,03/09/2019,30242313,835.00,Revenue,Maplefields Academy,Grant Payment
Peterborough City Council,Corporate,Corporate,Non Revenue,03/09/2019,30242337,1160.00,Capital,Smooth Removals,Building And Site Works
Peterborough City Council,Corporate,Corporate,Non Revenue,03/09/2019,30242338,705.00,Capital,Smooth Removals,Building And Site Works
Peterborough City Council,Public Health,DPH Office,Agency Staff,03/09/2019,30242361,653.06,Revenue,Reed Specialist Recruitment Limited,External Temporary Staff
Peterborough City Council,Corporate Property,Commercial Propety,Agency Staff,03/09/2019,30242403,2175.79,Revenue,Reed Specialist Recruitment Limited,External Temporary Staff
Peterborough City Council,Adults,Independent Sector Placements,Services,03/09/2019,8000149176,503.70,Revenue,Merit Home Care Ltd,Home Care
Peterborough City Council,Adults,Independent Sector Placements,Services,03/09/2019,8000149178,2007.50,Revenue,Merit Home Care Ltd,Home Care
Peterborough City Council,Adults,Independent Sector Placements,Services,03/09/2019,8000149180,1430.80,Revenue,Merit Home Care Ltd,Home Care
Peterborough City Council,Adults,Independent Sector Placements,Services,03/09/2019,8000149184,594.95,Revenue,Merit Home Care Ltd,Home Care
Peterborough City Council,Adults,Independent Sector Placements,Services,03/09/2019,8000149185,1022.00,Revenue,Merit Home Care Ltd,Home Care
Peterborough City Council,Adults,Independent Sector Placements,Services,03/09/2019,8000149186,919.80,Revenue,Merit Home Care Ltd,Home Care
Peterborough City Council,Adults,Independent Sector Placements,Services,03/09/2019,8000149190,603.47,Revenue,Merit Home Care Ltd,Home Care
Peterborough City Council,Adults,Independent Sector Placements,Services,03/09/2019,8000149191,1014.70,Revenue,Merit Home Care Ltd,Home Care
Peterborough City Council,Adults,Independent Sector Placements,Services,03/09/2019,8000149196,1503.63,Revenue,Merit Home Care Ltd,Home Care
Peterborough City Council,Adults,Independent Sector Placements,Services,03/09/2019,8000149197,707.63,Revenue,Merit Home Care Ltd,Home Care
Peterborough City Council,Adults,Independent Sector Placements,Services,03/09/2019,8000149198,776.58,Revenue,Merit Home Care Ltd,Home Care
Peterborough City Council,Adults,Independent Sector Placements,Services,03/09/2019,8000149199,535.64,Revenue,Merit Home Care Ltd,Home Care
Peterborough City Council,Adults,Independent Sector Placements,Services,03/09/2019,8000149211,3427.76,Revenue,Merit Home Care Ltd,Home Care
Peterborough City Council,Adults,Independent Sector Placements,Services,03/09/2019,8000149324,612.77,Revenue,Cross Keys Homes,Home Care
Peterborough City Council,Adults,Independent Sector Placements,Services,03/09/2019,8000149328,635.50,Revenue,Cross Keys Homes,Home Care
Peterborough City Council,Adults,Independent Sector Placements,Services,03/09/2019,8000149330,1118.33,Revenue,Cross Keys Homes,Home Care
Peterborough City Council,Adults,Independent Sector Placements,Services,03/09/2019,8000149331,641.33,Revenue,Cross Keys Homes,Home Care
Peterborough City Council,Adults,Independent Sector Placements,Services,03/09/2019,8000149333,2554.50,Revenue,Cross Keys Homes,Home Care
Peterborough City Council,Adults,Independent Sector Placements,Services,03/09/2019,8000149337,2941.74,Revenue,Cross Keys Homes,Home Care
Peterborough City Council,Adults,Independent Sector Placements,Services,03/09/2019,8000149338,540.50,Revenue,Cross Keys Homes,Home Care
Peterborough City Council,Adults,Independent Sector Placements,Services,03/09/2019,8000149339,701.76,Revenue,Cross Keys Homes,Home Care
Peterborough City Council,Adults,Independent Sector Placements,Services,03/09/2019,8000149341,868.28,Revenue,Cross Keys Homes,Home Care
Peterborough City Council,Adults,Independent Sector Placements,Services,03/09/2019,8000149344,919.50,Revenue,Cross Keys Homes,Home Care
Peterborough City Council,Adults,Independent Sector Placements,Services,03/09/2019,8000149352,840.40,Revenue,Cross Keys Homes,Home Care
Peterborough City Council,Adults,Independent Sector Placements,Services,03/09/2019,8000149353,1010.50,Revenue,Cross Keys Homes,Home Care
Peterborough City Council,Adults,Independent Sector Placements,Services,03/09/2019,8000149355,1318.09,Revenue,Cross Keys Homes,Home Care
Peterborough City Council,Adults,Independent Sector Placements,Services,03/09/2019,8000149357,741.54,Revenue,Cross Keys Homes,Home Care
Peterborough City Council,Adults,Independent Sector Placements,Services,03/09/2019,8000149359,847.88,Revenue,Cross Keys Homes,Home Care
Peterborough City Council,Adults,Independent Sector Placements,Services,03/09/2019,8000149360,1054.94,Revenue,Cross Keys Homes,Home Care
Peterborough City Council,Adults,Independent Sector Placements,Services,03/09/2019,8000149361,888.50,Revenue,Cross Keys Homes,Home Care
Peterborough City Council,Adults,Independent Sector Placements,Services,03/09/2019,8000149362,684.00,Revenue,Cross Keys Homes,Home Care
Peterborough City Council,Adults,Independent Sector Placements,Services,03/09/2019,8000149363,597.72,Revenue,Cross Keys Homes,Home Care
Peterborough City Council,Adults,Independent Sector Placements,Services,03/09/2019,8000149424,1121.25,Revenue,Cross Keys Homes,Home Care
Peterborough City Council,Adults,Independent Sector Placements,Services,03/09/2019,8000149425,1155.00,Revenue,Cross Keys Homes,Home Care
Peterborough City Council,Adults,Independent Sector Placements,Services,03/09/2019,8000149426,1449.94,Revenue,Merit Home Care Ltd,Home Care
Peterborough City Council,Adults,Independent Sector Placements,Services,03/09/2019,8000149428,1117.38,Revenue,Merit Home Care Ltd,Home Care
Peterborough City Council,Adults,Independent Sector Placements,Services,03/09/2019,8000149430,642.60,Revenue,Merit Home Care Ltd,Home Care
Peterborough City Council,Adults,Independent Sector Placements,Services,03/09/2019,8000149438,948.78,Revenue,Merit Home Care Ltd,Home Care
Peterborough City Council,Adults,Independent Sector Placements,Services,03/09/2019,8000149443,1010.08,Revenue,Merit Home Care Ltd,Home Care
Peterborough City Council,Adults,Independent Sector Placements,Services,03/09/2019,8000149559,540.75,Revenue,Cross Keys Homes,Home Care
Peterborough City Council,Adults,Independent Sector Placements,Services,03/09/2019,8000149782,2937.60,Revenue,Cross Keys Homes,Home Care
Peterborough City Council,Adults,Independent Sector Placements,Services,03/09/2019,8000149784,557.25,Revenue,Cross Keys Homes,Home Care
Peterborough City Council,Adults,Independent Sector Placements,Services,03/09/2019,8000149785,705.58,Revenue,Cross Keys Homes,Home Care
Peterborough City Council,Adults,Independent Sector Placements,Services,03/09/2019,8000149817,924.41,Revenue,Hales Group Ltd,Home Care
Peterborough City Council,Adults,Independent Sector Placements,Services,03/09/2019,8000149821,2017.35,Revenue,Hales Group Ltd,Home Care
Peterborough City Council,Adults,Independent Sector Placements,Services,03/09/2019,8000149822,3502.50,Revenue,Hales Group Ltd,Home Care
Peterborough City Council,Adults,Independent Sector Placements,Services,03/09/2019,8000149824,1875.00,Revenue,Hales Group Ltd,Home Care
Peterborough City Council,Adults,Independent Sector Placements,Services,03/09/2019,8000149825,802.37,Revenue,Hales Group Ltd,Home Care
Peterborough City Council,Adults,Independent Sector Placements,Services,03/09/2019,8000149832,669.78,Revenue,Hales Group Ltd,Home Care
Peterborough City Council,Adults,Independent Sector Placements,Services,03/09/2019,8000149837,1580.44,Revenue,Hales Group Ltd,Home Care
Peterborough City Council,Adults,Independent Sector Placements,Services,03/09/2019,8000149839,3127.50,Revenue,Hales Group Ltd,Home Care
Peterborough City Council,Adults,Independent Sector Placements,Services,03/09/2019,8000149840,630.00,Revenue,Hales Group Ltd,Home Care
Peterborough City Council,Adults,Independent Sector Placements,Services,03/09/2019,8000149841,1369.77,Revenue,Hales Group Ltd,Home Care
Peterborough City Council,Adults,Independent Sector Placements,Services,03/09/2019,8000149842,750.00,Revenue,Hales Group Ltd,Home Care
Peterborough City Council,Adults,Independent Sector Placements,Services,03/09/2019,8000149843,950.02,Revenue,Hales Group Ltd,Home Care
Peterborough City Council,Adults,Independent Sector Placements,Services,03/09/2019,8000149844,728.56,Revenue,Hales Group Ltd,Home Care
Peterborough City Council,Adults,Independent Sector Placements,Services,03/09/2019,8000149845,843.82,Revenue,Hales Group Ltd,Home Care
Peterborough City Council,Adults,Independent Sector Placements,Services,03/09/2019,8000149850,1050.00,Revenue,Hales Group Ltd,Home Care
Peterborough City Council,Adults,Independent Sector Placements,Services,03/09/2019,8000149852,1177.63,Revenue,Hales Group Ltd,Home Care
Peterborough City Council,Adults,Independent Sector Placements,Services,03/09/2019,8000149853,1350.00,Revenue,Hales Group Ltd,Home Care
Peterborough City Council,Adults,Independent Sector Placements,Services,03/09/2019,8000149854,779.72,Revenue,Hales Group Ltd,Home Care
Peterborough City Council,Adults,Independent Sector Placements,Services,03/09/2019,8000149855,1666.97,Revenue,Hales Group Ltd,Home Care
Peterborough City Council,Adults,Independent Sector Placements,Services,03/09/2019,8000149856,569.92,Revenue,Hales Group Ltd,Home Care
Peterborough City Council,Adults,Independent Sector Placements,Services,03/09/2019,8000149857,526.06,Revenue,Hales Group Ltd,Home Care
Peterborough City Council,Adults,Independent Sector Placements,Services,03/09/2019,8000149858,615.00,Revenue,Hales Group Ltd,Home Care
Peterborough City Council,Adults,Independent Sector Placements,Services,03/09/2019,8000150592,1105.27,Revenue,MEARS GROUP,Home Care
Peterborough City Council,Adults,Independent Sector Placements,Services,03/09/2019,8000150593,622.25,Revenue,MEARS GROUP,Home Care
Peterborough City Council,Adults,Independent Sector Placements,Services,03/09/2019,8000150594,599.45,Revenue,MEARS GROUP,Home Care
Peterborough City Council,Adults,Independent Sector Placements,Services,03/09/2019,8000150595,1486.70,Revenue,MEARS GROUP,Home Care
Peterborough City Council,Adults,Independent Sector Placements,Services,03/09/2019,8000150597,1264.39,Revenue,MEARS GROUP,Home Care
Peterborough City Council,Adults,Independent Sector Placements,Services,03/09/2019,8000150601,1094.56,Revenue,MEARS GROUP,Home Care
Peterborough City Council,Adults,Independent Sector Placements,Services,03/09/2019,8000150602,969.10,Revenue,MEARS GROUP,Home Care
Peterborough City Council,Adults,Independent Sector Placements,Services,03/09/2019,8000150610,666.77,Revenue,MEARS GROUP,Home Care
Peterborough City Council,Adults,Independent Sector Placements,Services,03/09/2019,8000150613,1388.97,Revenue,MEARS GROUP,Home Care
Peterborough City Council,Adults,Independent Sector Placements,Services,03/09/2019,8000150617,752.61,Revenue,MEARS GROUP,Home Care
Peterborough City Council,Adults,Independent Sector Placements,Services,03/09/2019,8000150713,503.00,Revenue,Atlas Care Services Ltd,Home Care
Peterborough City Council,Adults,Independent Sector Placements,Services,03/09/2019,8000150714,1107.98,Revenue,Atlas Care Services Ltd,Home Care
Peterborough City Council,Adults,Independent Sector Placements,Services,03/09/2019,8000150715,1798.99,Revenue,Allied Health Services Ltd T/A Allied Healthcare,Home Care
Peterborough City Council,Adults,Independent Sector Placements,Services,03/09/2019,8000150717,2332.50,Revenue,Hales Group Ltd,Home Care
Peterborough City Council,Adults,Independent Sector Placements,Services,03/09/2019,8000150719,772.50,Revenue,Hales Group Ltd,Home Care
Peterborough City Council,Adults,Independent Sector Placements,Services,03/09/2019,8000150720,621.88,Revenue,Hales Group Ltd,Home Care
Peterborough City Council,Adults,Independent Sector Placements,Services,03/09/2019,8000150721,877.50,Revenue,Hales Group Ltd,Home Care
Peterborough City Council,Adults,Independent Sector Placements,Services,03/09/2019,8000150722,697.50,Revenue,Hales Group Ltd,Home Care
Peterborough City Council,Adults,Independent Sector Placements,Services,03/09/2019,8000150724,522.55,Revenue,Hales Group Ltd,Home Care
Peterborough City Council,Adults,Independent Sector Placements,Services,03/09/2019,8000150725,1275.00,Revenue,Hales Group Ltd,Home Care
Peterborough City Council,Adults,Independent Sector Placements,Services,03/09/2019,8000150737,591.30,Revenue,Merit Home Care Ltd,Home Care
Peterborough City Council,Adults,Independent Sector Placements,Services,03/09/2019,8000150738,927.10,Revenue,Merit Home Care Ltd,Home Care
Peterborough City Council,Adults,Independent Sector Placements,Services,03/09/2019,8000150739,1958.88,Revenue,Merit Home Care Ltd,Home Care
Peterborough City Council,Adults,Independent Sector Placements,Services,03/09/2019,8000150742,677.48,Revenue,Merit Home Care Ltd,Home Care
Peterborough City Council,Adults,Independent Sector Placements,Services,03/09/2019,8000150744,540.00,Revenue,PRESTIGE NURSING LIMITED,Home Care
Peterborough City Council,Adults,Independent Sector Placements,Services,03/09/2019,8000150745,3108.00,Revenue,PRESTIGE NURSING LIMITED,Home Care
Peterborough City Council,Adults,Independent Sector Placements,Services,03/09/2019,8000150746,540.00,Revenue,PRESTIGE NURSING LIMITED,Home Care
Peterborough City Council,Adults,Independent Sector Placements,Services,03/09/2019,8000150747,12432.00,Revenue,PRESTIGE NURSING LIMITED,Home Care
Peterborough City Council,Adults,Independent Sector Placements,Services,03/09/2019,8000150748,8064.00,Revenue,PRESTIGE NURSING LIMITED,Home Care
Peterborough City Council,Communities,Housing,Services,03/09/2019,8000152200,9500.00,Revenue,G T Stewart Solicitors and Advocates,Legal Costs
Peterborough City Council,Commissioning and Commercial Operations,Clare Lodge,Agency Staff,04/09/2019,30238838,650.00,Revenue,Reed Specialist Recruitment Limited,Supply Teachers
Peterborough City Council,Public Health,PH Commissioning,Third Party Payments,04/09/2019,30239963,389175.00,Revenue,Cambridgeshire Community Services,Third Party Payments - Contract
Peterborough City Council,Communities,Cohesion,Repair & Maintenance of Buildings,04/09/2019,30239980,2659.00,Revenue,Bee Lettings Ltd,Premises Repairs
Peterborough City Council,Legal Services,Legal Services,Services,04/09/2019,30240284,780.00,Revenue,"Walji, Miss Shabnam",Legal Costs
Peterborough City Council,Adults,Independent Sector Placements,Services,04/09/2019,30240480,872.08,Revenue,Sahara Community Care Services Limited,Home Care
Peterborough City Council,Adults,Independent Sector Placements,Services,04/09/2019,30240481,1667.70,Revenue,Sahara Community Care Services Limited,Home Care
Peterborough City Council,Adults,Independent Sector Placements,Services,04/09/2019,30240482,1713.60,Revenue,Sahara Community Care Services Limited,Home Care
Peterborough City Council,Adults,Independent Sector Placements,Services,04/09/2019,30240485,1254.60,Revenue,Sahara Community Care Services Limited,Home Care
Peterborough City Council,Adults,Independent Sector Placements,Services,04/09/2019,30240486,956.24,Revenue,Sahara Community Care Services Limited,Home Care
Peterborough City Council,Adults,Independent Sector Placements,Services,04/09/2019,30240487,556.91,Revenue,Sahara Community Care Services Limited,Home Care
Peterborough City Council,Adults,Independent Sector Placements,Services,04/09/2019,30240490,1111.29,Revenue,Sahara Community Care Services Limited,Home Care
Peterborough City Council,Adults,Independent Sector Placements,Services,04/09/2019,30240491,501.08,Revenue,Sahara Community Care Services Limited,Home Care
Peterborough City Council,Adults,Independent Sector Placements,Services,04/09/2019,30240492,848.88,Revenue,Sahara Community Care Services Limited,Home Care
Peterborough City Council,Adults,Independent Sector Placements,Services,04/09/2019,30240494,532.00,Revenue,Sahara Community Care Services Limited,Home Care
Peterborough City Council,Adults,Independent Sector Placements,Services,04/09/2019,30240573,1078.00,Revenue,Sahara Community Care Services Limited,Home Care
Peterborough City Council,Adults,Independent Sector Placements,Services,04/09/2019,30240575,2744.00,Revenue,Sahara Community Care Services Limited,Home Care
Peterborough City Council,Adults,Independent Sector Placements,Services,04/09/2019,30240578,837.69,Revenue,Sahara Community Care Services Limited,Home Care
Peterborough City Council,Adults,Independent Sector Placements,Services,04/09/2019,30240582,2352.00,Revenue,Sahara Community Care Services Limited,Home Care
Peterborough City Council,Adults,Independent Sector Placements,Services,04/09/2019,30240583,896.00,Revenue,Sahara Community Care Services Limited,Home Care
Peterborough City Council,Adults,Block Contracts,Third Party Payments,04/09/2019,30240702,60548.12,Revenue,HEREWARD CARE SERVICES LIMITED,Third Party Payments - Contract
Peterborough City Council,Marketing & Communications,Marketing & Communications,Services,04/09/2019,30240837,4800.00,Revenue,Cambridgeshire County Council,Computer Software
Peterborough City Council,Programme Management Office,Programme Management Office,Services,04/09/2019,30240840,16291.00,Revenue,Cambridgeshire County Council,Hired Services
Peterborough City Council,Programme Management Office,Programme Management Office,Services,04/09/2019,30240841,16291.00,Revenue,Cambridgeshire County Council,Hired Services
Peterborough City Council,Programme Management Office,Programme Management Office,Services,04/09/2019,30240842,22205.00,Revenue,Cambridgeshire County Council,Hired Services
Peterborough City Council,Programme Management Office,Programme Management Office,Services,04/09/2019,30240843,20318.00,Revenue,Cambridgeshire County Council,Hired Services
Peterborough City Council,Programme Management Office,Programme Management Office,Services,04/09/2019,30240844,18607.00,Revenue,Cambridgeshire County Council,Hired Services
Peterborough City Council,HR,HR WFD & Training,Services,04/09/2019,30240845,500.00,Revenue,Cambridgeshire County Council,Training
Peterborough City Council,HR,HR WFD & Training,Services,04/09/2019,30240849,500.00,Revenue,Cambridgeshire County Council,Training
Peterborough City Council,Adults,OP/PD/SI,"Tools, Equipment, Furniture & Materials",04/09/2019,30240850,25758.17,Revenue,Cambridgeshire County Council,Occupational Therapy Equipment
Peterborough City Council,Energy,Environment Capital,Services,04/09/2019,30240860,4666.50,Revenue,"Department of Business, Energy & Ind  Strategy",Taxes
Peterborough City Council,Corporate Property,Office Accomodation,Repair & Maintenance of Buildings,04/09/2019,30240976,102801.84,Revenue,Bowmer & Kirkland Limited,Property Maintenance
Peterborough City Council,Adults,Independent Sector Placements,Services,04/09/2019,30241075,1608.76,Revenue,ABBEYGATE REST HOME,Residential Care
Peterborough City Council,Adults,Independent Sector Placements,Services,04/09/2019,30241100,2519.85,Revenue,Alysia Caring Ltd T/a Cherry Blossom care Home,Residential Care
Peterborough City Council,Adults,Independent Sector Placements,Services,04/09/2019,30241165,3007.36,Revenue,Alysia Caring Ltd T/a Cherry Blossom care Home,Residential Care
Peterborough City Council,Adults,Independent Sector Placements,Services,04/09/2019,30241166,802.40,Revenue,Alysia Caring Ltd T/a Cherry Blossom care Home,Residential Care
Peterborough City Council,Adults,Independent Sector Placements,Services,04/09/2019,30241167,2175.40,Revenue,Alysia Caring Ltd T/a Cherry Blossom care Home,Residential Care
Peterborough City Council,Adults,Independent Sector Placements,Services,04/09/2019,30241169,1714.80,Revenue,Alysia Caring Ltd T/a Cherry Blossom care Home,Residential Care
Peterborough City Council,Commissioning and Commercial Operations,Clare Lodge,Agency Staff,04/09/2019,30241180,2182.75,Revenue,Service Care Solutions Ltd,External Temporary Staff
Peterborough City Council,Adults,Independent Sector Placements,Services,04/09/2019,30241197,2366.36,Revenue,Alysia Caring Ltd T/a Cherry Blossom care Home,Residential Care
Peterborough City Council,Adults,Independent Sector Placements,Services,04/09/2019,30241198,1116.32,Revenue,Alysia Caring Ltd T/a Cherry Blossom care Home,Residential Care
Peterborough City Council,Adults,Independent Sector Placements,Services,04/09/2019,30241202,2087.40,Revenue,Alysia Caring Ltd T/a Cherry Blossom care Home,Residential Care
Peterborough City Council,Adults,Independent Sector Placements,Services,04/09/2019,30241205,2909.84,Revenue,Alysia Caring Ltd T/a Cherry Blossom care Home,Residential Care
Peterborough City Council,Adults,Independent Sector Placements,Services,04/09/2019,30241206,1865.92,Revenue,Alysia Caring Ltd T/a Cherry Blossom care Home,Residential Care
Peterborough City Council,Adults,Independent Sector Placements,Services,04/09/2019,30241208,1847.20,Revenue,Alysia Caring Ltd T/a Cherry Blossom care Home,Residential Care
Peterborough City Council,Adults,Independent Sector Placements,Services,04/09/2019,30241210,3875.00,Revenue,Alysia Caring Ltd T/a Cherry Blossom care Home,Residential Care
Peterborough City Council,Adults,Independent Sector Placements,Services,04/09/2019,30241215,2384.24,Revenue,Alysia Caring Ltd T/a Cherry Blossom care Home,Residential Care
Peterborough City Council,Adults,Independent Sector Placements,Services,04/09/2019,30241221,1810.40,Revenue,Alysia Caring Ltd T/a Cherry Blossom care Home,Residential Care
Peterborough City Council,Adults,Independent Sector Placements,Services,04/09/2019,30241230,1830.60,Revenue,Alysia Caring Ltd T/a Cherry Blossom care Home,Residential Care
Peterborough City Council,Adults,Independent Sector Placements,Services,04/09/2019,30241232,575.04,Revenue,Alysia Caring Ltd T/a Cherry Blossom care Home,Residential Care
Peterborough City Council,Communities,Housing,Rents,04/09/2019,30241236,3658.20,Revenue,Cross Keys Homes,Rent
Peterborough City Council,Communities,Housing,Rents,04/09/2019,30241238,3658.20,Revenue,Cross Keys Homes,Rent
Peterborough City Council,Communities,Housing,Rents,04/09/2019,30241239,3626.85,Revenue,Cross Keys Homes,Rent
Peterborough City Council,Adults,Independent Sector Placements,Services,04/09/2019,30241240,1175.96,Revenue,Alysia Caring Ltd T/a Cherry Blossom care Home,Residential Care
Peterborough City Council,Corporate Property,Office Accomodation,Services,04/09/2019,30241335,22000.00,Revenue,Faithful and Gould,Professional Services
Peterborough City Council,ICT,ICT,Services,04/09/2019,30241340,8075.56,Revenue,Capita Business Services Ltd,Computer Software
Peterborough City Council,Legal Services,Legal Services,Agency Staff,04/09/2019,30241360,517.20,Revenue,Venn Group Ltd,External Temporary Staff
Peterborough City Council,Legal Services,Legal Services,Agency Staff,04/09/2019,30241361,1734.00,Revenue,Venn Group Ltd,External Temporary Staff
Peterborough City Council,Legal Services,Legal Services,Agency Staff,04/09/2019,30241362,2062.50,Revenue,Venn Group Ltd,External Temporary Staff
Peterborough City Council,Legal Services,Legal Services,Agency Staff,04/09/2019,30241363,618.95,Revenue,Venn Group Ltd,External Temporary Staff
Peterborough City Council,Legal Services,Legal Services,Agency Staff,04/09/2019,30241364,617.78,Revenue,Venn Group Ltd,External Temporary Staff
Peterborough City Council,Legal Services,Legal Services,Agency Staff,04/09/2019,30241365,1997.67,Revenue,Venn Group Ltd,External Temporary Staff
Peterborough City Council,Adults,Independent Sector Placements,Services,04/09/2019,30241384,1055.71,Revenue,Sahara Community Care Services Limited,Home Care
Peterborough City Council,Adults,Independent Sector Placements,Services,04/09/2019,30241385,761.17,Revenue,Sahara Community Care Services Limited,Home Care
Peterborough City Council,Adults,Independent Sector Placements,Services,04/09/2019,30241386,1027.91,Revenue,Sahara Community Care Services Limited,Home Care
Peterborough City Council,Adults,Independent Sector Placements,Services,04/09/2019,30241388,1621.28,Revenue,Sahara Community Care Services Limited,Home Care
Peterborough City Council,Financial Services,Finance,Agency Staff,04/09/2019,30241475,2976.15,Revenue,Allen Lane,External Temporary Staff
Peterborough City Council,Westcombe Engineering,Westcombe Engineering,"Tools, Equipment, Furniture & Materials",04/09/2019,30241497,1703.95,Revenue,Barron Clark Castings Ltd,Materials
Peterborough City Council,Corporate,Corporate,Non Revenue,04/09/2019,30241498,4352.00,Capital,Eastern Shires Purchasing Organisation,Furniture And Equipment Purchase
Peterborough City Council,Corporate,Corporate,Non Revenue,04/09/2019,30241500,1350.00,Capital,Eastern Shires Purchasing Organisation,Furniture And Equipment Purchase
Peterborough City Council,Corporate,Corporate,Non Revenue,04/09/2019,30241502,4630.87,Capital,Eastern Shires Purchasing Organisation,Furniture And Equipment Purchase
Peterborough City Council,Peterborough Highway Services,Network and Traffic Management,Services,04/09/2019,30241536,517.27,Revenue,JPIMedia Publishing Ltd,Advertising
Peterborough City Council,Westcombe Engineering,Westcombe Engineering,"Tools, Equipment, Furniture & Materials",04/09/2019,30241619,759.25,Revenue,Peterborough Plating Ltd,Materials
Peterborough City Council,Westcombe Engineering,Westcombe Engineering,"Tools, Equipment, Furniture & Materials",04/09/2019,30241623,660.00,Revenue,Perkins Engines Co Ltd,Materials
Peterborough City Council,Commissioning and Commercial Operations,Access to Resources & Specialist Commissioning,Services,04/09/2019,30241624,564.30,Revenue,Fostering Solutions Limited,Boarding Out Fees
Peterborough City Council,Legal Services,Legal Services,Interview & Training Expenses,04/09/2019,30241625,645.00,Revenue,LLG Legal Training,Training
Peterborough City Council,Adults,Finance,Services,04/09/2019,30241631,1155.00,Revenue,No5 Barrister Chambers Ltd,Legal Costs
Peterborough City Council,Corporate Property,Commercial Propety,Services,04/09/2019,30241683,750.00,Revenue,Eddisons Commercial Ltd t/a Barker Storey Matthews,Professional Services
Peterborough City Council,Peterborough Highway Services,Transport & Infrastructure Commissioning,Public Transport,04/09/2019,30241698,5972.94,Revenue,Stagecoach in Peterborough,Public Transport
Peterborough City Council,Commissioning and Commercial Operations,Access to Resources & Specialist Commissioning,Services,04/09/2019,30241702,3113.70,Revenue,National Fostering Agency Ltd,Boarding Out Fees
Peterborough City Council,Commissioning and Commercial Operations,Access to Resources & Specialist Commissioning,Services,04/09/2019,30241704,3217.49,Revenue,National Fostering Agency Ltd,Boarding Out Fees
Peterborough City Council,Commissioning and Commercial Operations,Access to Resources & Specialist Commissioning,Services,04/09/2019,30241705,3113.70,Revenue,National Fostering Agency Ltd,Boarding Out Fees
Peterborough City Council,Commissioning and Commercial Operations,Access to Resources & Specialist Commissioning,Services,04/09/2019,30241706,3217.49,Revenue,National Fostering Agency Ltd,Boarding Out Fees
Peterborough City Council,Development and Construction,Building Control,Agency Staff,04/09/2019,30241743,3364.95,Revenue,Oyster Partnership Ltd,External Temporary Staff
Peterborough City Council,Corporate Property,Commercial Propety,Services,04/09/2019,30241773,4100.00,Revenue,Quadrant Security Group Ltd,Cctv
Peterborough City Council,Development and Construction,Planning Compliance,Agency Staff,04/09/2019,30241777,1541.70,Revenue,Park Avenue Recruitment Limited,External Temporary Staff
Peterborough City Council,Education,School Infrastructure,Services,04/09/2019,30241779,5225.00,Revenue,Servelec Education Limited,Computer Software
Peterborough City Council,Education,School Standards & Effectiveness,Services,04/09/2019,30241782,525.00,Revenue,David Hawman,ICT Services
Peterborough City Council,Communities,Housing,Services,04/09/2019,30241786,11416.00,Revenue,Cross Keys Homes,Temporary Accommodation Costs
Peterborough City Council,Communities,Housing,Services,04/09/2019,30241787,32032.00,Revenue,Cross Keys Homes,Temporary Accommodation Costs
Peterborough City Council,Communities,Housing,Services,04/09/2019,30241788,66220.00,Revenue,Cross Keys Homes,Temporary Accommodation Costs
Peterborough City Council,Communities,Housing,Services,04/09/2019,30241789,183255.80,Revenue,Cross Keys Homes,Temporary Accommodation Costs
Peterborough City Council,Legal Services,Legal Services,Services,04/09/2019,30241812,5011.85,Revenue,Child&Family Psychological Assessment Svs,Expert Witnesses
Peterborough City Council,Peterborough Highway Services,Highway Services - HoS,Agency Staff,04/09/2019,30241890,853.36,Revenue,Reed Specialist Recruitment Limited,External Temporary Staff
Peterborough City Council,Development and Construction,Development Management,Agency Staff,04/09/2019,30241892,1365.01,Revenue,Reed Specialist Recruitment Limited,External Temporary Staff
Peterborough City Council,Commissioning and Commercial Operations,Clare Lodge,Agency Staff,04/09/2019,30241895,1215.30,Revenue,Reed Specialist Recruitment Limited,External Temporary Staff
Peterborough City Council,Peterborough Highway Services,Highway Services - HoS,Agency Staff,04/09/2019,30241905,1235.80,Revenue,Reed Specialist Recruitment Limited,External Temporary Staff
Peterborough City Council,Corporate,Corporate,Non Revenue,04/09/2019,30241909,159944.74,Capital,Bowmer & Kirkland Limited,Building And Site Works
Peterborough City Council,Corporate Property,Office Accomodation,Repair & Maintenance of Buildings,04/09/2019,30241911,1698.00,Revenue,Derry Building Services Ltd,Property Maintenance
Peterborough City Council,Adults,Home Services Delivery Model,Services,04/09/2019,30241927,918.00,Revenue,Rawheat Heating & Plumbing Eng.,Contractors
Peterborough City Council,Corporate,Corporate,Non Revenue,04/09/2019,30242005,1500.00,Capital,M J Greaves,Building And Site Works
Peterborough City Council,Corporate,Corporate,Non Revenue,04/09/2019,30242012,1050.00,Capital,M J Greaves,Building And Site Works
Peterborough City Council,Corporate,Corporate,Non Revenue,04/09/2019,30242013,590.00,Capital,M J Greaves,Building And Site Works
Peterborough City Council,Corporate,Corporate,Non Revenue,04/09/2019,30242025,600.00,Capital,M J Greaves,Building And Site Works
Peterborough City Council,Corporate,Corporate,Non Revenue,04/09/2019,30242027,600.00,Capital,M J Greaves,Building And Site Works
Peterborough City Council,ICT,ICT,Services,04/09/2019,30242030,128676.00,Revenue,Arcus Global ltd,Computer Software
Peterborough City Council,Corporate,Corporate,Non Revenue,04/09/2019,30242035,3500.00,Capital,M J Greaves,Building And Site Works
Peterborough City Council,Corporate,Corporate,Non Revenue,04/09/2019,30242036,3600.00,Capital,M J Greaves,Building And Site Works
Peterborough City Council,Corporate,Corporate,Non Revenue,04/09/2019,30242039,640.00,Capital,M J Greaves,Building And Site Works
Peterborough City Council,Corporate,Corporate,Non Revenue,04/09/2019,30242040,1400.00,Capital,M J Greaves,Building And Site Works
Peterborough City Council,Corporate,Corporate,Non Revenue,04/09/2019,30242041,800.00,Capital,M J Greaves,Building And Site Works
Peterborough City Council,Corporate,Corporate,Non Revenue,04/09/2019,30242044,700.00,Capital,M J Greaves,Building And Site Works
Peterborough City Council,Corporate,Corporate,Non Revenue,04/09/2019,30242045,1700.00,Capital,M J Greaves,Building And Site Works
Peterborough City Council,Commissioning and Commercial Operations,Access to Resources & Specialist Commissioning,Services,04/09/2019,30242135,6554.02,Revenue,ALL4U Fostering Ltd,Boarding Out Fees
Peterborough City Council,Corporate,Corporate,Non Revenue,04/09/2019,30242145,532.68,Capital,Garfield Builders Ltd,Grant Payment
Peterborough City Council,Corporate,Corporate,Non Revenue,04/09/2019,30242146,7464.00,Capital,Gaswise Services Ltd,Grant Payment
Peterborough City Council,Corporate,Corporate,Non Revenue,04/09/2019,30242147,5635.29,Capital,Sovereign Property Services Ltd,Grant Payment
Peterborough City Council,Corporate,Corporate,Non Revenue,04/09/2019,30242148,761.98,Capital,Premier Mobility (UK) Limited,Grant Payment
Peterborough City Council,Corporate,Corporate,Non Revenue,04/09/2019,30242149,1238.02,Capital,Premier Mobility (UK) Limited,Grant Payment
Peterborough City Council,Corporate,Corporate,Non Revenue,04/09/2019,30242150,2833.00,Capital,Casbon Building Services,Grant Payment
Peterborough City Council,Commissioning and Commercial Operations,Access to Resources & Specialist Commissioning,Services,04/09/2019,30242157,780.01,Revenue,Swiis Foster Care Ltd,Boarding Out Fees
Peterborough City Council,Commissioning and Commercial Operations,Access to Resources & Specialist Commissioning,Services,04/09/2019,30242159,780.01,Revenue,Swiis Foster Care Ltd,Boarding Out Fees
Peterborough City Council,Commissioning and Commercial Operations,Access to Resources & Specialist Commissioning,Services,04/09/2019,30242171,3596.00,Revenue,Nexus Fostering Ltd,Boarding Out Fees
Peterborough City Council,Commissioning and Commercial Operations,Access to Resources & Specialist Commissioning,Services,04/09/2019,30242172,3596.00,Revenue,Nexus Fostering Ltd,Boarding Out Fees
Peterborough City Council,Commissioning and Commercial Operations,Access to Resources & Specialist Commissioning,Services,04/09/2019,30242173,3596.00,Revenue,Nexus Fostering Ltd,Boarding Out Fees
Peterborough City Council,Commissioning and Commercial Operations,Access to Resources & Specialist Commissioning,Services,04/09/2019,30242177,3317.00,Revenue,Alliance Foster Care,Boarding Out Fees
Peterborough City Council,Commissioning and Commercial Operations,Access to Resources & Specialist Commissioning,Services,04/09/2019,30242178,3317.00,Revenue,Alliance Foster Care,Boarding Out Fees
Peterborough City Council,Commissioning and Commercial Operations,Access to Resources & Specialist Commissioning,Services,04/09/2019,30242179,3210.00,Revenue,Alliance Foster Care,Boarding Out Fees
Peterborough City Council,Commissioning and Commercial Operations,Access to Resources & Specialist Commissioning,Services,04/09/2019,30242180,3210.00,Revenue,Alliance Foster Care,Boarding Out Fees
Peterborough City Council,Commissioning and Commercial Operations,Access to Resources & Specialist Commissioning,Services,04/09/2019,30242183,3150.00,Revenue,Alliance Foster Care,Boarding Out Fees
Peterborough City Council,Commissioning and Commercial Operations,Access to Resources & Specialist Commissioning,Services,04/09/2019,30242184,3255.00,Revenue,Alliance Foster Care,Boarding Out Fees
Peterborough City Council,Commissioning and Commercial Operations,Access to Resources & Specialist Commissioning,Services,04/09/2019,30242185,3317.00,Revenue,Alliance Foster Care,Boarding Out Fees
Peterborough City Council,Financial Services,Finance,Agency Staff,04/09/2019,30242205,681.17,Revenue,Reed Specialist Recruitment Limited,External Temporary Staff
Peterborough City Council,Peterborough Highway Services,Highway & Drainage Control,Agency Staff,04/09/2019,30242206,935.20,Revenue,Reed Specialist Recruitment Limited,External Temporary Staff
Peterborough City Council,Development and Construction,Development Management,Agency Staff,04/09/2019,30242207,989.81,Revenue,Reed Specialist Recruitment Limited,External Temporary Staff
Peterborough City Council,Development and Construction,Development Management,Agency Staff,04/09/2019,30242212,1365.01,Revenue,Reed Specialist Recruitment Limited,External Temporary Staff
Peterborough City Council,Legal Services,Legal Services,Agency Staff,04/09/2019,30242213,1801.65,Revenue,Reed Specialist Recruitment Limited,External Temporary Staff
Peterborough City Council,Peterborough Highway Services,Highway & Drainage Control,Agency Staff,04/09/2019,30242214,1269.20,Revenue,Reed Specialist Recruitment Limited,External Temporary Staff
Peterborough City Council,Development and Construction,Building Control,Agency Staff,04/09/2019,30242218,1075.05,Revenue,Reed Specialist Recruitment Limited,External Temporary Staff
Peterborough City Council,Programme Management Office,Programme Management Office,Agency Staff,04/09/2019,30242220,2852.07,Revenue,Reed Specialist Recruitment Limited,External Temporary Staff
Peterborough City Council,Programme Management Office,Programme Management Office,Agency Staff,04/09/2019,30242231,4768.72,Revenue,Reed Specialist Recruitment Limited,External Temporary Staff
Peterborough City Council,Development and Construction,Development Management,Agency Staff,04/09/2019,30242234,1501.53,Revenue,Reed Specialist Recruitment Limited,External Temporary Staff
Peterborough City Council,Financial Services,Finance,Agency Staff,04/09/2019,30242235,681.17,Revenue,Reed Specialist Recruitment Limited,External Temporary Staff
Peterborough City Council,Adults,Independent Sector Placements,Services,04/09/2019,30242237,1683.88,Revenue,Athena (Ashlynn Grange),Residential Care
Peterborough City Council,Adults,Independent Sector Placements,Services,04/09/2019,30242238,-3776.79,Revenue,Athena (Ashlynn Grange),Residential Care
Peterborough City Council,Commissioning and Commercial Operations,Commissioning Team,Agency Staff,04/09/2019,30242272,634.73,Revenue,Reed Specialist Recruitment Limited,External Temporary Staff
Peterborough City Council,Programme Management Office,Programme Management Office,Agency Staff,04/09/2019,30242274,4768.72,Revenue,Reed Specialist Recruitment Limited,External Temporary Staff
Peterborough City Council,Commissioning and Commercial Operations,Clare Lodge,Agency Staff,04/09/2019,30242276,902.89,Revenue,Reed Specialist Recruitment Limited,External Temporary Staff
Peterborough City Council,Adults,Therapy/Reablement/Community Equipment,Agency Staff,04/09/2019,30242284,4190.25,Revenue,Caritas Recruitment,External Temporary Staff
Peterborough City Council,Adults,Independent Sector Placements,Services,04/09/2019,30242315,-11085.15,Revenue,Sagecare Ltd,Home Care
Peterborough City Council,Adults,Independent Sector Placements,Services,04/09/2019,30242316,1077.00,Revenue,Sagecare Ltd,Home Care
Peterborough City Council,Adults,Independent Sector Placements,Services,04/09/2019,30242317,1138.25,Revenue,Sagecare Ltd,Home Care
Peterborough City Council,Adults,Independent Sector Placements,Services,04/09/2019,30242318,1167.24,Revenue,Sagecare Ltd,Home Care
Peterborough City Council,Adults,Independent Sector Placements,Services,04/09/2019,30242319,945.25,Revenue,Sagecare Ltd,Home Care
Peterborough City Council,Adults,Independent Sector Placements,Services,04/09/2019,30242320,3928.25,Revenue,Sagecare Ltd,Home Care
Peterborough City Council,Adults,Independent Sector Placements,Services,04/09/2019,30242321,1128.75,Revenue,Sagecare Ltd,Home Care
Peterborough City Council,Adults,Independent Sector Placements,Services,04/09/2019,30242322,698.00,Revenue,Sagecare Ltd,Home Care
Peterborough City Council,Adults,Independent Sector Placements,Services,04/09/2019,30242323,841.76,Revenue,Sagecare Ltd,Home Care
Peterborough City Council,Adults,Independent Sector Placements,Services,04/09/2019,30242324,1592.51,Revenue,Sagecare Ltd,Home Care
Peterborough City Council,Adults,Independent Sector Placements,Services,04/09/2019,30242325,1257.50,Revenue,Sagecare Ltd,Home Care
Peterborough City Council,Adults,Independent Sector Placements,Services,04/09/2019,30242326,836.50,Revenue,Sagecare Ltd,Home Care
Peterborough City Council,Adults,Independent Sector Placements,Services,04/09/2019,30242327,873.00,Revenue,Sagecare Ltd,Home Care
Peterborough City Council,Adults,Independent Sector Placements,Services,04/09/2019,30242328,756.53,Revenue,Sagecare Ltd,Home Care
Peterborough City Council,Adults,Independent Sector Placements,Services,04/09/2019,30242330,2732.82,Revenue,Park Vista Care Home,Residential Care
Peterborough City Council,Adults,Independent Sector Placements,Services,04/09/2019,30242393,4852.95,Revenue,Augusta Care Ltd,Home Care
Peterborough City Council,Adults,Independent Sector Placements,Services,04/09/2019,30242394,7940.08,Revenue,Augusta Care Ltd,Home Care
Peterborough City Council,Adults,Independent Sector Placements,Services,04/09/2019,30242395,9303.28,Revenue,Augusta Care Ltd,Home Care
Peterborough City Council,Adults,Independent Sector Placements,Services,04/09/2019,30242396,1229.64,Revenue,Augusta Care Ltd,Home Care
Peterborough City Council,Adults,Independent Sector Placements,Services,04/09/2019,30242397,4218.16,Revenue,Augusta Care Ltd,Home Care
Peterborough City Council,Adults,Independent Sector Placements,Services,04/09/2019,30242398,4218.16,Revenue,Augusta Care Ltd,Home Care
Peterborough City Council,Adults,Independent Sector Placements,Services,04/09/2019,30242399,2877.88,Revenue,Augusta Care Ltd,Home Care
Peterborough City Council,Adults,Independent Sector Placements,Services,04/09/2019,30242400,2285.40,Revenue,Augusta Care Ltd,Home Care
Peterborough City Council,Adults,Independent Sector Placements,Services,04/09/2019,30242401,6548.24,Revenue,Augusta Care Ltd,Home Care
Peterborough City Council,Adults,Independent Sector Placements,Services,04/09/2019,30242402,-1135.16,Revenue,Augusta Care Ltd,Home Care
Peterborough City Council,Adults,Independent Sector Placements,Services,04/09/2019,30242409,4874.44,Revenue,K2 CARE LTD,Home Care
Peterborough City Council,Adults,Independent Sector Placements,Services,04/09/2019,30242410,3808.44,Revenue,Fins Care Ltd t/a St Margarets Rest Home,Residential Care
Peterborough City Council,Adults,Independent Sector Placements,Services,04/09/2019,30242411,2976.12,Revenue,Fins Care Ltd t/a St Margarets Rest Home,Residential Care
Peterborough City Council,Adults,Independent Sector Placements,Services,04/09/2019,30242412,3005.40,Revenue,Fins Care Ltd t/a St Margarets Rest Home,Residential Care
Peterborough City Council,Adults,Independent Sector Placements,Services,04/09/2019,30242414,527.60,Revenue,Sagecare Ltd,Home Care
Peterborough City Council,Adults,Independent Sector Placements,Services,04/09/2019,30242415,609.61,Revenue,Sagecare Ltd,Home Care
Peterborough City Council,Adults,OP/PD/SI,Third Party Payments,04/09/2019,30242418,2149.00,Revenue,Cambridgeshire Deaf Association,Grant-Third Party
Peterborough City Council,Adults,Independent Sector Placements,Services,04/09/2019,30242420,5478.59,Revenue,Athena (Ashlynn Grange),Residential Care
Peterborough City Council,Commissioning and Commercial Operations,Clare Lodge,Agency Staff,04/09/2019,30242425,674.89,Revenue,Reed Specialist Recruitment Limited,External Temporary Staff
Peterborough City Council,Adults,Independent Sector Placements,Services,04/09/2019,30242434,546.07,Revenue,PJ Care Ltd,Residential Care
Peterborough City Council,Corporate,Corporate,Non Revenue,04/09/2019,30242447,537925.48,Balance Sheet,Teachers Pensions,Pensions
Peterborough City Council,Commissioning and Commercial Operations,Clare Lodge,Agency Staff,04/09/2019,30242475,988.75,Revenue,Teaching Personnel Ltd,Supply Teachers
Peterborough City Council,Commissioning and Commercial Operations,Clare Lodge,Agency Staff,04/09/2019,30242476,791.00,Revenue,Teaching Personnel Ltd,Supply Teachers
Peterborough City Council,Adults,Independent Sector Placements,Services,04/09/2019,30242478,-752.60,Revenue,Augusta Care Ltd,Home Care
Peterborough City Council,Education,Financing - Resources,Services,04/09/2019,30242481,1203.84,Revenue,Acorn Academy Day Nursery Ltd,Grant Payment
Peterborough City Council,Corporate Property,Commercial Propety,Agency Staff,04/09/2019,30242484,4704.17,Revenue,Reed Specialist Recruitment Limited,External Temporary Staff
Peterborough City Council,Corporate Property,Commercial Propety,Agency Staff,04/09/2019,30242485,2555.75,Revenue,Reed Specialist Recruitment Limited,External Temporary Staff
Peterborough City Council,Corporate Property,Commercial Propety,Agency Staff,04/09/2019,30242486,2420.53,Revenue,Reed Specialist Recruitment Limited,External Temporary Staff
Peterborough City Council,Commissioning and Commercial Operations,Commissioning Team,Agency Staff,04/09/2019,30242489,2243.60,Revenue,Reed Specialist Recruitment Limited,External Temporary Staff
Peterborough City Council,Peterborough Highway Services,Transport & Infrastructure Commissioning,Public Transport,04/09/2019,30242491,14991.16,Revenue,Statutory Payment of Concessionary Fares to Bus Provider,Public Transport
Peterborough City Council,Communities,Cohesion,Rents,04/09/2019,30242492,625.00,Revenue,Record Property Solutions,Rent
Peterborough City Council,Communities,Cohesion,Rents,04/09/2019,30242494,575.00,Revenue,Record Property Solutions,Rent
Peterborough City Council,Peterborough Highway Services,Transport & Infrastructure Commissioning,Public Transport,04/09/2019,30242495,18913.23,Revenue,Stagecoach in Peterborough,Public Transport
Peterborough City Council,Communities,Cohesion,Rents,04/09/2019,30242496,750.00,Revenue,Redacted Personal Data,Rent
Peterborough City Council,City Centre Management,"Markets, Tourism & Events",Agency Staff,04/09/2019,30242498,2828.60,Revenue,Reed Specialist Recruitment Limited,External Temporary Staff
Peterborough City Council,Communities,Cohesion,Rents,04/09/2019,30242502,625.00,Revenue,Rightroom Lettings Ltd,Rent
Peterborough City Council,Communities,Cohesion,Rents,04/09/2019,30242504,575.00,Revenue,Redacted Personal Data,Rent
Peterborough City Council,Communities,Cohesion,Rents,04/09/2019,30242506,800.00,Revenue,Hope Into Action,Rent
Peterborough City Council,Communities,Cohesion,Rents,04/09/2019,30242509,800.00,Revenue,Rightroom Lettings Ltd,Rent
Peterborough City Council,Communities,Cohesion,Rents,04/09/2019,30242511,625.00,Revenue,Record Property Solutions,Rent
Peterborough City Council,Communities,Cohesion,Rents,04/09/2019,30242514,650.00,Revenue,Redacted Personal Data,Rent
Peterborough City Council,Communities,Cohesion,Rents,04/09/2019,30242515,750.00,Revenue,Redacted Personal Data,Rent
Peterborough City Council,Peterborough Highway Services,Transport & Infrastructure Commissioning,Public Transport,04/09/2019,30242516,5154.28,Revenue,Stagecoach in Peterborough,Public Transport
Peterborough City Council,Communities,Cohesion,Rents,04/09/2019,30242517,600.00,Revenue,Redacted Personal Data,Rent
Peterborough City Council,Adults,Block Contracts,Third Party Payments,04/09/2019,30242544,12500.00,Revenue,Enabling Independence Service,Third Party Payments - Contract
Peterborough City Council,Adults,Independent Sector Placements,Services,04/09/2019,30242556,9792.15,Revenue,Dolphin Homes Limited,Residential Care
Peterborough City Council,Adults,Independent Sector Placements,Services,04/09/2019,30242558,-947.63,Revenue,Dolphin Homes Limited,Residential Care
Peterborough City Council,Adults,Independent Sector Placements,Services,04/09/2019,30242559,7619.28,Revenue,CambridgeshireHome Care,Home Care
Peterborough City Council,Adults,Independent Sector Placements,Services,04/09/2019,30242561,2767.86,Revenue,PSYCARE LIMITED,Residential Care
Peterborough City Council,Adults,Independent Sector Placements,Services,04/09/2019,30242562,1770.60,Revenue,The Orders of St John Care Trust,Residential Care
Peterborough City Council,Adults,Independent Sector Placements,Services,04/09/2019,30242563,1770.60,Revenue,The Orders of St John Care Trust,Residential Care
Peterborough City Council,Adults,OP/PD/SI,Third Party Payments,04/09/2019,30242564,2149.00,Revenue,Cambridgeshire Deaf Association,Grant-Third Party
Peterborough City Council,Public Health,DPH Office,Services,04/09/2019,30242567,2570.00,Revenue,The Association of Directors of Public Health (UK),Subscriptions
Peterborough City Council,Education,Financing - Resources,Services,04/09/2019,30242569,2080.50,Revenue,Sense,Education Expenses
Peterborough City Council,Adults,Independent Sector Placements,Services,04/09/2019,30242572,1905.00,Revenue,Barchester Healthcare (Werrington Lodge),Residential Care
Peterborough City Council,Adults,Independent Sector Placements,Services,04/09/2019,30242573,1173.98,Revenue,Barchester Healthcare (Werrington Lodge),Residential Care
Peterborough City Council,Adults,Independent Sector Placements,Services,04/09/2019,30242574,3244.80,Revenue,Avery Homes (Nelson) Ltd,Residential Care
Peterborough City Council,Adults,Independent Sector Placements,Services,04/09/2019,30242575,1619.60,Revenue,Avery Homes (Nelson) Ltd,Residential Care
Peterborough City Council,Adults,Independent Sector Placements,Services,04/09/2019,30242576,1770.60,Revenue,The Orders of St John Care Trust,Residential Care
Peterborough City Council,Adults,Mental Capacity Act & DoLs,Services,04/09/2019,30242579,2791.80,Revenue,Dr Nauman Khalil Ltd,Hired Services
Peterborough City Council,Communities,Targeted Youth Service,Services,04/09/2019,30242582,3600.00,Revenue,Peterborough Open Awards Centre CIC,Youth Programmes
Peterborough City Council,Education,Financing - Resources,Services,04/09/2019,30242584,2080.50,Revenue,Sense,Education Expenses
Peterborough City Council,Commissioning and Commercial Operations,Clare Lodge,Agency Staff,04/09/2019,30242586,1225.00,Revenue,Mana Resourcing Ltd,Supply Teachers
Peterborough City Council,Adults,Independent Sector Placements,Services,04/09/2019,8000149560,1681.92,Revenue,Augusta Care Ltd,Home Care
Peterborough City Council,Adults,Independent Sector Placements,Services,04/09/2019,8000149561,1681.92,Revenue,Augusta Care Ltd,Home Care
Peterborough City Council,Adults,Independent Sector Placements,Services,04/09/2019,8000149562,2837.08,Revenue,Augusta Care Ltd,Home Care
Peterborough City Council,Adults,Independent Sector Placements,Services,04/09/2019,8000149563,4115.08,Revenue,Augusta Care Ltd,Home Care
Peterborough City Council,Adults,Independent Sector Placements,Services,04/09/2019,8000149565,681.60,Revenue,Augusta Care Ltd,Home Care
Peterborough City Council,Adults,Independent Sector Placements,Services,04/09/2019,8000149566,932.76,Revenue,Augusta Care Ltd,Home Care
Peterborough City Council,Adults,Independent Sector Placements,Services,04/09/2019,8000149567,6614.72,Revenue,Augusta Care Ltd,Home Care
Peterborough City Council,Adults,Independent Sector Placements,Services,04/09/2019,8000149568,4100.08,Revenue,Augusta Care Ltd,Home Care
Peterborough City Council,Adults,Independent Sector Placements,Services,04/09/2019,8000149569,2964.08,Revenue,Augusta Care Ltd,Home Care
Peterborough City Council,Adults,Independent Sector Placements,Services,04/09/2019,8000149570,1400.12,Revenue,Augusta Care Ltd,Home Care
Peterborough City Council,Adults,Independent Sector Placements,Services,04/09/2019,8000149571,1513.72,Revenue,Augusta Care Ltd,Home Care
Peterborough City Council,Adults,Independent Sector Placements,Services,04/09/2019,8000149572,2862.72,Revenue,Augusta Care Ltd,Home Care
Peterborough City Council,Adults,Independent Sector Placements,Services,04/09/2019,8000149573,4843.00,Revenue,Augusta Care Ltd,Home Care
Peterborough City Council,Adults,Independent Sector Placements,Services,04/09/2019,8000149574,3669.92,Revenue,Augusta Care Ltd,Home Care
Peterborough City Council,Adults,Independent Sector Placements,Services,04/09/2019,8000149575,4710.68,Revenue,Augusta Care Ltd,Home Care
Peterborough City Council,Adults,Independent Sector Placements,Services,04/09/2019,8000149576,4881.08,Revenue,Augusta Care Ltd,Home Care
Peterborough City Council,Adults,Independent Sector Placements,Services,04/09/2019,8000149577,2234.08,Revenue,Augusta Care Ltd,Home Care
Peterborough City Council,Adults,Independent Sector Placements,Services,04/09/2019,8000149578,6838.44,Revenue,Augusta Care Ltd,Home Care
Peterborough City Council,Adults,Independent Sector Placements,Services,04/09/2019,8000149579,1590.40,Revenue,Augusta Care Ltd,Home Care
Peterborough City Council,Adults,Independent Sector Placements,Services,04/09/2019,8000149580,1590.40,Revenue,Augusta Care Ltd,Home Care
Peterborough City Council,Adults,Independent Sector Placements,Services,04/09/2019,8000149581,4367.64,Revenue,Augusta Care Ltd,Home Care
Peterborough City Council,Adults,Independent Sector Placements,Services,04/09/2019,8000149582,4367.64,Revenue,Augusta Care Ltd,Home Care
Peterborough City Council,Adults,Independent Sector Placements,Services,04/09/2019,8000149584,2406.56,Revenue,Augusta Care Ltd,Home Care
Peterborough City Council,Adults,Independent Sector Placements,Services,04/09/2019,8000149585,5014.88,Revenue,Augusta Care Ltd,Home Care
Peterborough City Council,Adults,Independent Sector Placements,Services,04/09/2019,8000149586,1521.20,Revenue,Augusta Care Ltd,Home Care
Peterborough City Council,Adults,Independent Sector Placements,Services,04/09/2019,8000149588,1253.40,Revenue,Augusta Care Ltd,Home Care
Peterborough City Council,Adults,Independent Sector Placements,Services,04/09/2019,8000149589,2044.80,Revenue,Augusta Care Ltd,Home Care
Peterborough City Council,Adults,Independent Sector Placements,Services,04/09/2019,8000149590,1178.60,Revenue,Augusta Care Ltd,Home Care
Peterborough City Council,Adults,Independent Sector Placements,Services,04/09/2019,8000149591,7916.16,Revenue,Augusta Care Ltd,Home Care
Peterborough City Council,Adults,Independent Sector Placements,Services,04/09/2019,8000149593,11132.80,Revenue,Augusta Care Ltd,Home Care
Peterborough City Council,Adults,Independent Sector Placements,Services,04/09/2019,8000149594,1604.60,Revenue,Augusta Care Ltd,Home Care
Peterborough City Council,Adults,Independent Sector Placements,Services,04/09/2019,8000149595,3592.60,Revenue,Augusta Care Ltd,Home Care
Peterborough City Council,Adults,Independent Sector Placements,Services,04/09/2019,8000149596,2825.80,Revenue,Augusta Care Ltd,Home Care
Peterborough City Council,Adults,Independent Sector Placements,Services,04/09/2019,8000149597,17774.40,Revenue,Augusta Care Ltd,Home Care
Peterborough City Council,Adults,Independent Sector Placements,Services,04/09/2019,8000149598,908.80,Revenue,Augusta Care Ltd,Home Care
Peterborough City Council,Adults,Independent Sector Placements,Services,04/09/2019,8000149599,8110.48,Revenue,Augusta Care Ltd,Home Care
Peterborough City Council,Adults,Independent Sector Placements,Services,04/09/2019,8000149600,1192.80,Revenue,Augusta Care Ltd,Home Care
Peterborough City Council,Adults,Independent Sector Placements,Services,04/09/2019,8000149601,1628.24,Revenue,Augusta Care Ltd,Home Care
Peterborough City Council,Adults,Independent Sector Placements,Services,04/09/2019,8000149602,2139.44,Revenue,Augusta Care Ltd,Home Care
Peterborough City Council,Adults,Independent Sector Placements,Services,04/09/2019,8000149603,1798.68,Revenue,Augusta Care Ltd,Home Care
Peterborough City Council,Adults,Independent Sector Placements,Services,04/09/2019,8000149604,2688.20,Revenue,Augusta Care Ltd,Home Care
Peterborough City Council,Adults,Independent Sector Placements,Services,04/09/2019,8000149605,2234.12,Revenue,Augusta Care Ltd,Home Care
Peterborough City Council,Adults,Independent Sector Placements,Services,04/09/2019,8000149606,2399.76,Revenue,Augusta Care Ltd,Home Care
Peterborough City Council,Adults,Independent Sector Placements,Services,04/09/2019,8000149607,2343.00,Revenue,Augusta Care Ltd,Home Care
Peterborough City Council,Adults,Independent Sector Placements,Services,04/09/2019,8000149608,2683.80,Revenue,Augusta Care Ltd,Home Care
Peterborough City Council,Adults,Independent Sector Placements,Services,04/09/2019,8000149609,2173.16,Revenue,Augusta Care Ltd,Home Care
Peterborough City Council,Adults,Independent Sector Placements,Services,04/09/2019,8000149610,3280.20,Revenue,Augusta Care Ltd,Home Care
Peterborough City Council,Adults,Independent Sector Placements,Services,04/09/2019,8000149611,2740.60,Revenue,Augusta Care Ltd,Home Care
Peterborough City Council,Adults,Independent Sector Placements,Services,04/09/2019,8000149612,630.44,Revenue,Augusta Care Ltd,Home Care
Peterborough City Council,Adults,Independent Sector Placements,Services,04/09/2019,8000149613,1260.84,Revenue,Augusta Care Ltd,Home Care
Peterborough City Council,Adults,Independent Sector Placements,Services,04/09/2019,8000149650,528.00,Revenue,MEARS GROUP,Home Care
Peterborough City Council,Adults,Independent Sector Placements,Services,04/09/2019,8000149653,823.45,Revenue,MEARS GROUP,Home Care
Peterborough City Council,Adults,Independent Sector Placements,Services,04/09/2019,8000149660,528.62,Revenue,MEARS GROUP,Home Care
Peterborough City Council,Adults,Independent Sector Placements,Services,04/09/2019,8000149661,1929.64,Revenue,MEARS GROUP,Home Care
Peterborough City Council,Adults,Independent Sector Placements,Services,04/09/2019,8000149662,855.27,Revenue,MEARS GROUP,Home Care
Peterborough City Council,Adults,Independent Sector Placements,Services,04/09/2019,8000149663,793.31,Revenue,MEARS GROUP,Home Care
Peterborough City Council,Adults,Independent Sector Placements,Services,04/09/2019,8000149713,653.94,Revenue,MEARS GROUP,Home Care
Peterborough City Council,Adults,Independent Sector Placements,Services,04/09/2019,8000149714,855.58,Revenue,MEARS GROUP,Home Care
Peterborough City Council,Adults,Independent Sector Placements,Services,04/09/2019,8000149717,533.61,Revenue,MEARS GROUP,Home Care
Peterborough City Council,Adults,Independent Sector Placements,Services,04/09/2019,8000149721,859.07,Revenue,MEARS GROUP,Home Care
Peterborough City Council,Adults,Independent Sector Placements,Services,04/09/2019,8000149723,859.98,Revenue,MEARS GROUP,Home Care
Peterborough City Council,Adults,Independent Sector Placements,Services,04/09/2019,8000149724,679.91,Revenue,MEARS GROUP,Home Care
Peterborough City Council,Adults,Independent Sector Placements,Services,04/09/2019,8000149725,943.70,Revenue,MEARS GROUP,Home Care
Peterborough City Council,Adults,Independent Sector Placements,Services,04/09/2019,8000149726,644.44,Revenue,MEARS GROUP,Home Care
Peterborough City Council,Adults,Independent Sector Placements,Services,04/09/2019,8000149727,2135.59,Revenue,MEARS GROUP,Home Care
Peterborough City Council,Adults,Independent Sector Placements,Services,04/09/2019,8000149728,751.17,Revenue,MEARS GROUP,Home Care
Peterborough City Council,Adults,Independent Sector Placements,Services,04/09/2019,8000149729,1399.00,Revenue,MEARS GROUP,Home Care
Peterborough City Council,Adults,Independent Sector Placements,Services,04/09/2019,8000149735,1692.43,Revenue,MEARS GROUP,Home Care
Peterborough City Council,Adults,Independent Sector Placements,Services,04/09/2019,8000149737,534.08,Revenue,MEARS GROUP,Home Care
Peterborough City Council,Adults,Independent Sector Placements,Services,04/09/2019,8000149738,753.81,Revenue,MEARS GROUP,Home Care
Peterborough City Council,Adults,Independent Sector Placements,Services,04/09/2019,8000149739,775.36,Revenue,MEARS GROUP,Home Care
Peterborough City Council,Adults,Independent Sector Placements,Services,04/09/2019,8000149740,650.83,Revenue,MEARS GROUP,Home Care
Peterborough City Council,Adults,Independent Sector Placements,Services,04/09/2019,8000149747,856.13,Revenue,MEARS GROUP,Home Care
Peterborough City Council,Adults,Independent Sector Placements,Services,04/09/2019,8000149752,654.37,Revenue,MEARS GROUP,Home Care
Peterborough City Council,Adults,Independent Sector Placements,Services,04/09/2019,8000149787,3696.64,Revenue,Augusta Care Ltd,Home Care
Peterborough City Council,Adults,Independent Sector Placements,Services,04/09/2019,8000149863,588.28,Revenue,Hales Group Ltd,Home Care
Peterborough City Council,Adults,Independent Sector Placements,Services,04/09/2019,8000149865,728.62,Revenue,Hales Group Ltd,Home Care
Peterborough City Council,Adults,Independent Sector Placements,Services,04/09/2019,8000149867,504.36,Revenue,Hales Group Ltd,Home Care
Peterborough City Council,Adults,Independent Sector Placements,Services,04/09/2019,8000149868,1092.92,Revenue,Hales Group Ltd,Home Care
Peterborough City Council,Adults,Independent Sector Placements,Services,04/09/2019,8000149869,966.81,Revenue,Hales Group Ltd,Home Care
Peterborough City Council,Adults,Independent Sector Placements,Services,04/09/2019,8000149871,1176.56,Revenue,Hales Group Ltd,Home Care
Peterborough City Council,Adults,Independent Sector Placements,Services,04/09/2019,8000149872,973.66,Revenue,Hales Group Ltd,Home Care
Peterborough City Council,Adults,Independent Sector Placements,Services,04/09/2019,8000149873,591.78,Revenue,Hales Group Ltd,Home Care
Peterborough City Council,Adults,Independent Sector Placements,Services,04/09/2019,8000149875,584.78,Revenue,Hales Group Ltd,Home Care
Peterborough City Council,Adults,Independent Sector Placements,Services,04/09/2019,8000149876,2322.72,Revenue,Hales Group Ltd,Home Care
Peterborough City Council,Adults,Independent Sector Placements,Services,04/09/2019,8000149877,2595.18,Revenue,Hales Group Ltd,Home Care
Peterborough City Council,Adults,Independent Sector Placements,Services,04/09/2019,8000149882,850.99,Revenue,Hales Group Ltd,Home Care
Peterborough City Council,Adults,Independent Sector Placements,Services,04/09/2019,8000149884,700.64,Revenue,Hales Group Ltd,Home Care
Peterborough City Council,Adults,Independent Sector Placements,Services,04/09/2019,8000149887,840.95,Revenue,Hales Group Ltd,Home Care
Peterborough City Council,Adults,Independent Sector Placements,Services,04/09/2019,8000149888,1267.83,Revenue,Hales Group Ltd,Home Care
Peterborough City Council,Adults,Independent Sector Placements,Services,04/09/2019,8000149890,658.47,Revenue,Hales Group Ltd,Home Care
Peterborough City Council,Adults,Independent Sector Placements,Services,04/09/2019,8000149893,707.38,Revenue,Hales Group Ltd,Home Care
Peterborough City Council,Adults,Independent Sector Placements,Services,04/09/2019,8000149894,1275.12,Revenue,Hales Group Ltd,Home Care
Peterborough City Council,Adults,Independent Sector Placements,Services,04/09/2019,8000149895,672.56,Revenue,Hales Group Ltd,Home Care
Peterborough City Council,Adults,Independent Sector Placements,Services,04/09/2019,8000150619,648.29,Revenue,MEARS GROUP,Home Care
Peterborough City Council,Adults,Independent Sector Placements,Services,04/09/2019,8000150620,710.69,Revenue,MEARS GROUP,Home Care
Peterborough City Council,Adults,Independent Sector Placements,Services,04/09/2019,8000150631,624.75,Revenue,Sagecare Ltd,Home Care
Peterborough City Council,Adults,Independent Sector Placements,Services,04/09/2019,8000150632,1597.50,Revenue,Sagecare Ltd,Home Care
Peterborough City Council,Adults,Independent Sector Placements,Services,04/09/2019,8000150633,910.37,Revenue,Sagecare Ltd,Home Care
Peterborough City Council,Adults,Independent Sector Placements,Services,04/09/2019,8000150635,575.25,Revenue,Sagecare Ltd,Home Care
Peterborough City Council,Adults,Independent Sector Placements,Services,04/09/2019,8000150710,1771.18,Revenue,Augusta Care Ltd,Home Care
Peterborough City Council,Adults,Independent Sector Placements,Services,04/09/2019,8000150726,1137.92,Revenue,Hales Group Ltd,Home Care
Peterborough City Council,Adults,Independent Sector Placements,Services,04/09/2019,8000150728,973.56,Revenue,Hales Group Ltd,Home Care
Peterborough City Council,Adults,Independent Sector Placements,Services,04/09/2019,8000150729,676.03,Revenue,Hales Group Ltd,Home Care
Peterborough City Council,Adults,Independent Sector Placements,Services,04/09/2019,8000150730,872.31,Revenue,Hales Group Ltd,Home Care
Peterborough City Council,Adults,Independent Sector Placements,Services,04/09/2019,8000150731,672.36,Revenue,Hales Group Ltd,Home Care
Peterborough City Council,Adults,Independent Sector Placements,Services,04/09/2019,8000150733,784.28,Revenue,Hales Group Ltd,Home Care
Peterborough City Council,Commissioning and Commercial Operations,Access to Resources & Specialist Commissioning,Services,06/09/2019,30236436,1248.00,Revenue,The Beeches UK Limited,Boarding Out Fees
Peterborough City Council,Adults,Independent Sector Placements,Services,06/09/2019,30239885,823.00,Revenue,Richmond Fellowship (The),Residential Care
Peterborough City Council,Adults,Independent Sector Placements,Services,06/09/2019,30239886,920.00,Revenue,Richmond Fellowship (The),Residential Care
Peterborough City Council,Adults,Independent Sector Placements,Services,06/09/2019,30240369,811.00,Revenue,Richmond Fellowship (The),Residential Care
Peterborough City Council,Commissioning and Commercial Operations,Access to Resources & Specialist Commissioning,Services,06/09/2019,30240690,1980.00,Revenue,Florinee Homes Ltd,Boarding Out Fees
Peterborough City Council,Commissioning and Commercial Operations,Access to Resources & Specialist Commissioning,Services,06/09/2019,30240691,2750.00,Revenue,Florinee Homes Ltd,Boarding Out Fees
Peterborough City Council,Commissioning and Commercial Operations,Access to Resources & Specialist Commissioning,Services,06/09/2019,30240692,990.00,Revenue,Florinee Homes Ltd,Boarding Out Fees
Peterborough City Council,Commissioning and Commercial Operations,Access to Resources & Specialist Commissioning,Services,06/09/2019,30240693,2750.00,Revenue,Florinee Homes Ltd,Boarding Out Fees
Peterborough City Council,Adults,Independent Sector Placements,Services,06/09/2019,30241074,2347.80,Revenue,Linkage Community Trust Limited,Residential Care
Peterborough City Council,Adults,Independent Sector Placements,Services,06/09/2019,30241077,14588.00,Revenue,Decoy Farm,Residential Care
Peterborough City Council,Adults,Independent Sector Placements,Services,06/09/2019,30241078,6966.72,Revenue,Autism Care (UK) Ltd,Residential Care
Peterborough City Council,Commissioning and Commercial Operations,Clare Lodge,Cleaning & Domestic Supplies,06/09/2019,30241146,1136.98,Revenue,360 Services Group Ltd,Cleaning
Peterborough City Council,Adults,Independent Sector Placements,Services,06/09/2019,30241162,2145.80,Revenue,Alysia Caring Ltd T/a Cherry Blossom care Home,Residential Care
Peterborough City Council,Adults,Independent Sector Placements,Services,06/09/2019,30241399,1568.00,Revenue,K2 CARE LTD,Home Care
Peterborough City Council,Adults,Independent Sector Placements,Services,06/09/2019,30241401,953.03,Revenue,K2 CARE LTD,Home Care
Peterborough City Council,Adults,Independent Sector Placements,Services,06/09/2019,30241403,998.14,Revenue,K2 CARE LTD,Home Care
Peterborough City Council,Adults,Independent Sector Placements,Services,06/09/2019,30241404,3852.60,Revenue,K2 CARE LTD,Home Care
Peterborough City Council,Adults,Independent Sector Placements,Services,06/09/2019,30241405,1620.96,Revenue,K2 CARE LTD,Home Care
Peterborough City Council,Adults,Independent Sector Placements,Services,06/09/2019,30241406,526.79,Revenue,K2 CARE LTD,Home Care
Peterborough City Council,Adults,Independent Sector Placements,Services,06/09/2019,30241407,1322.19,Revenue,K2 CARE LTD,Home Care
Peterborough City Council,Adults,Independent Sector Placements,Services,06/09/2019,30241408,989.33,Revenue,K2 CARE LTD,Home Care
Peterborough City Council,Adults,Independent Sector Placements,Services,06/09/2019,30241409,1365.00,Revenue,K2 CARE LTD,Home Care
Peterborough City Council,Adults,Independent Sector Placements,Services,06/09/2019,30241410,1476.54,Revenue,K2 CARE LTD,Home Care
Peterborough City Council,Adults,Independent Sector Placements,Services,06/09/2019,30241411,574.47,Revenue,K2 CARE LTD,Home Care
Peterborough City Council,Adults,Independent Sector Placements,Services,06/09/2019,30241413,841.10,Revenue,K2 CARE LTD,Home Care
Peterborough City Council,Adults,Independent Sector Placements,Services,06/09/2019,30241415,3693.32,Revenue,K2 CARE LTD,Home Care
Peterborough City Council,Adults,Independent Sector Placements,Services,06/09/2019,30241418,509.06,Revenue,K2 CARE LTD,Home Care
Peterborough City Council,Adults,Independent Sector Placements,Services,06/09/2019,30241420,1190.98,Revenue,K2 CARE LTD,Home Care
Peterborough City Council,Adults,Independent Sector Placements,Services,06/09/2019,30241421,959.00,Revenue,K2 CARE LTD,Home Care
Peterborough City Council,Adults,Independent Sector Placements,Services,06/09/2019,30241422,1074.02,Revenue,K2 CARE LTD,Home Care
Peterborough City Council,Adults,Independent Sector Placements,Services,06/09/2019,30241423,-567.94,Revenue,Avery House (Peterborough) t/a Brighterkind,Residential Care
Peterborough City Council,Adults,Independent Sector Placements,Services,06/09/2019,30241424,1055.92,Revenue,Avery House (Peterborough) t/a Brighterkind,Residential Care
Peterborough City Council,Adults,Independent Sector Placements,Services,06/09/2019,30241426,1852.48,Revenue,Avery House (Peterborough) t/a Brighterkind,Residential Care
Peterborough City Council,Adults,Independent Sector Placements,Services,06/09/2019,30241427,1268.96,Revenue,Avery House (Peterborough) t/a Brighterkind,Residential Care
Peterborough City Council,Adults,Independent Sector Placements,Services,06/09/2019,30241428,1397.68,Revenue,Avery House (Peterborough) t/a Brighterkind,Residential Care
Peterborough City Council,Adults,Independent Sector Placements,Services,06/09/2019,30241429,1187.56,Revenue,Avery House (Peterborough) t/a Brighterkind,Residential Care
Peterborough City Council,Adults,Independent Sector Placements,Services,06/09/2019,30241430,1449.00,Revenue,Avery House (Peterborough) t/a Brighterkind,Residential Care
Peterborough City Council,Adults,Independent Sector Placements,Services,06/09/2019,30241431,1852.48,Revenue,Avery House (Peterborough) t/a Brighterkind,Residential Care
Peterborough City Council,Adults,Independent Sector Placements,Services,06/09/2019,30241432,1044.16,Revenue,Avery House (Peterborough) t/a Brighterkind,Residential Care
Peterborough City Council,Adults,Independent Sector Placements,Services,06/09/2019,30241433,1749.92,Revenue,Avery House (Peterborough) t/a Brighterkind,Residential Care
Peterborough City Council,Adults,Independent Sector Placements,Services,06/09/2019,30241434,1466.40,Revenue,Avery House (Peterborough) t/a Brighterkind,Residential Care
Peterborough City Council,Adults,Independent Sector Placements,Services,06/09/2019,30241435,1363.56,Revenue,Avery House (Peterborough) t/a Brighterkind,Residential Care
Peterborough City Council,Adults,Independent Sector Placements,Services,06/09/2019,30241436,1776.00,Revenue,Avery House (Peterborough) t/a Brighterkind,Residential Care
Peterborough City Council,Adults,Independent Sector Placements,Services,06/09/2019,30241437,2179.24,Revenue,Avery House (Peterborough) t/a Brighterkind,Residential Care
Peterborough City Council,Adults,Independent Sector Placements,Services,06/09/2019,30241438,2210.60,Revenue,Avery House (Peterborough) t/a Brighterkind,Residential Care
Peterborough City Council,Adults,Independent Sector Placements,Services,06/09/2019,30241439,910.28,Revenue,Avery House (Peterborough) t/a Brighterkind,Residential Care
Peterborough City Council,Adults,Independent Sector Placements,Services,06/09/2019,30241450,1989.20,Revenue,Avery House (Peterborough) t/a Brighterkind,Residential Care
Peterborough City Council,Adults,Independent Sector Placements,Services,06/09/2019,30241452,1915.64,Revenue,Avery House (Peterborough) t/a Brighterkind,Residential Care
Peterborough City Council,Adults,Independent Sector Placements,Services,06/09/2019,30241456,1606.84,Revenue,Avery House (Peterborough) t/a Brighterkind,Residential Care
Peterborough City Council,Adults,Independent Sector Placements,Services,06/09/2019,30241459,1615.64,Revenue,Avery House (Peterborough) t/a Brighterkind,Residential Care
Peterborough City Council,Adults,Independent Sector Placements,Services,06/09/2019,30241461,1628.76,Revenue,Avery House (Peterborough) t/a Brighterkind,Residential Care
Peterborough City Council,Adults,Independent Sector Placements,Services,06/09/2019,30241466,956.48,Revenue,Avery House (Peterborough) t/a Brighterkind,Residential Care
Peterborough City Council,Adults,Independent Sector Placements,Services,06/09/2019,30241472,1915.64,Revenue,Avery House (Peterborough) t/a Brighterkind,Residential Care
Peterborough City Council,Adults,Independent Sector Placements,Services,06/09/2019,30241474,2260.00,Revenue,Avery House (Peterborough) t/a Brighterkind,Residential Care
Peterborough City Council,Adults,Independent Sector Placements,Services,06/09/2019,30241486,3290.12,Revenue,SOCIAL CARE SOLUTIONS LTD,Home Care
Peterborough City Council,Adults,Independent Sector Placements,Services,06/09/2019,30241487,6729.60,Revenue,SOCIAL CARE SOLUTIONS LTD,Home Care
Peterborough City Council,Adults,Independent Sector Placements,Services,06/09/2019,30241488,4780.08,Revenue,SOCIAL CARE SOLUTIONS LTD,Home Care
Peterborough City Council,Adults,Independent Sector Placements,Services,06/09/2019,30241489,1932.00,Revenue,SOCIAL CARE SOLUTIONS LTD,Home Care
Peterborough City Council,Adults,Independent Sector Placements,Services,06/09/2019,30241492,3210.64,Revenue,SOCIAL CARE SOLUTIONS LTD,Home Care
Peterborough City Council,Adults,Independent Sector Placements,Services,06/09/2019,30241493,3740.12,Revenue,SOCIAL CARE SOLUTIONS LTD,Home Care
Peterborough City Council,Adults,Independent Sector Placements,Services,06/09/2019,30241494,4240.08,Revenue,SOCIAL CARE SOLUTIONS LTD,Home Care
Peterborough City Council,Adults,Independent Sector Placements,Services,06/09/2019,30241495,7005.60,Revenue,SOCIAL CARE SOLUTIONS LTD,Home Care
Peterborough City Council,Adults,Independent Sector Placements,Services,06/09/2019,30241496,900.00,Revenue,SOCIAL CARE SOLUTIONS LTD,Home Care
Peterborough City Council,Westcombe Engineering,Westcombe Engineering,"Tools, Equipment, Furniture & Materials",06/09/2019,30241521,597.10,Revenue,Barron Clark Castings Ltd,Materials
Peterborough City Council,Westcombe Engineering,Westcombe Engineering,"Tools, Equipment, Furniture & Materials",06/09/2019,30241525,554.45,Revenue,Barron Clark Castings Ltd,Materials
Peterborough City Council,Commissioning and Commercial Operations,Clare Lodge,Agency Staff,06/09/2019,30241547,827.42,Revenue,Reed Specialist Recruitment Limited,External Temporary Staff
Peterborough City Council,Children's & Safeguarding,CSC Quality Assurance,Services,06/09/2019,30241557,1255.40,Revenue,"Crisp, Mr Brian",Consultants Fees
Peterborough City Council,Commissioning and Commercial Operations,Access to Resources & Specialist Commissioning,Services,06/09/2019,30241739,4836.00,Revenue,The Beeches UK Limited,Boarding Out Fees
Peterborough City Council,Children's & Safeguarding,Children's Social Care,Services,06/09/2019,30241794,670.00,Revenue,Redacted Personal Data,Financial Assistance
Peterborough City Council,Adults,Independent Sector Placements,Services,06/09/2019,30241803,8789.88,Revenue,Home From Home Care Limited,Residential Care
Peterborough City Council,Adults,Independent Sector Placements,Services,06/09/2019,30241805,8762.36,Revenue,Home From Home Care Limited,Residential Care
Peterborough City Council,Adults,Independent Sector Placements,Services,06/09/2019,30241806,7855.48,Revenue,Home From Home Care Limited,Residential Care
Peterborough City Council,Adults,Independent Sector Placements,Services,06/09/2019,30241807,10856.48,Revenue,Home From Home Care Limited,Residential Care
Peterborough City Council,Commissioning and Commercial Operations,Access to Resources & Specialist Commissioning,Services,06/09/2019,30241820,2488.29,Revenue,The Beeches UK Limited,Boarding Out Fees
Peterborough City Council,Commissioning and Commercial Operations,Clare Lodge,Agency Staff,06/09/2019,30241829,600.93,Revenue,Reed Specialist Recruitment Limited,External Temporary Staff
Peterborough City Council,Commissioning and Commercial Operations,Clare Lodge,Agency Staff,06/09/2019,30241840,510.12,Revenue,Reed Specialist Recruitment Limited,External Temporary Staff
Peterborough City Council,Commissioning and Commercial Operations,Clare Lodge,Agency Staff,06/09/2019,30241849,780.29,Revenue,Reed Specialist Recruitment Limited,External Temporary Staff
Peterborough City Council,ICT,ICT,Agency Staff,06/09/2019,30241894,1186.04,Revenue,Reed Specialist Recruitment Limited,External Temporary Staff
Peterborough City Council,Communities,Cohesion,Third Party Payments,06/09/2019,30241929,9977.12,Revenue,Goldhay Community Centre,Grant-Third Party
Peterborough City Council,Commissioning and Commercial Operations,Access to Resources & Specialist Commissioning,Services,06/09/2019,30242156,780.01,Revenue,Swiis Foster Care Ltd,Boarding Out Fees
Peterborough City Council,Commissioning and Commercial Operations,Clare Lodge,Agency Staff,06/09/2019,30242208,961.50,Revenue,Reed Specialist Recruitment Limited,External Temporary Staff
Peterborough City Council,Children's & Safeguarding,Early Help ASC/CSC,Agency Staff,06/09/2019,30242215,548.32,Revenue,Reed Specialist Recruitment Limited,External Temporary Staff
Peterborough City Council,Commissioning and Commercial Operations,Clare Lodge,Agency Staff,06/09/2019,30242216,510.12,Revenue,Reed Specialist Recruitment Limited,External Temporary Staff
Peterborough City Council,Commissioning and Commercial Operations,Clare Lodge,Agency Staff,06/09/2019,30242223,524.67,Revenue,Reed Specialist Recruitment Limited,External Temporary Staff
Peterborough City Council,Commissioning and Commercial Operations,Clare Lodge,Agency Staff,06/09/2019,30242228,591.68,Revenue,Reed Specialist Recruitment Limited,External Temporary Staff
Peterborough City Council,Children's & Safeguarding,Early Help ASC/CSC,Agency Staff,06/09/2019,30242229,539.28,Revenue,Reed Specialist Recruitment Limited,External Temporary Staff
Peterborough City Council,City Centre Management,"Markets, Tourism & Events",Services,06/09/2019,30242257,550.00,Revenue,Street Arts Hire Ltd,Hired Services
Peterborough City Council,Children's & Safeguarding,Early Help ASC/CSC,Agency Staff,06/09/2019,30242269,569.83,Revenue,Reed Specialist Recruitment Limited,External Temporary Staff
Peterborough City Council,Peterborough Highway Services,Highway Services - HoS,Agency Staff,06/09/2019,30242280,1235.80,Revenue,Reed Specialist Recruitment Limited,External Temporary Staff
Peterborough City Council,Peterborough Highway Services,Highway Services - HoS,Agency Staff,06/09/2019,30242281,816.85,Revenue,Reed Specialist Recruitment Limited,External Temporary Staff
Peterborough City Council,Communities,Housing,Services,06/09/2019,30242390,548.08,Revenue,Belvoir Property Management,Financial Assistance
Peterborough City Council,Communities,Housing,Services,06/09/2019,30242391,2338.00,Revenue,Redacted Personal Data,Financial Assistance
Peterborough City Council,Communities,Housing,Services,06/09/2019,30242392,630.00,Revenue,Cozy Lettings Ltd,Financial Assistance
Peterborough City Council,Adults,Independent Sector Placements,Services,06/09/2019,30242404,15086.98,Revenue,Anchor Homes,Residential Care
Peterborough City Council,Adults,Independent Sector Placements,Services,06/09/2019,30242405,503.90,Revenue,Anchor Homes,Residential Care
Peterborough City Council,Adults,Independent Sector Placements,Services,06/09/2019,30242407,503.90,Revenue,Anchor Homes,Residential Care
Peterborough City Council,Adults,Independent Sector Placements,Services,06/09/2019,30242442,1464.27,Revenue,Anchor Homes,Residential Care
Peterborough City Council,Adults,Independent Sector Placements,Services,06/09/2019,30242443,950.00,Revenue,Anchor Homes,Residential Care
Peterborough City Council,Adults,Independent Sector Placements,Services,06/09/2019,30242445,-1446.54,Revenue,Anchor Homes,Residential Care
Peterborough City Council,Communities,Housing,Services,06/09/2019,30242519,575.00,Revenue,Redacted Personal Data,Financial Assistance
Peterborough City Council,Adults,Independent Sector Placements,Services,06/09/2019,30242557,-1446.54,Revenue,Anchor Homes,Residential Care
Peterborough City Council,Commissioning and Commercial Operations,Clare Lodge,Services,06/09/2019,30242566,770.00,Revenue,Ray Worsley Education Consultancy,Consultants Fees
Peterborough City Council,Communities,Targeted Youth Service,Services,06/09/2019,30242581,703.00,Revenue,Peterborough Open Awards Centre CIC,Youth Programmes
Peterborough City Council,Corporate Property,Commercial Propety,Agency Staff,06/09/2019,30242587,2312.35,Revenue,Reed Specialist Recruitment Limited,External Temporary Staff
Peterborough City Council,Corporate Property,Commercial Propety,Agency Staff,06/09/2019,30242588,2217.69,Revenue,Reed Specialist Recruitment Limited,External Temporary Staff
Peterborough City Council,Communities,Cohesion,Services,06/09/2019,30242593,5534.60,Revenue,Lisa Bunyan,Consultants Fees
Peterborough City Council,Adults,Independent Sector Placements,Services,06/09/2019,30242595,1430.00,Revenue,Pilgrim Havens,Residential Care
Peterborough City Council,Adults,Independent Sector Placements,Services,06/09/2019,30242597,2616.20,Revenue,Excellence Care Ltd,Home Care
Peterborough City Council,Adults,Independent Sector Placements,Services,06/09/2019,30242604,1913.96,Revenue,Better Healthcare Services,Home Care
Peterborough City Council,Adults,Independent Sector Placements,Services,06/09/2019,30242605,1469.65,Revenue,Better Healthcare Services,Home Care
Peterborough City Council,Adults,Independent Sector Placements,Services,06/09/2019,30242606,1693.69,Revenue,Better Healthcare Services,Home Care
Peterborough City Council,Adults,Independent Sector Placements,Services,06/09/2019,30242607,1317.74,Revenue,Better Healthcare Services,Home Care
Peterborough City Council,Adults,Independent Sector Placements,Services,06/09/2019,30242609,1275.96,Revenue,Better Healthcare Services,Home Care
Peterborough City Council,Commissioning and Commercial Operations,Access to Resources & Specialist Commissioning,Services,06/09/2019,30242613,2186.14,Revenue,PCH Integration Services Ltd,Boarding Out Fees
Peterborough City Council,Commissioning and Commercial Operations,Access to Resources & Specialist Commissioning,Services,06/09/2019,30242617,1498.28,Revenue,PCH Integration Services Ltd,Boarding Out Fees
Peterborough City Council,Adults,Independent Sector Placements,Services,06/09/2019,30242620,1307.40,Revenue,RBL Field House Care LTD,Residential Care
Peterborough City Council,Adults,Independent Sector Placements,Services,06/09/2019,30242621,1216.40,Revenue,RBL Field House Care LTD,Residential Care
Peterborough City Council,Adults,Independent Sector Placements,Services,06/09/2019,30242622,1128.20,Revenue,RBL Field House Care LTD,Residential Care
Peterborough City Council,Adults,Independent Sector Placements,Services,06/09/2019,30242623,1236.00,Revenue,RBL Field House Care LTD,Residential Care
Peterborough City Council,Children's & Safeguarding,External Education Placements,Services,06/09/2019,30242661,3111.33,Revenue,Gosberton House Academy,Education Expenses
Peterborough City Council,Children's & Safeguarding,External Education Placements,Services,06/09/2019,30242662,2138.00,Revenue,Fourfields Community Primary School,Out Of Area Education Costs
Peterborough City Council,Education,Early Years & Quality Improvement,Services,06/09/2019,30242663,7061.74,Revenue,Queen Katherine Academy Nursery,Grant Payment
Peterborough City Council,Commissioning and Commercial Operations,Access to Resources & Specialist Commissioning,Services,06/09/2019,30242669,2278.53,Revenue,Starwrick Housing,Boarding Out Fees
Peterborough City Council,Commissioning and Commercial Operations,Access to Resources & Specialist Commissioning,Services,06/09/2019,30242670,531.42,Revenue,Elite Care Provider,Boarding Out Fees
Peterborough City Council,Commissioning and Commercial Operations,Access to Resources & Specialist Commissioning,Services,06/09/2019,30242673,531.42,Revenue,Elite Care Provider,Boarding Out Fees
Peterborough City Council,Commissioning and Commercial Operations,Access to Resources & Specialist Commissioning,Services,06/09/2019,30242688,3280.00,Revenue,Campus Living Villages (Sutton Bonington),Financial Assistance
Peterborough City Council,Commissioning and Commercial Operations,Access to Resources & Specialist Commissioning,Services,06/09/2019,30242689,500.00,Revenue,Redacted Personal Data,Course Fees
Peterborough City Council,Communities,Cohesion,Services,06/09/2019,30242771,3708.40,Revenue,Lisa Bunyan,Consultants Fees
Peterborough City Council,Commissioning and Commercial Operations,Clare Lodge,Agency Staff,06/09/2019,30242773,1292.04,Revenue,Reed Specialist Recruitment Limited,External Temporary Staff
Peterborough City Council,Commissioning and Commercial Operations,Clare Lodge,Agency Staff,06/09/2019,30242780,3882.38,Revenue,Service Care Solutions Ltd,External Temporary Staff
Peterborough City Council,Commissioning and Commercial Operations,Clare Lodge,Agency Staff,06/09/2019,30242781,519.35,Revenue,Reed Specialist Recruitment Limited,External Temporary Staff
Peterborough City Council,Adults,Finance,Agency Staff,06/09/2019,30242791,6567.50,Revenue,Service Care Solutions Ltd,External Temporary Staff
Peterborough City Council,Commissioning and Commercial Operations,Clare Lodge,Agency Staff,06/09/2019,30242798,15240.00,Revenue,Wrixon Care Services,External Temporary Staff
Peterborough City Council,Peterborough Serco Strategic Partnership,PSSP Retained Services,Services,06/09/2019,30242805,1608.35,Revenue,Whistl UK Ltd,Postage
Peterborough City Council,Communities,Cohesion,Third Party Payments,06/09/2019,30242817,20000.00,Revenue,Cambridge Women's Aid,Third Party Payments - Contract
Peterborough City Council,Legal Services,Legal Services,Agency Staff,06/09/2019,30242818,1281.50,Revenue,Spinks Notary,External Temporary Staff
Peterborough City Council,Commissioning and Commercial Operations,Access to Resources & Specialist Commissioning,Services,06/09/2019,30242822,8400.00,Revenue,A & T Home Limited,Boarding Out Fees
Peterborough City Council,Education,Special Educational Needs / Inclusion,Agency Staff,06/09/2019,30242824,1100.00,Revenue,Permanent Futures Ltd,External Temporary Staff
Peterborough City Council,Education,Special Educational Needs / Inclusion,Services,06/09/2019,30242834,2975.00,Revenue,ELYSIUM HEALTHCARE LTD,Education Expenses
Peterborough City Council,Westcombe Engineering,Westcombe Engineering,"Tools, Equipment, Furniture & Materials",06/09/2019,30242841,15912.00,Revenue,BWC Aluminium Ltd,Materials
Peterborough City Council,Adults,Home Services Delivery Model,Third Party Payments,06/09/2019,30242852,5017.14,Revenue,Peterborough Womens Aid,Grant-Third Party
Peterborough City Council,Peterborough Serco Strategic Partnership,Peterborough Serco Strategic Partnership,Services,06/09/2019,30242904,19999.00,Revenue,Crossword Cybersecurity Plc,Computer Software
Peterborough City Council,Education,HTS & CSC Transport,Contract Hire and Operating Leases,06/09/2019,8000150793,1052.80,Revenue,King Carz Ltd,Hired Transport
Peterborough City Council,Education,HTS & CSC Transport,Contract Hire and Operating Leases,06/09/2019,8000150799,575.00,Revenue,The Taxi Firm Limited,Hired Transport
Peterborough City Council,Adults,Independent Sector Placements,Services,06/09/2019,8000150810,752.37,Revenue,Sagecare Ltd,Home Care
Peterborough City Council,Adults,Independent Sector Placements,Services,06/09/2019,8000150812,1440.25,Revenue,Sagecare Ltd,Home Care
Peterborough City Council,Adults,Independent Sector Placements,Services,06/09/2019,8000150895,1040.90,Revenue,Atlas Care Services Ltd,Home Care
Peterborough City Council,Adults,Independent Sector Placements,Services,06/09/2019,8000150897,9524.54,Revenue,CambridgeshireHome Care,Home Care
Peterborough City Council,Adults,Independent Sector Placements,Services,06/09/2019,8000150900,1346.25,Revenue,Hales Group Ltd,Home Care
Peterborough City Council,Adults,Independent Sector Placements,Services,06/09/2019,8000150901,556.98,Revenue,Hales Group Ltd,Home Care
Peterborough City Council,Adults,Independent Sector Placements,Services,06/09/2019,8000150903,2858.32,Revenue,Hales Group Ltd,Home Care
Peterborough City Council,Adults,Independent Sector Placements,Services,06/09/2019,8000150905,882.84,Revenue,Hales Group Ltd,Home Care
Peterborough City Council,Adults,Independent Sector Placements,Services,06/09/2019,8000150907,571.03,Revenue,Hales Group Ltd,Home Care
Peterborough City Council,Adults,Independent Sector Placements,Services,06/09/2019,8000150972,4511.67,Revenue,Hales Group Ltd,Home Care
Peterborough City Council,Adults,Independent Sector Placements,Services,06/09/2019,8000150973,4496.67,Revenue,Hales Group Ltd,Home Care
Peterborough City Council,Adults,Independent Sector Placements,Services,06/09/2019,8000150974,4602.38,Revenue,Hales Group Ltd,Home Care
Peterborough City Council,Capital Financing,Capital Financing,Services,09/09/2019,30240355,1726.03,Revenue,Tradition (UK) Ltd,Brokers Fees
Peterborough City Council,Education,Special Educational Needs / Inclusion,Services,09/09/2019,30240737,616.44,Revenue,121 Social Care Limited,Hired Services
Peterborough City Council,Adults,Independent Sector Placements,Services,09/09/2019,30241372,3762.00,Revenue,Community Care Solutions Ltd,Residential Care
Peterborough City Council,Adults,Independent Sector Placements,Services,09/09/2019,30241373,5600.00,Revenue,Community Care Solutions Ltd,Residential Care
Peterborough City Council,Adults,Independent Sector Placements,Services,09/09/2019,30241374,3762.00,Revenue,Community Care Solutions Ltd,Residential Care
Peterborough City Council,Adults,Independent Sector Placements,Services,09/09/2019,30241375,3762.00,Revenue,Community Care Solutions Ltd,Residential Care
Peterborough City Council,Adults,Independent Sector Placements,Services,09/09/2019,30241376,3762.00,Revenue,Community Care Solutions Ltd,Residential Care
Peterborough City Council,Adults,Independent Sector Placements,Services,09/09/2019,30241377,8049.72,Revenue,Community Care Solutions Ltd,Residential Care
Peterborough City Council,Adults,Independent Sector Placements,Services,09/09/2019,30241378,3762.00,Revenue,Community Care Solutions Ltd,Residential Care
Peterborough City Council,Adults,Independent Sector Placements,Services,09/09/2019,30241379,3762.00,Revenue,Community Care Solutions Ltd,Residential Care
Peterborough City Council,Adults,Independent Sector Placements,Services,09/09/2019,30241380,3762.00,Revenue,Community Care Solutions Ltd,Residential Care
Peterborough City Council,Adults,Independent Sector Placements,Services,09/09/2019,30241381,3762.00,Revenue,Community Care Solutions Ltd,Residential Care
Peterborough City Council,Adults,Independent Sector Placements,Services,09/09/2019,30241382,3762.00,Revenue,Community Care Solutions Ltd,Residential Care
Peterborough City Council,Adults,Independent Sector Placements,Services,09/09/2019,30241708,3218.84,Revenue,Thera East Anglia,Home Care
Peterborough City Council,Adults,Independent Sector Placements,Services,09/09/2019,30241710,4197.12,Revenue,Thera East Anglia,Home Care
Peterborough City Council,Adults,Independent Sector Placements,Services,09/09/2019,30241712,4566.32,Revenue,Thera East Anglia,Home Care
Peterborough City Council,Adults,Independent Sector Placements,Services,09/09/2019,30241716,2440.00,Revenue,Thera East Anglia,Day Care
Peterborough City Council,Adults,Independent Sector Placements,Services,09/09/2019,30241718,2440.00,Revenue,Thera East Anglia,Day Care
Peterborough City Council,Adults,Independent Sector Placements,Services,09/09/2019,30241720,2440.00,Revenue,Thera East Anglia,Day Care
Peterborough City Council,Adults,Independent Sector Placements,Services,09/09/2019,30241722,756.00,Revenue,Thera East Anglia,Day Care
Peterborough City Council,Adults,Independent Sector Placements,Services,09/09/2019,30241723,1260.00,Revenue,Thera East Anglia,Day Care
Peterborough City Council,Adults,Independent Sector Placements,Services,09/09/2019,30241725,1260.00,Revenue,Thera East Anglia,Day Care
Peterborough City Council,Adults,Independent Sector Placements,Services,09/09/2019,30241728,1952.00,Revenue,Thera East Anglia,Day Care
Peterborough City Council,Adults,Independent Sector Placements,Services,09/09/2019,30241758,2440.00,Revenue,Thera East Anglia,Day Care
Peterborough City Council,Adults,Independent Sector Placements,Services,09/09/2019,30241759,2440.00,Revenue,Thera East Anglia,Day Care
Peterborough City Council,Adults,Independent Sector Placements,Services,09/09/2019,30241761,2440.00,Revenue,Thera East Anglia,Day Care
Peterborough City Council,Adults,Independent Sector Placements,Services,09/09/2019,30241762,1260.00,Revenue,Thera East Anglia,Day Care
Peterborough City Council,Adults,Independent Sector Placements,Services,09/09/2019,30241764,504.00,Revenue,Thera East Anglia,Day Care
Peterborough City Council,Adults,Independent Sector Placements,Services,09/09/2019,30241767,756.00,Revenue,Thera East Anglia,Day Care
Peterborough City Council,Adults,Independent Sector Placements,Services,09/09/2019,30241768,860.00,Revenue,Thera East Anglia,Day Care
Peterborough City Council,Adults,Independent Sector Placements,Services,09/09/2019,30241769,1008.00,Revenue,Thera East Anglia,Day Care
Peterborough City Council,Development and Construction,Development Management,Agency Staff,09/09/2019,30241853,1365.01,Revenue,Reed Specialist Recruitment Limited,External Temporary Staff
Peterborough City Council,Adults,Independent Sector Placements,Services,09/09/2019,30241931,860.00,Revenue,Thera East Anglia,Day Care
Peterborough City Council,Adults,Independent Sector Placements,Services,09/09/2019,30241932,1008.00,Revenue,Thera East Anglia,Day Care
Peterborough City Council,Adults,Independent Sector Placements,Services,09/09/2019,30241933,1464.00,Revenue,Thera East Anglia,Day Care
Peterborough City Council,Adults,Independent Sector Placements,Services,09/09/2019,30241934,2440.00,Revenue,Thera East Anglia,Day Care
Peterborough City Council,Adults,Independent Sector Placements,Services,09/09/2019,30241935,3515.00,Revenue,Thera East Anglia,Day Care
Peterborough City Council,Adults,Independent Sector Placements,Services,09/09/2019,30241936,688.00,Revenue,Thera East Anglia,Day Care
Peterborough City Council,Adults,Independent Sector Placements,Services,09/09/2019,30241937,756.00,Revenue,Thera East Anglia,Day Care
Peterborough City Council,Peterborough Highway Services,Transport & Infrastructure Commissioning,Public Transport,09/09/2019,30242490,15228.00,Revenue,First Eastern Counties Buses Ltd,Public Transport
Peterborough City Council,Peterborough Highway Services,Transport & Infrastructure Commissioning,Public Transport,09/09/2019,30242497,15228.00,Revenue,First Eastern Counties Buses Ltd,Public Transport
Peterborough City Council,Peterborough Highway Services,Transport & Infrastructure Commissioning,Public Transport,09/09/2019,30242501,15228.00,Revenue,First Eastern Counties Buses Ltd,Public Transport
Peterborough City Council,Peterborough Highway Services,Transport & Infrastructure Commissioning,Public Transport,09/09/2019,30242508,15228.00,Revenue,First Eastern Counties Buses Ltd,Public Transport
Peterborough City Council,Commissioning and Commercial Operations,Commissioning,Services,09/09/2019,30242592,699.29,Revenue,121 Social Care Limited,Hired Services
Peterborough City Council,Adults,Independent Sector Placements,Services,09/09/2019,30242596,814.75,Revenue,RegionalCare,Home Care
Peterborough City Council,Adults,Independent Sector Placements,Services,09/09/2019,30242602,626.60,Revenue,Better Healthcare Services,Home Care
Peterborough City Council,Adults,Independent Sector Placements,Services,09/09/2019,30242624,1124.60,Revenue,RBL Field House Care LTD,Residential Care
Peterborough City Council,Adults,Independent Sector Placements,Services,09/09/2019,30242625,671.40,Revenue,RBL Field House Care LTD,Residential Care
Peterborough City Council,Adults,Independent Sector Placements,Services,09/09/2019,30242626,1174.40,Revenue,RBL Field House Care LTD,Residential Care
Peterborough City Council,Adults,Independent Sector Placements,Services,09/09/2019,30242627,894.60,Revenue,RBL Field House Care LTD,Residential Care
Peterborough City Council,Adults,Independent Sector Placements,Services,09/09/2019,30242628,954.80,Revenue,RBL Field House Care LTD,Residential Care
Peterborough City Council,Adults,Independent Sector Placements,Services,09/09/2019,30242629,1239.20,Revenue,RBL Field House Care LTD,Residential Care
Peterborough City Council,Adults,Independent Sector Placements,Services,09/09/2019,30242630,1307.40,Revenue,RBL Field House Care LTD,Residential Care
Peterborough City Council,Adults,Independent Sector Placements,Services,09/09/2019,30242631,783.00,Revenue,RBL Field House Care LTD,Residential Care
Peterborough City Council,Adults,Independent Sector Placements,Services,09/09/2019,30242632,826.20,Revenue,RBL Field House Care LTD,Residential Care
Peterborough City Council,Adults,Independent Sector Placements,Services,09/09/2019,30242633,1714.20,Revenue,RBL Field House Care LTD,Residential Care
Peterborough City Council,Adults,Independent Sector Placements,Services,09/09/2019,30242635,1193.20,Revenue,RBL Field House Care LTD,Residential Care
Peterborough City Council,Adults,Independent Sector Placements,Services,09/09/2019,30242636,1254.60,Revenue,RBL Field House Care LTD,Residential Care
Peterborough City Council,Adults,Independent Sector Placements,Services,09/09/2019,30242637,768.00,Revenue,RBL Field House Care LTD,Residential Care
Peterborough City Council,Adults,Independent Sector Placements,Services,09/09/2019,30242638,1657.00,Revenue,RBL Field House Care LTD,Residential Care
Peterborough City Council,Adults,Independent Sector Placements,Services,09/09/2019,30242639,1730.60,Revenue,RBL Field House Care LTD,Residential Care
Peterborough City Council,Adults,Independent Sector Placements,Services,09/09/2019,30242640,1156.72,Revenue,RBL Field House Care LTD,Residential Care
Peterborough City Council,Adults,Independent Sector Placements,Services,09/09/2019,30242641,1336.72,Revenue,RBL Field House Care LTD,Residential Care
Peterborough City Council,Adults,Independent Sector Placements,Services,09/09/2019,30242642,1574.60,Revenue,RBL Field House Care LTD,Residential Care
Peterborough City Council,Adults,Independent Sector Placements,Services,09/09/2019,30242643,1702.96,Revenue,RBL Field House Care LTD,Residential Care
Peterborough City Council,Adults,Independent Sector Placements,Services,09/09/2019,30242644,1830.60,Revenue,RBL Field House Care LTD,Residential Care
Peterborough City Council,Adults,Independent Sector Placements,Services,09/09/2019,30242645,1075.36,Revenue,RBL Field House Care LTD,Residential Care
Peterborough City Council,Adults,Independent Sector Placements,Services,09/09/2019,30242646,1670.60,Revenue,RBL Field House Care LTD,Residential Care
Peterborough City Council,Adults,Independent Sector Placements,Services,09/09/2019,30242647,1644.16,Revenue,RBL Field House Care LTD,Residential Care
Peterborough City Council,Adults,Independent Sector Placements,Services,09/09/2019,30242648,2400.00,Revenue,RBL Field House Care LTD,Residential Care
Peterborough City Council,Adults,Independent Sector Placements,Services,09/09/2019,30242649,1096.44,Revenue,RBL Field House Care LTD,Residential Care
Peterborough City Council,Adults,Independent Sector Placements,Services,09/09/2019,30242650,1734.96,Revenue,RBL Field House Care LTD,Residential Care
Peterborough City Council,Adults,Independent Sector Placements,Services,09/09/2019,30242651,940.12,Revenue,RBL Field House Care LTD,Residential Care
Peterborough City Council,Adults,Independent Sector Placements,Services,09/09/2019,30242652,536.00,Revenue,RBL Field House Care LTD,Residential Care
Peterborough City Council,Adults,Independent Sector Placements,Services,09/09/2019,30242653,1579.60,Revenue,RBL Field House Care LTD,Residential Care
Peterborough City Council,Adults,Independent Sector Placements,Services,09/09/2019,30242654,1830.60,Revenue,RBL Field House Care LTD,Residential Care
Peterborough City Council,Adults,Independent Sector Placements,Services,09/09/2019,30242655,1252.48,Revenue,RBL Field House Care LTD,Residential Care
Peterborough City Council,Adults,Independent Sector Placements,Services,09/09/2019,30242656,2150.60,Revenue,HEREWARD CARE SERVICES LIMITED,Residential Care
Peterborough City Council,Adults,Independent Sector Placements,Services,09/09/2019,30242657,742.50,Revenue,RegionalCare,Home Care
Peterborough City Council,Adults,Independent Sector Placements,Services,09/09/2019,30242659,2591.36,Revenue,STAR RESIDENTIAL HOME LTD,Residential Care
Peterborough City Council,Adults,Independent Sector Placements,Services,09/09/2019,30242660,682.38,Revenue,PRIME LIFE LTD (Caenarvon House),Residential Care
Peterborough City Council,Adults,Independent Sector Placements,Services,09/09/2019,30242674,4772.25,Revenue,Affinity Trust,Home Care
Peterborough City Council,Adults,Independent Sector Placements,Services,09/09/2019,30242676,6363.00,Revenue,Affinity Trust,Home Care
Peterborough City Council,Adults,Independent Sector Placements,Services,09/09/2019,30242679,9930.22,Revenue,Affinity Trust,Home Care
Peterborough City Council,Adults,Independent Sector Placements,Services,09/09/2019,30242680,6363.00,Revenue,Affinity Trust,Home Care
Peterborough City Council,Adults,Independent Sector Placements,Services,09/09/2019,30242681,6240.00,Revenue,Affinity Trust,Home Care
Peterborough City Council,Adults,Independent Sector Placements,Services,09/09/2019,30242682,6240.00,Revenue,Affinity Trust,Home Care
Peterborough City Council,Adults,Independent Sector Placements,Services,09/09/2019,30242683,962.92,Revenue,Oakhouse Home Care Cambs Ltd,Residential Care
Peterborough City Council,Adults,Independent Sector Placements,Services,09/09/2019,30242684,1144.48,Revenue,Oakhouse Home Care Cambs Ltd,Residential Care
Peterborough City Council,Adults,Independent Sector Placements,Services,09/09/2019,30242685,1186.56,Revenue,Oakhouse Home Care Cambs Ltd,Residential Care
Peterborough City Council,Adults,Independent Sector Placements,Services,09/09/2019,30242691,4491.36,Revenue,HEREWARD CARE SERVICES LIMITED,Residential Care
Peterborough City Council,Adults,Independent Sector Placements,Services,09/09/2019,30242692,3431.12,Revenue,HEREWARD CARE SERVICES LIMITED,Residential Care
Peterborough City Council,Adults,Independent Sector Placements,Services,09/09/2019,30242693,1201.22,Revenue,Merit Home Care Ltd,Home Care
Peterborough City Council,Adults,Independent Sector Placements,Services,09/09/2019,30242695,175.96,Revenue,Merit Home Care Ltd,Home Care
Peterborough City Council,Adults,Independent Sector Placements,Services,09/09/2019,30242695,657.90,Revenue,Merit Home Care Ltd,Home Care
Peterborough City Council,Adults,Independent Sector Placements,Services,09/09/2019,30242696,8255.68,Revenue,NEW BOUNDARIES COMMUNITY SERVICES LTD,Residential Care
Peterborough City Council,Children's & Safeguarding,Children's Social Care,Agency Staff,09/09/2019,30242745,1302.40,Revenue,HCL Social Care Ltd,External Temporary Staff
Peterborough City Council,Adults,Independent Sector Placements,Services,09/09/2019,30242788,2767.86,Revenue,Avery House (Peterborough) t/a Brighterkind,Residential Care
Peterborough City Council,Commissioning and Commercial Operations,Access to Resources & Specialist Commissioning,Services,09/09/2019,30242790,13392.00,Revenue,Semi-Independent House,Boarding Out Fees
Peterborough City Council,Adults,Independent Sector Placements,Services,09/09/2019,30242802,825.93,Revenue,K2 CARE LTD,Home Care
Peterborough City Council,Adults,Independent Sector Placements,Services,09/09/2019,30242807,726.42,Revenue,Avery House (Peterborough) t/a Brighterkind,Residential Care
Peterborough City Council,Adults,Independent Sector Placements,Services,09/09/2019,30242825,1494.15,Revenue,Hales Group Ltd,Home Care
Peterborough City Council,Peterborough Serco Strategic Partnership,PSSP Retained Services,Public Transport,09/09/2019,30242828,11080.41,Revenue,Capita Travel & Events,Public Transport
Peterborough City Council,Adults,Independent Sector Placements,Services,09/09/2019,30242835,964.34,Revenue,MEARS GROUP,Home Care
Peterborough City Council,Adults,Independent Sector Placements,Services,09/09/2019,30242838,-2150.60,Revenue,HEREWARD CARE SERVICES LIMITED,Residential Care
Peterborough City Council,Adults,Independent Sector Placements,Services,09/09/2019,30242840,8823.64,Revenue,Heathcotes PD Ltd,Residential Care
Peterborough City Council,Adults,Independent Sector Placements,Services,09/09/2019,30242854,1457.07,Revenue,RBL Field House Care LTD,Residential Care
Peterborough City Council,Children's & Safeguarding,External Education Placements,Services,09/09/2019,30242856,9170.00,Revenue,Shropshire County Council,Education Expenses
Peterborough City Council,Adults,Independent Sector Placements,Services,09/09/2019,30242862,506.16,Revenue,Sense,Day Care
Peterborough City Council,Adults,Independent Sector Placements,Services,09/09/2019,30242863,3232.86,Revenue,Transitions Supported Living Ltd,Home Care
Peterborough City Council,Adults,Independent Sector Placements,Services,09/09/2019,30242877,5079.36,Revenue,LEONARD CHESHIRE DISABILITY,Residential Care
Peterborough City Council,Adults,Independent Sector Placements,Services,09/09/2019,30242878,2690.04,Revenue,LEONARD CHESHIRE DISABILITY,Residential Care
Peterborough City Council,Adults,Independent Sector Placements,Services,09/09/2019,30242880,942.81,Revenue,RBL Field House Care LTD,Residential Care
Peterborough City Council,Adults,Independent Sector Placements,Services,09/09/2019,30242881,1714.20,Revenue,RBL Field House Care LTD,Residential Care
Peterborough City Council,Adults,Independent Sector Placements,Services,09/09/2019,30242883,3864.68,Revenue,Consensus Support Services Ltd,Residential Care
Peterborough City Council,Adults,Independent Sector Placements,Services,09/09/2019,30242884,1926.60,Revenue,South West Care Homes LTD (The Firs),Residential Care
Peterborough City Council,Adults,Independent Sector Placements,Services,09/09/2019,30242885,1852.48,Revenue,The Cedars Bourne Care Home,Residential Care
Peterborough City Council,Adults,Independent Sector Placements,Services,09/09/2019,30242905,3625.08,Revenue,"ATCHISON, MR ALAN",Residential Care
Peterborough City Council,Adults,Independent Sector Placements,Services,09/09/2019,30242906,685.28,Revenue,"ATCHISON, MR ALAN",Residential Care
Peterborough City Council,Adults,Independent Sector Placements,Services,09/09/2019,30242907,3812.84,Revenue,"ATCHISON, MR ALAN",Residential Care
Peterborough City Council,Adults,Independent Sector Placements,Services,09/09/2019,30242908,2794.32,Revenue,"ATCHISON, MR ALAN",Residential Care
Peterborough City Council,Adults,Independent Sector Placements,Services,09/09/2019,30242909,3103.92,Revenue,"ATCHISON, MR ALAN",Residential Care
Peterborough City Council,Adults,Independent Sector Placements,Services,09/09/2019,30242910,4288.00,Revenue,"ATCHISON, MR ALAN",Residential Care
Peterborough City Council,Adults,Independent Sector Placements,Services,09/09/2019,30242911,3065.60,Revenue,"ATCHISON, MR ALAN",Residential Care
Peterborough City Council,Adults,Independent Sector Placements,Services,09/09/2019,30242912,4904.00,Revenue,"ATCHISON, MR ALAN",Residential Care
Peterborough City Council,Adults,Independent Sector Placements,Services,09/09/2019,30242913,2162.28,Revenue,"ATCHISON, MR ALAN",Residential Care
Peterborough City Council,Adults,Independent Sector Placements,Services,09/09/2019,30242914,660.00,Revenue,"ATCHISON, MR ALAN",Residential Care
Peterborough City Council,Adults,Independent Sector Placements,Services,09/09/2019,30242915,756.00,Revenue,"ATCHISON, MR ALAN",Residential Care
Peterborough City Council,Adults,Independent Sector Placements,Services,09/09/2019,30242916,5234.63,Revenue,"ATCHISON, MR ALAN",Residential Care
Peterborough City Council,Adults,Independent Sector Placements,Services,09/09/2019,30242917,1954.32,Revenue,"ATCHISON, MR ALAN",Residential Care
Peterborough City Council,Adults,Independent Sector Placements,Services,09/09/2019,30242918,1954.32,Revenue,"ATCHISON, MR ALAN",Residential Care
Peterborough City Council,Adults,Independent Sector Placements,Services,09/09/2019,30242919,2345.20,Revenue,"ATCHISON, MR ALAN",Residential Care
Peterborough City Council,Adults,Independent Sector Placements,Services,09/09/2019,30242920,2337.52,Revenue,"ATCHISON, MR ALAN",Residential Care
Peterborough City Council,Adults,Independent Sector Placements,Services,09/09/2019,30242921,2162.24,Revenue,"ATCHISON, MR ALAN",Residential Care
Peterborough City Council,Adults,Independent Sector Placements,Services,09/09/2019,30242922,3200.00,Revenue,"ATCHISON, MR ALAN",Residential Care
Peterborough City Council,Adults,Independent Sector Placements,Services,09/09/2019,30242923,4391.48,Revenue,"ATCHISON, MR ALAN",Residential Care
Peterborough City Council,Commissioning and Commercial Operations,Access to Resources & Specialist Commissioning,Services,09/09/2019,30242928,7200.00,Revenue,Her Majesty's Prison and Probation Service,Boarding Out Fees
Peterborough City Council,Adults,Independent Sector Placements,Services,09/09/2019,30242940,3400.00,Revenue,EXCELCARE GLENNFIELD HOUSE,Residential Care
Peterborough City Council,Adults,Independent Sector Placements,Services,09/09/2019,30242941,2540.00,Revenue,EXCELCARE GLENNFIELD HOUSE,Residential Care
Peterborough City Council,Adults,Independent Sector Placements,Services,09/09/2019,30242942,2001.60,Revenue,EXCELCARE GLENNFIELD HOUSE,Residential Care
Peterborough City Council,Adults,Independent Sector Placements,Services,09/09/2019,30242943,3720.00,Revenue,EXCELCARE GLENNFIELD HOUSE,Residential Care
Peterborough City Council,Adults,Independent Sector Placements,Services,09/09/2019,30242944,3600.00,Revenue,EXCELCARE GLENNFIELD HOUSE,Residential Care
Peterborough City Council,Adults,Independent Sector Placements,Services,09/09/2019,30242946,3200.00,Revenue,EXCELCARE GLENNFIELD HOUSE,Residential Care
Peterborough City Council,Adults,Independent Sector Placements,Services,09/09/2019,30242947,2420.00,Revenue,Excelcare Aliwal Manor,Residential Care
Peterborough City Council,Adults,Independent Sector Placements,Services,09/09/2019,30242953,-1892.68,Revenue,STAR RESIDENTIAL HOME LTD,Residential Care
Peterborough City Council,Adults,Independent Sector Placements,Services,09/09/2019,30242958,2437.00,Revenue,Benell Care Services Ltd,Residential Care
Peterborough City Council,Adults,Independent Sector Placements,Services,09/09/2019,30242959,4871.43,Revenue,Askham Village Community Ltd,Residential Care
Peterborough City Council,Adults,Independent Sector Placements,Services,09/09/2019,30242965,4871.43,Revenue,Askham Village Community Ltd,Residential Care
Peterborough City Council,Adults,Independent Sector Placements,Services,09/09/2019,30242968,-814.75,Revenue,RegionalCare,Home Care
Peterborough City Council,Adults,Independent Sector Placements,Services,09/09/2019,30242980,1892.72,Revenue,PHILIA LODGE REST HOME,Residential Care
Peterborough City Council,Adults,Independent Sector Placements,Services,09/09/2019,30242981,2648.00,Revenue,PHILIA LODGE REST HOME,Residential Care
Peterborough City Council,Adults,Independent Sector Placements,Services,09/09/2019,30242982,1646.20,Revenue,PHILIA LODGE REST HOME,Residential Care
Peterborough City Council,Adults,Independent Sector Placements,Services,09/09/2019,30242983,1166.24,Revenue,PHILIA LODGE REST HOME,Residential Care
Peterborough City Council,Adults,Independent Sector Placements,Services,09/09/2019,30242984,2011.28,Revenue,PHILIA LODGE REST HOME,Residential Care
Peterborough City Council,Adults,Independent Sector Placements,Services,09/09/2019,30242985,2648.00,Revenue,PHILIA LODGE REST HOME,Residential Care
Peterborough City Council,Adults,Independent Sector Placements,Services,09/09/2019,30242986,2648.00,Revenue,PHILIA LODGE REST HOME,Residential Care
Peterborough City Council,Adults,Independent Sector Placements,Services,09/09/2019,30242987,2648.00,Revenue,PHILIA LODGE REST HOME,Residential Care
Peterborough City Council,Adults,Independent Sector Placements,Services,09/09/2019,30242988,2648.00,Revenue,PHILIA LODGE REST HOME,Residential Care
Peterborough City Council,Adults,Independent Sector Placements,Services,09/09/2019,30242989,707.15,Revenue,PHILIA LODGE REST HOME,Residential Care
Peterborough City Council,Adults,Independent Sector Placements,Services,09/09/2019,30242990,707.15,Revenue,PHILIA LODGE REST HOME,Residential Care
Peterborough City Council,Adults,Independent Sector Placements,Services,09/09/2019,30242991,707.15,Revenue,PHILIA LODGE REST HOME,Residential Care
Peterborough City Council,Adults,Independent Sector Placements,Services,09/09/2019,30242992,707.15,Revenue,PHILIA LODGE REST HOME,Residential Care
Peterborough City Council,Adults,Independent Sector Placements,Services,09/09/2019,30242993,707.15,Revenue,PHILIA LODGE REST HOME,Residential Care
Peterborough City Council,Adults,Independent Sector Placements,Services,09/09/2019,30242994,707.15,Revenue,PHILIA LODGE REST HOME,Residential Care
Peterborough City Council,Adults,Independent Sector Placements,Services,09/09/2019,30242995,707.15,Revenue,PHILIA LODGE REST HOME,Residential Care
Peterborough City Council,Adults,Independent Sector Placements,Services,09/09/2019,30242996,707.14,Revenue,PHILIA LODGE REST HOME,Residential Care
Peterborough City Council,Adults,Independent Sector Placements,Services,09/09/2019,30242997,707.15,Revenue,PHILIA LODGE REST HOME,Residential Care
Peterborough City Council,Adults,Independent Sector Placements,Services,09/09/2019,30242998,1892.72,Revenue,PHILIA LODGE REST HOME,Residential Care
Peterborough City Council,Adults,Independent Sector Placements,Services,09/09/2019,30242999,3318.75,Revenue,THE HELPING HANDS GROUP,Day Care
Peterborough City Council,Adults,Independent Sector Placements,Services,09/09/2019,30243000,2186.60,Revenue,STAR RESIDENTIAL HOME LTD,Residential Care
Peterborough City Council,Adults,Independent Sector Placements,Services,09/09/2019,30243001,1593.00,Revenue,THE HELPING HANDS GROUP,Day Care
Peterborough City Council,Adults,Independent Sector Placements,Services,09/09/2019,30243002,3233.44,Revenue,STAR RESIDENTIAL HOME LTD,Residential Care
Peterborough City Council,Adults,Independent Sector Placements,Services,09/09/2019,30243003,2035.40,Revenue,STAR RESIDENTIAL HOME LTD,Residential Care
Peterborough City Council,Adults,Independent Sector Placements,Services,09/09/2019,30243004,2186.96,Revenue,STAR RESIDENTIAL HOME LTD,Residential Care
Peterborough City Council,Adults,Independent Sector Placements,Services,09/09/2019,30243005,1490.24,Revenue,STAR RESIDENTIAL HOME LTD,Residential Care
Peterborough City Council,Adults,Independent Sector Placements,Services,09/09/2019,30243006,1543.64,Revenue,STAR RESIDENTIAL HOME LTD,Residential Care
Peterborough City Council,Adults,Independent Sector Placements,Services,09/09/2019,30243007,1723.76,Revenue,STAR RESIDENTIAL HOME LTD,Residential Care
Peterborough City Council,Adults,Independent Sector Placements,Services,09/09/2019,30243008,1260.00,Revenue,THE HELPING HANDS GROUP,Day Care
Peterborough City Council,Adults,Independent Sector Placements,Services,09/09/2019,30243009,1260.00,Revenue,THE HELPING HANDS GROUP,Day Care
Peterborough City Council,Adults,Independent Sector Placements,Services,09/09/2019,30243010,2034.40,Revenue,STAR RESIDENTIAL HOME LTD,Residential Care
Peterborough City Council,Adults,Independent Sector Placements,Services,09/09/2019,30243011,1985.56,Revenue,STAR RESIDENTIAL HOME LTD,Residential Care
Peterborough City Council,Adults,Independent Sector Placements,Services,09/09/2019,30243012,2440.00,Revenue,THE HELPING HANDS GROUP,Day Care
Peterborough City Council,Adults,Independent Sector Placements,Services,09/09/2019,30243013,2600.80,Revenue,STAR RESIDENTIAL HOME LTD,Residential Care
Peterborough City Council,Adults,Independent Sector Placements,Services,09/09/2019,30243014,2655.00,Revenue,THE HELPING HANDS GROUP,Day Care
Peterborough City Council,Adults,Independent Sector Placements,Services,09/09/2019,30243015,2030.60,Revenue,STAR RESIDENTIAL HOME LTD,Residential Care
Peterborough City Council,Adults,Independent Sector Placements,Services,09/09/2019,30243016,1593.00,Revenue,THE HELPING HANDS GROUP,Day Care
Peterborough City Council,Adults,Independent Sector Placements,Services,09/09/2019,30243017,1930.40,Revenue,STAR RESIDENTIAL HOME LTD,Residential Care
Peterborough City Council,Adults,Independent Sector Placements,Services,09/09/2019,30243018,2440.00,Revenue,THE HELPING HANDS GROUP,Day Care
Peterborough City Council,Adults,Independent Sector Placements,Services,09/09/2019,30243019,2223.56,Revenue,STAR RESIDENTIAL HOME LTD,Residential Care
Peterborough City Council,Adults,Independent Sector Placements,Services,09/09/2019,30243020,1892.68,Revenue,STAR RESIDENTIAL HOME LTD,Residential Care
Peterborough City Council,Adults,Independent Sector Placements,Services,09/09/2019,30243022,1062.00,Revenue,THE HELPING HANDS GROUP,Day Care
Peterborough City Council,Adults,Independent Sector Placements,Services,09/09/2019,30243023,1464.00,Revenue,THE HELPING HANDS GROUP,Day Care
Peterborough City Council,Adults,Independent Sector Placements,Services,09/09/2019,30243024,1389.00,Revenue,THE HELPING HANDS GROUP,Day Care
Peterborough City Council,Adults,Independent Sector Placements,Services,09/09/2019,30243025,1260.00,Revenue,THE HELPING HANDS GROUP,Day Care
Peterborough City Council,Adults,Independent Sector Placements,Services,09/09/2019,30243026,3837.50,Revenue,THE HELPING HANDS GROUP,Day Care
Peterborough City Council,Adults,Independent Sector Placements,Services,09/09/2019,30243027,504.00,Revenue,THE HELPING HANDS GROUP,Day Care
Peterborough City Council,Adults,Independent Sector Placements,Services,09/09/2019,30243028,2124.00,Revenue,THE HELPING HANDS GROUP,Day Care
Peterborough City Council,Adults,Independent Sector Placements,Services,09/09/2019,30243029,976.00,Revenue,THE HELPING HANDS GROUP,Day Care
Peterborough City Council,Adults,Independent Sector Placements,Services,09/09/2019,30243030,1008.00,Revenue,THE HELPING HANDS GROUP,Day Care
Peterborough City Council,Adults,Independent Sector Placements,Services,09/09/2019,30243031,756.00,Revenue,THE HELPING HANDS GROUP,Day Care
Peterborough City Council,Adults,Independent Sector Placements,Services,09/09/2019,30243032,504.00,Revenue,THE HELPING HANDS GROUP,Day Care
Peterborough City Council,Adults,Independent Sector Placements,Services,09/09/2019,30243033,2440.00,Revenue,THE HELPING HANDS GROUP,Day Care
Peterborough City Council,Adults,Independent Sector Placements,Services,09/09/2019,30243035,999.75,Revenue,THE HELPING HANDS GROUP,Day Care
Peterborough City Council,Communities,Parking Services,Water Services,09/09/2019,30243036,658.52,Revenue,Anglian Water Business National,Water
Peterborough City Council,"Waste, Cleansing and Open Spaces",Waste & Operational Svs Mgmt,Water Services,09/09/2019,30243036,503.76,Revenue,Anglian Water Business National,Water
Peterborough City Council,Communities,Cultural Services,Energy Costs,09/09/2019,30243038,1500.35,Revenue,Corona Energy Retail 4 Limited,Gas
Peterborough City Council,"Cemeteries, Cremation & Registrars",Bereavement Service,Energy Costs,09/09/2019,30243038,3738.93,Revenue,Corona Energy Retail 4 Limited,Gas
Peterborough City Council,Corporate,Corporate,Non Revenue,09/09/2019,30243050,1233.64,Balance Sheet,The Prudential Assurance Company Ltd,Pensions
Peterborough City Council,Corporate,Corporate,Non Revenue,09/09/2019,30243051,5439.46,Balance Sheet,The Prudential Assurance Company Ltd,Pensions
Peterborough City Council,Corporate,Corporate,Non Revenue,09/09/2019,30243052,12000.00,Capital,Sovereign Property Services Ltd,Grant Payment
Peterborough City Council,Adults,Independent Sector Placements,Services,09/09/2019,30243054,835.45,Revenue,Better Healthcare Services,Home Care
Peterborough City Council,Adults,Independent Sector Placements,Services,09/09/2019,30243055,-5468.94,Revenue,Affinity Trust,Home Care
Peterborough City Council,Education,PFI,Water Services,09/09/2019,30243057,7633.87,Revenue,Anglian Water Business National,Water
Peterborough City Council,Communities,Cultural Services,Water Services,09/09/2019,30243057,4527.67,Revenue,Anglian Water Business National,Water
Peterborough City Council,Education,PFI,Water Services,09/09/2019,30243059,543.83,Revenue,Anglian Water Business National,Water
Peterborough City Council,Corporate Property,Office Accomodation,Water Services,09/09/2019,30243061,5233.82,Revenue,Anglian Water Business National,Water
Peterborough City Council,Corporate Property,Commercial Propety,Rents,09/09/2019,30243074,39000.00,Revenue,Savills (UK) Ltd,Rent
Peterborough City Council,Adults,Other Services,Third Party Payments,09/09/2019,30243093,10416.00,Revenue,P'Boro Council For Voluntary Srvs (PCVS),Third Party Payments - Contract
Peterborough City Council,Adults,Home Services Delivery Model,Third Party Payments,09/09/2019,30243098,8259.09,Revenue,Cross Keys Homes,Grant-Third Party
Peterborough City Council,Adults,Home Services Delivery Model,Third Party Payments,09/09/2019,30243099,8259.09,Revenue,Cross Keys Homes,Grant-Third Party
Peterborough City Council,Communities,Housing,Services,09/09/2019,30243110,1885.00,Revenue,Singh and Sons Property Management Ltd,Temporary Accommodation Costs
Peterborough City Council,Communities,Housing,Services,09/09/2019,30243111,3150.00,Revenue,Singh and Sons Property Management Ltd,Temporary Accommodation Costs
Peterborough City Council,Communities,Housing,Services,09/09/2019,30243112,2945.00,Revenue,Singh and Sons Property Management Ltd,Temporary Accommodation Costs
Peterborough City Council,Communities,Housing,Services,09/09/2019,30243114,2975.00,Revenue,Singh and Sons Property Management Ltd,Temporary Accommodation Costs
Peterborough City Council,Communities,Housing,Services,09/09/2019,30243115,1950.00,Revenue,Singh and Sons Property Management Ltd,Temporary Accommodation Costs
Peterborough City Council,Communities,Housing,Services,09/09/2019,30243116,2505.00,Revenue,Singh and Sons Property Management Ltd,Temporary Accommodation Costs
Peterborough City Council,Communities,Housing,Services,09/09/2019,30243118,3020.00,Revenue,Singh and Sons Property Management Ltd,Temporary Accommodation Costs
Peterborough City Council,Communities,Housing,Services,09/09/2019,30243119,2660.00,Revenue,Singh and Sons Property Management Ltd,Temporary Accommodation Costs
Peterborough City Council,Adults,Independent Sector Placements,Services,09/09/2019,8000149801,712.80,Revenue,Allied Health Services Ltd T/A Allied Healthcare,Home Care
Peterborough City Council,Adults,Independent Sector Placements,Services,09/09/2019,8000149807,535.65,Revenue,Allied Health Services Ltd T/A Allied Healthcare,Home Care
Peterborough City Council,Adults,Independent Sector Placements,Services,09/09/2019,8000149809,873.15,Revenue,Allied Health Services Ltd T/A Allied Healthcare,Home Care
Peterborough City Council,Adults,Independent Sector Placements,Services,09/09/2019,8000149810,1807.35,Revenue,Allied Health Services Ltd T/A Allied Healthcare,Home Care
Peterborough City Council,Adults,Independent Sector Placements,Services,09/09/2019,8000149812,2833.65,Revenue,Allied Health Services Ltd T/A Allied Healthcare,Home Care
Peterborough City Council,Commissioning and Commercial Operations,Clare Lodge,"Tools, Equipment, Furniture & Materials",11/09/2019,30239063,1260.00,Revenue,Tough Furniture Ltd,Furniture And Equipment Purchase
Peterborough City Council,Adults,Block Contracts,Contract Hire and Operating Leases,11/09/2019,30239076,5034.04,Revenue,Sense,Hired Transport
Peterborough City Council,Commissioning and Commercial Operations,Access to Resources & Specialist Commissioning,Services,11/09/2019,30239596,3410.00,Revenue,Compass Fostering East Limited,Boarding Out Fees
Peterborough City Council,Adults,Independent Sector Placements,Services,11/09/2019,30239959,823.00,Revenue,Richmond Fellowship (The),Residential Care
Peterborough City Council,Communities,Cultural Services,Repair & Maintenance of Buildings,11/09/2019,30240333,515.00,Revenue,Jones Lang LaSalle,Service Charges - Premises
Peterborough City Council,Corporate,Corporate,Non Revenue,11/09/2019,30240678,750.00,Balance Sheet,Best Answer Subsidence Engineering Ltd,Professional Services
Peterborough City Council,Education,HTS & CSC Transport,Contract Hire and Operating Leases,11/09/2019,30240851,2282.50,Revenue,Cambridgeshire County Council,Hired Transport
Peterborough City Council,Education,HTS & CSC Transport,Contract Hire and Operating Leases,11/09/2019,30240852,1441.70,Revenue,Cambridgeshire County Council,Hired Transport
Peterborough City Council,Education,HTS & CSC Transport,Contract Hire and Operating Leases,11/09/2019,30240853,1381.36,Revenue,Cambridgeshire County Council,Hired Transport
Peterborough City Council,Education,HTS & CSC Transport,Contract Hire and Operating Leases,11/09/2019,30240854,2300.76,Revenue,Cambridgeshire County Council,Hired Transport
Peterborough City Council,Adults,Independent Sector Placements,Services,11/09/2019,30241122,-4716.68,Revenue,Turning Point Services Ltd,Home Care
Peterborough City Council,Commissioning and Commercial Operations,Access to Resources & Specialist Commissioning,Services,11/09/2019,30241297,15996.00,Revenue,Positive Steps (Care Services) Ltd,Boarding Out Fees
Peterborough City Council,Corporate,Corporate,Non Revenue,11/09/2019,30241346,10941.00,Balance Sheet,Local Housing Group Ltd,Refunds
Peterborough City Council,Commissioning and Commercial Operations,Access to Resources & Specialist Commissioning,Services,11/09/2019,30241581,4380.30,Revenue,Foster Care Associates Ltd FCA,Boarding Out Fees
Peterborough City Council,Commissioning and Commercial Operations,Access to Resources & Specialist Commissioning,Services,11/09/2019,30241583,3556.01,Revenue,Foster Care Associates Ltd FCA,Boarding Out Fees
Peterborough City Council,Commissioning and Commercial Operations,Access to Resources & Specialist Commissioning,Services,11/09/2019,30241584,4248.89,Revenue,Foster Care Associates Ltd FCA,Boarding Out Fees
Peterborough City Council,Commissioning and Commercial Operations,Access to Resources & Specialist Commissioning,Services,11/09/2019,30241585,3556.01,Revenue,Foster Care Associates Ltd FCA,Boarding Out Fees
Peterborough City Council,Commissioning and Commercial Operations,Access to Resources & Specialist Commissioning,Services,11/09/2019,30241587,3202.30,Revenue,Foster Care Associates Ltd FCA,Boarding Out Fees
Peterborough City Council,Commissioning and Commercial Operations,Access to Resources & Specialist Commissioning,Services,11/09/2019,30241588,3301.50,Revenue,Foster Care Associates Ltd FCA,Boarding Out Fees
Peterborough City Council,Commissioning and Commercial Operations,Access to Resources & Specialist Commissioning,Services,11/09/2019,30241589,3626.69,Revenue,Foster Care Associates Ltd FCA,Boarding Out Fees
Peterborough City Council,Commissioning and Commercial Operations,Access to Resources & Specialist Commissioning,Services,11/09/2019,30241590,3113.33,Revenue,Foster Care Associates Ltd FCA,Boarding Out Fees
Peterborough City Council,Commissioning and Commercial Operations,Access to Resources & Specialist Commissioning,Services,11/09/2019,30241591,4292.69,Revenue,Foster Care Associates Ltd FCA,Boarding Out Fees
Peterborough City Council,Commissioning and Commercial Operations,Access to Resources & Specialist Commissioning,Services,11/09/2019,30241627,3620.80,Revenue,Fostering Solutions Limited,Boarding Out Fees
Peterborough City Council,Commissioning and Commercial Operations,Access to Resources & Specialist Commissioning,Services,11/09/2019,30241630,3541.44,Revenue,Fostering Solutions Limited,Boarding Out Fees
Peterborough City Council,Commissioning and Commercial Operations,Access to Resources & Specialist Commissioning,Services,11/09/2019,30241633,3444.41,Revenue,Fostering Solutions Limited,Boarding Out Fees
Peterborough City Council,Commissioning and Commercial Operations,Access to Resources & Specialist Commissioning,Services,11/09/2019,30241634,3609.33,Revenue,Fostering Solutions Limited,Boarding Out Fees
Peterborough City Council,Commissioning and Commercial Operations,Access to Resources & Specialist Commissioning,Services,11/09/2019,30241635,3541.44,Revenue,Fostering Solutions Limited,Boarding Out Fees
Peterborough City Council,Commissioning and Commercial Operations,Access to Resources & Specialist Commissioning,Services,11/09/2019,30241636,3498.66,Revenue,Fostering Solutions Limited,Boarding Out Fees
Peterborough City Council,Commissioning and Commercial Operations,Access to Resources & Specialist Commissioning,Services,11/09/2019,30241637,2860.77,Revenue,Fostering Solutions Limited,Boarding Out Fees
Peterborough City Council,Commissioning and Commercial Operations,Access to Resources & Specialist Commissioning,Services,11/09/2019,30241638,3541.44,Revenue,Fostering Solutions Limited,Boarding Out Fees
Peterborough City Council,Commissioning and Commercial Operations,Access to Resources & Specialist Commissioning,Services,11/09/2019,30241639,4011.97,Revenue,Fostering Solutions Limited,Boarding Out Fees
Peterborough City Council,Commissioning and Commercial Operations,Access to Resources & Specialist Commissioning,Services,11/09/2019,30241641,3620.80,Revenue,Fostering Solutions Limited,Boarding Out Fees
Peterborough City Council,Commissioning and Commercial Operations,Access to Resources & Specialist Commissioning,Services,11/09/2019,30241644,3548.26,Revenue,Fostering Solutions Limited,Boarding Out Fees
Peterborough City Council,Commissioning and Commercial Operations,Access to Resources & Specialist Commissioning,Services,11/09/2019,30241645,3620.80,Revenue,Fostering Solutions Limited,Boarding Out Fees
Peterborough City Council,Commissioning and Commercial Operations,Access to Resources & Specialist Commissioning,Services,11/09/2019,30241647,4011.97,Revenue,Fostering Solutions Limited,Boarding Out Fees
Peterborough City Council,Commissioning and Commercial Operations,Access to Resources & Specialist Commissioning,Services,11/09/2019,30241649,6009.66,Revenue,Fostering Solutions Limited,Boarding Out Fees
Peterborough City Council,Commissioning and Commercial Operations,Access to Resources & Specialist Commissioning,Services,11/09/2019,30241650,3548.26,Revenue,Fostering Solutions Limited,Boarding Out Fees
Peterborough City Council,Adults,Independent Sector Placements,Services,11/09/2019,30241656,6543.32,Revenue,Mencap,Home Care
Peterborough City Council,Adults,Independent Sector Placements,Services,11/09/2019,30241657,2223.00,Revenue,Mencap,Home Care
Peterborough City Council,Adults,Independent Sector Placements,Services,11/09/2019,30241658,1647.20,Revenue,Mencap,Home Care
Peterborough City Council,Adults,Independent Sector Placements,Services,11/09/2019,30241659,1107.60,Revenue,Mencap,Home Care
Peterborough City Council,Adults,Independent Sector Placements,Services,11/09/2019,30241660,7439.20,Revenue,Mencap,Home Care
Peterborough City Council,Adults,Independent Sector Placements,Services,11/09/2019,30241661,1476.80,Revenue,Mencap,Home Care
Peterborough City Council,Adults,Independent Sector Placements,Services,11/09/2019,30241662,568.00,Revenue,Mencap,Home Care
Peterborough City Council,Adults,Independent Sector Placements,Services,11/09/2019,30241663,2215.20,Revenue,Mencap,Home Care
Peterborough City Council,Adults,Independent Sector Placements,Services,11/09/2019,30241664,7277.40,Revenue,Mencap,Home Care
Peterborough City Council,Adults,Independent Sector Placements,Services,11/09/2019,30241667,568.00,Revenue,Mencap,Home Care
Peterborough City Council,Adults,Independent Sector Placements,Services,11/09/2019,30241669,852.00,Revenue,Mencap,Home Care
Peterborough City Council,Adults,Independent Sector Placements,Services,11/09/2019,30241670,852.00,Revenue,Mencap,Home Care
Peterborough City Council,Adults,Independent Sector Placements,Services,11/09/2019,30241671,1940.68,Revenue,Mencap,Home Care
Peterborough City Council,Adults,Independent Sector Placements,Services,11/09/2019,30241673,2204.80,Revenue,Mencap,Home Care
Peterborough City Council,Adults,Independent Sector Placements,Services,11/09/2019,30241674,8251.60,Revenue,Mencap,Home Care
Peterborough City Council,Adults,Independent Sector Placements,Services,11/09/2019,30241675,2465.64,Revenue,Mencap,Home Care
Peterborough City Council,Adults,Independent Sector Placements,Services,11/09/2019,30241677,852.00,Revenue,Mencap,Home Care
Peterborough City Council,Adults,Independent Sector Placements,Services,11/09/2019,30241678,562.40,Revenue,Mencap,Home Care
Peterborough City Council,Adults,Independent Sector Placements,Services,11/09/2019,30241679,8106.00,Revenue,Mencap,Home Care
Peterborough City Council,Adults,Independent Sector Placements,Services,11/09/2019,30241680,3687.04,Revenue,Mencap,Home Care
Peterborough City Council,Adults,Independent Sector Placements,Services,11/09/2019,30241681,568.00,Revenue,Mencap,Home Care
Peterborough City Council,Adults,Independent Sector Placements,Services,11/09/2019,30241682,681.60,Revenue,Mencap,Home Care
Peterborough City Council,Adults,Independent Sector Placements,Services,11/09/2019,30241686,1576.24,Revenue,Maxey House Res Home,Residential Care
Peterborough City Council,Adults,Independent Sector Placements,Services,11/09/2019,30241687,1213.32,Revenue,Maxey House Res Home,Residential Care
Peterborough City Council,Adults,Independent Sector Placements,Services,11/09/2019,30241688,1530.60,Revenue,Maxey House Res Home,Residential Care
Peterborough City Council,Adults,Independent Sector Placements,Services,11/09/2019,30241690,1284.48,Revenue,Maxey House Res Home,Residential Care
Peterborough City Council,Adults,Independent Sector Placements,Services,11/09/2019,30241692,1679.96,Revenue,Maxey House Res Home,Residential Care
Peterborough City Council,Adults,Independent Sector Placements,Services,11/09/2019,30241693,1821.88,Revenue,Maxey House Res Home,Residential Care
Peterborough City Council,Adults,Independent Sector Placements,Services,11/09/2019,30241694,1821.88,Revenue,Maxey House Res Home,Residential Care
Peterborough City Council,Adults,Independent Sector Placements,Services,11/09/2019,30241695,2000.00,Revenue,Maxey House Res Home,Residential Care
Peterborough City Council,Adults,Independent Sector Placements,Services,11/09/2019,30241696,975.20,Revenue,Maxey House Res Home,Residential Care
Peterborough City Council,Peterborough Highway Services,Transport & Infrastructure Commissioning,Public Transport,11/09/2019,30241703,189929.58,Revenue,Stagecoach in Peterborough,Public Transport
Peterborough City Council,Peterborough Highway Services,Transport & Infrastructure Commissioning,Public Transport,11/09/2019,30241709,1937.89,Revenue,Stagecoach in Peterborough,Public Transport
Peterborough City Council,Peterborough Highway Services,Transport & Infrastructure Commissioning,Public Transport,11/09/2019,30241724,1937.89,Revenue,Stagecoach in Peterborough,Public Transport
Peterborough City Council,Peterborough Highway Services,Transport & Infrastructure Commissioning,Public Transport,11/09/2019,30241726,527.73,Revenue,Stagecoach in Peterborough,Public Transport
Peterborough City Council,Peterborough Highway Services,Transport & Infrastructure Commissioning,Public Transport,11/09/2019,30241727,1937.89,Revenue,Stagecoach in Peterborough,Public Transport
Peterborough City Council,Constitutional Services,Democratic Services,"Tools, Equipment, Furniture & Materials",11/09/2019,30241775,1790.00,Revenue,Serco Ltd,Computer Hardware
Peterborough City Council,Corporate,Corporate,Non Revenue,11/09/2019,30241776,2121.76,Capital,Serco Ltd,Computer Software
Peterborough City Council,Communities,Service Director - Adults & Communities,Services,11/09/2019,30241822,800.00,Revenue,PT Consultancy,Consultants Fees
Peterborough City Council,Development and Construction,Building Control,Agency Staff,11/09/2019,30241903,2124.80,Revenue,Reed Specialist Recruitment Limited,External Temporary Staff
Peterborough City Council,Corporate,Corporate,Non Revenue,11/09/2019,30242176,2927.75,Capital,Dynniq UK Ltd,Infrastructure
Peterborough City Council,Legal Services,Legal Services,Agency Staff,11/09/2019,30242186,2062.50,Revenue,Venn Group Ltd,External Temporary Staff
Peterborough City Council,Legal Services,Legal Services,Agency Staff,11/09/2019,30242187,2120.58,Revenue,Venn Group Ltd,External Temporary Staff
Peterborough City Council,Legal Services,Legal Services,Agency Staff,11/09/2019,30242189,1657.50,Revenue,Venn Group Ltd,External Temporary Staff
Peterborough City Council,Commissioning and Commercial Operations,Commissioning Team,Agency Staff,11/09/2019,30242199,564.46,Revenue,Reed Specialist Recruitment Limited,External Temporary Staff
Peterborough City Council,Commissioning and Commercial Operations,Commissioning Team,Agency Staff,11/09/2019,30242200,530.22,Revenue,Reed Specialist Recruitment Limited,External Temporary Staff
Peterborough City Council,Commissioning and Commercial Operations,Commissioning Team,Agency Staff,11/09/2019,30242201,579.15,Revenue,Reed Specialist Recruitment Limited,External Temporary Staff
Peterborough City Council,ICT,ICT,Agency Staff,11/09/2019,30242230,2268.60,Revenue,Reed Specialist Recruitment Limited,External Temporary Staff
Peterborough City Council,Development and Construction,Building Control,Agency Staff,11/09/2019,30242278,2234.78,Revenue,Reed Specialist Recruitment Limited,External Temporary Staff
Peterborough City Council,Peterborough Highway Services,Highway & Drainage Control,Agency Staff,11/09/2019,30242286,1575.00,Revenue,Matchtech,External Temporary Staff
Peterborough City Council,Peterborough Highway Services,Highway & Drainage Control,Agency Staff,11/09/2019,30242287,1680.00,Revenue,Matchtech,External Temporary Staff
Peterborough City Council,Communities,Housing,Services,11/09/2019,30242295,6865.99,Revenue,DA Rosalia Hotel,Temporary Accommodation Costs
Peterborough City Council,Communities,Housing,Services,11/09/2019,30242296,6704.94,Revenue,DA Rosalia Hotel,Temporary Accommodation Costs
Peterborough City Council,Adults,Independent Sector Placements,Services,11/09/2019,30242331,976.01,Revenue,Park Vista Care Home,Residential Care
Peterborough City Council,Adults,Independent Sector Placements,Services,11/09/2019,30242332,1188.48,Revenue,Park Vista Care Home,Residential Care
Peterborough City Council,Adults,Finance,Services,11/09/2019,30242424,852.72,Revenue,LGSS Law Ltd,Legal Costs
Peterborough City Council,Peterborough Highway Services,Transport & Infrastructure Commissioning,Public Transport,11/09/2019,30242499,187103.64,Revenue,Stagecoach in Peterborough,Public Transport
Peterborough City Council,Peterborough Highway Services,Transport & Infrastructure Commissioning,Public Transport,11/09/2019,30242500,1633.61,Revenue,Stagecoach in Peterborough,Public Transport
Peterborough City Council,Peterborough Highway Services,Transport & Infrastructure Commissioning,Public Transport,11/09/2019,30242505,181186.01,Revenue,Stagecoach in Peterborough,Public Transport
Peterborough City Council,Peterborough Highway Services,Transport & Infrastructure Commissioning,Public Transport,11/09/2019,30242510,179886.17,Revenue,Stagecoach in Peterborough,Public Transport
Peterborough City Council,Peterborough Highway Services,Transport & Infrastructure Commissioning,Public Transport,11/09/2019,30242512,1937.89,Revenue,Stagecoach in Peterborough,Public Transport
Peterborough City Council,Adults,Independent Sector Placements,Services,11/09/2019,30242677,12558.00,Revenue,Affinity Trust,Home Care
Peterborough City Council,Westcombe Engineering,Westcombe Engineering,"Tools, Equipment, Furniture & Materials",11/09/2019,30242738,775.88,Revenue,Barron Clark Castings Ltd,Materials
Peterborough City Council,Westcombe Engineering,Westcombe Engineering,"Tools, Equipment, Furniture & Materials",11/09/2019,30242739,524.79,Revenue,Barron Clark Castings Ltd,Materials
Peterborough City Council,Communities,Cohesion,Third Party Payments,11/09/2019,30242783,6500.00,Revenue,The Lords Taverners Limited,Grant-Third Party
Peterborough City Council,"Waste, Cleansing and Open Spaces",Waste Management,Services,11/09/2019,30242792,29215.06,Revenue,Material Change Composting Ltd,Recycling
Peterborough City Council,Commissioning and Commercial Operations,Commissioning,Third Party Payments,11/09/2019,30242793,9208.33,Revenue,Cambs & P'boro NHS Foundation Trust,Third Party Payments - Contract
Peterborough City Council,Adults,Mental Health,Third Party Payments,11/09/2019,30242794,103447.50,Revenue,Cambs & P'boro NHS Foundation Trust,Third Party Payments - Contract
Peterborough City Council,Adults,Independent Sector Placements,Services,11/09/2019,30242806,857.14,Revenue,Goldcare Homes t/a The Tudors Care Home,Residential Care
Peterborough City Council,Legal Services,Legal Services,Services,11/09/2019,30242820,750.00,Revenue,"Walji, Miss Shabnam",Legal Costs
Peterborough City Council,Legal Services,Legal Services,Services,11/09/2019,30242821,500.00,Revenue,Amelia Heathwaite,Legal Costs
Peterborough City Council,Children's & Safeguarding,Early Help ASC/CSC,Services,11/09/2019,30242826,3916.00,Revenue,BDP Social Care Ltd,Hired Services
Peterborough City Council,Communities,Housing,Services,11/09/2019,30242844,545.16,Revenue,Cross Keys Homes,Financial Assistance
Peterborough City Council,Communities,Housing,Services,11/09/2019,30242848,1235.00,Revenue,Jolliffe Daking,Financial Assistance
Peterborough City Council,Communities,Service Director - Adults & Communities,Third Party Payments,11/09/2019,30242849,52000.00,Revenue,Rainbow Savers Anglia Credit Union Ltd,Grant-Third Party
Peterborough City Council,Communities,Service Director - Adults & Communities,Services,11/09/2019,30242850,5000.00,Revenue,P'Boro Council For Voluntary Srvs (PCVS),Hired Services
Peterborough City Council,Financial Services,Finance,Agency Staff,11/09/2019,30242855,2976.15,Revenue,Allen Lane,External Temporary Staff
Peterborough City Council,Financial Services,Finance,Services,11/09/2019,30242867,30000.00,Revenue,Grant Thornton UK LLP,Consultants Fees
Peterborough City Council,Children's & Safeguarding,External Education Placements,Services,11/09/2019,30242869,21006.66,Revenue,Knossington Grange School Ltd,Boarding Out Fees
Peterborough City Council,Development and Construction,Planning Compliance,Agency Staff,11/09/2019,30242872,1671.45,Revenue,Park Avenue Recruitment Limited,External Temporary Staff
Peterborough City Council,Adults,Independent Sector Placements,Services,11/09/2019,30242886,1382.52,Revenue,Barchester Wood Grange,Residential Care
Peterborough City Council,Adults,Independent Sector Placements,Services,11/09/2019,30242887,1410.24,Revenue,Maxey House Res Home,Residential Care
Peterborough City Council,Adults,Independent Sector Placements,Services,11/09/2019,30242888,1861.12,Revenue,Maxey House Res Home,Residential Care
Peterborough City Council,Adults,Independent Sector Placements,Services,11/09/2019,30242889,2100.00,Revenue,Maxey House Res Home,Residential Care
Peterborough City Council,Adults,Independent Sector Placements,Services,11/09/2019,30242891,546.00,Revenue,Choices Care Ltd,Home Care
Peterborough City Council,Adults,Independent Sector Placements,Services,11/09/2019,30242892,604.24,Revenue,Choices Care Ltd,Home Care
Peterborough City Council,Adults,Independent Sector Placements,Services,11/09/2019,30242893,1426.88,Revenue,Choices Care Ltd,Home Care
Peterborough City Council,Adults,Independent Sector Placements,Services,11/09/2019,30242895,888.08,Revenue,Maxey House Res Home,Residential Care
Peterborough City Council,Adults,Independent Sector Placements,Services,11/09/2019,30242898,724.36,Revenue,Choices Care Ltd,Home Care
Peterborough City Council,Adults,Independent Sector Placements,Services,11/09/2019,30242899,997.36,Revenue,Choices Care Ltd,Home Care
Peterborough City Council,Commissioning and Commercial Operations,Clare Lodge,Agency Staff,11/09/2019,30242924,576.00,Revenue,Wrixon Care Services,External Temporary Staff
Peterborough City Council,Commissioning and Commercial Operations,Access to Resources & Specialist Commissioning,Services,11/09/2019,30242925,3494.14,Revenue,Fostering Innovations Ltd,Boarding Out Fees
Peterborough City Council,Education,PFI,Services,11/09/2019,30242951,5319.99,Revenue,IIC by Education (P'boro) Ltd,Service Charge
Peterborough City Council,Education,PFI,Services,11/09/2019,30242952,15602.60,Revenue,IIC by Education (P'boro) Ltd,Service Charge
Peterborough City Council,"Cemeteries, Cremation & Registrars",Bereavement Service,Services,11/09/2019,30242957,1350.00,Revenue,Acton Security LTD,Security
Peterborough City Council,Communities,Housing,Services,11/09/2019,30242963,2913.25,Revenue,David Carter,Legal Costs
Peterborough City Council,Peterborough Highway Services,Transport & Infrastructure Commissioning,Services,11/09/2019,30242964,28000.00,Revenue,Sustrans Ltd,Hired Services
Peterborough City Council,Corporate,Corporate,Non Revenue,11/09/2019,30242970,2630.00,Capital,Casbon Building Services,Grant Payment
Peterborough City Council,Corporate,Corporate,Non Revenue,11/09/2019,30242972,6615.94,Capital,Casbon Building Services,Grant Payment
Peterborough City Council,Commissioning and Commercial Operations,Access to Resources & Specialist Commissioning,Services,11/09/2019,30242974,25445.51,Revenue,Aspire Scotland Ltd,Boarding Out Fees
Peterborough City Council,Adults,Mental Capacity Act & DoLs,Services,11/09/2019,30242975,3044.40,Revenue,Dr Nauman Khalil Ltd,Hired Services
Peterborough City Council,Corporate,Corporate,Non Revenue,11/09/2019,30242979,11679.35,Capital,MORLEY BUILDING SERVICES LTD,Grant Payment
Peterborough City Council,Commissioning and Commercial Operations,Access to Resources & Specialist Commissioning,Services,11/09/2019,30243043,-1430.00,Revenue,Compass Fostering East Limited,Boarding Out Fees
Peterborough City Council,Commissioning and Commercial Operations,Clare Lodge,Catering,11/09/2019,30243064,508.56,Revenue,King Bros Lady Lodge Ltd,Catering Provisions
Peterborough City Council,Westcombe Engineering,Westcombe Engineering,Services,11/09/2019,30243066,519.84,Revenue,Carillon Industrial Services Ltd,Tools
Peterborough City Council,Commissioning and Commercial Operations,Access to Resources & Specialist Commissioning,Services,11/09/2019,30243068,3986.60,Revenue,Next Step Fostering Services Limited,Boarding Out Fees
Peterborough City Council,Adults,Independent Sector Placements,Services,11/09/2019,30243070,1792.60,Revenue,THE LODGE TRUST,Residential Care
Peterborough City Council,Adults,Independent Sector Placements,Services,11/09/2019,30243071,1618.41,Revenue,Avery House (Peterborough) t/a Brighterkind,Residential Care
Peterborough City Council,Adults,Independent Sector Placements,Services,11/09/2019,30243072,646.47,Revenue,Avery House (Peterborough) t/a Brighterkind,Residential Care
Peterborough City Council,Adults,Independent Sector Placements,Services,11/09/2019,30243073,2438.60,Revenue,Sanctuary Care Limited,Residential Care
Peterborough City Council,Commissioning and Commercial Operations,Access to Resources & Specialist Commissioning,Services,11/09/2019,30243082,13485.00,Revenue,Sixteen Plus Limited,Boarding Out Fees
Peterborough City Council,HR,HR,Services,11/09/2019,30243095,8923.14,Revenue,Edenred,Childcare
Peterborough City Council,Adults,Independent Sector Placements,Services,11/09/2019,30243100,675.00,Revenue,Maxey House Res Home,Residential Care
Peterborough City Council,Education,Special Educational Needs / Inclusion,Services,11/09/2019,30243103,1384.00,Revenue,Gillan Legal Solutions Ltd,Legal Costs
Peterborough City Council,Education,Special Educational Needs / Inclusion,Services,11/09/2019,30243104,840.00,Revenue,Gillan Legal Solutions Ltd,Legal Costs
Peterborough City Council,Education,Special Educational Needs / Inclusion,Services,11/09/2019,30243105,2710.00,Revenue,Gillan Legal Solutions Ltd,Legal Costs
Peterborough City Council,Education,Special Educational Needs / Inclusion,Services,11/09/2019,30243106,2458.00,Revenue,Gillan Legal Solutions Ltd,Legal Costs
Peterborough City Council,Adults,Independent Sector Placements,Services,11/09/2019,30243108,1685.72,Revenue,Athena (Ashlynn Grange),Residential Care
Peterborough City Council,"Cemeteries, Cremation & Registrars",Bereavement Service,Services,11/09/2019,30243109,1672.81,Revenue,Anglia Co-operative Funerals,Contract Funerals
Peterborough City Council,Adults,Independent Sector Placements,Services,11/09/2019,30243135,2616.20,Revenue,Excellence Care Ltd,Home Care
Peterborough City Council,Adults,Independent Sector Placements,Services,11/09/2019,30243149,1752.80,Revenue,Turning Point Services Ltd,Home Care
Peterborough City Council,Adults,Independent Sector Placements,Services,11/09/2019,30243150,5635.20,Revenue,Turning Point Services Ltd,Home Care
Peterborough City Council,Adults,Independent Sector Placements,Services,11/09/2019,30243151,5046.20,Revenue,Turning Point Services Ltd,Home Care
Peterborough City Council,Adults,Independent Sector Placements,Services,11/09/2019,30243152,5061.84,Revenue,Turning Point Services Ltd,Home Care
Peterborough City Council,Adults,Independent Sector Placements,Services,11/09/2019,30243153,6172.88,Revenue,Turning Point Services Ltd,Home Care
Peterborough City Council,Adults,Independent Sector Placements,Services,11/09/2019,30243154,5078.04,Revenue,Turning Point Services Ltd,Home Care
Peterborough City Council,Adults,Independent Sector Placements,Services,11/09/2019,30243155,6329.96,Revenue,Turning Point Services Ltd,Home Care
Peterborough City Council,Adults,Independent Sector Placements,Services,11/09/2019,30243156,5140.76,Revenue,Turning Point Services Ltd,Home Care
Peterborough City Council,Adults,Independent Sector Placements,Services,11/09/2019,30243157,6063.88,Revenue,Turning Point Services Ltd,Home Care
Peterborough City Council,Adults,Independent Sector Placements,Services,11/09/2019,30243158,4677.96,Revenue,Turning Point Services Ltd,Home Care
Peterborough City Council,Adults,Independent Sector Placements,Services,11/09/2019,30243159,6473.88,Revenue,Turning Point Services Ltd,Home Care
Peterborough City Council,Adults,Independent Sector Placements,Services,11/09/2019,30243160,5635.20,Revenue,Turning Point Services Ltd,Home Care
Peterborough City Council,Adults,Independent Sector Placements,Services,11/09/2019,30243161,16651.60,Revenue,Turning Point Services Ltd,Home Care
Peterborough City Council,Adults,Independent Sector Placements,Services,11/09/2019,30243162,11632.60,Revenue,Turning Point Services Ltd,Home Care
Peterborough City Council,"Waste, Cleansing and Open Spaces",Waste Management,Services,11/09/2019,30243188,2594.39,Revenue,Bourne Skip Hire and Recycling Limited,Recycling
Peterborough City Council,Children's & Safeguarding,Children's Social Care,Agency Staff,11/09/2019,30243207,3404.00,Revenue,Swim Recruitment,External Temporary Staff
Peterborough City Council,Children's & Safeguarding,Children's Social Care,Services,11/09/2019,30243218,1082.00,Revenue,H.O.P.E Superjobs Limited,Purchased Social Care Services
Peterborough City Council,Adults,Independent Sector Placements,Services,11/09/2019,30243219,2515.80,Revenue,PRIME LIFE LTD (Caenarvon House),Residential Care
Peterborough City Council,Children's & Safeguarding,Children's Social Care,Agency Staff,11/09/2019,30243225,1302.40,Revenue,HCL Social Care Ltd,External Temporary Staff
Peterborough City Council,Corporate Property,Office Accomodation,Energy Costs,11/09/2019,30243229,15426.50,Revenue,EDF Energy Networks Ltd,Electricity
Peterborough City Council,City Centre Management,"Markets, Tourism & Events",Energy Costs,11/09/2019,30243229,999.20,Revenue,EDF Energy Networks Ltd,Electricity
Peterborough City Council,"Cemeteries, Cremation & Registrars",Bereavement Service,Energy Costs,11/09/2019,30243229,1967.64,Revenue,EDF Energy Networks Ltd,Electricity
Peterborough City Council,Communities,Cultural Services,Energy Costs,11/09/2019,30243229,7834.11,Revenue,EDF Energy Networks Ltd,Electricity
Peterborough City Council,Communities,Cultural Services,Energy Costs,11/09/2019,30243230,4270.09,Revenue,EDF Energy Networks Ltd,Electricity
Peterborough City Council,Communities,Cultural Services,Energy Costs,11/09/2019,30243230,4542.56,Revenue,EDF Energy Networks Ltd,Electricity
Peterborough City Council,Corporate Property,Office Accomodation,Energy Costs,11/09/2019,30243230,4621.86,Revenue,EDF Energy Networks Ltd,Electricity
Peterborough City Council,Corporate Property,Commercial Propety,Energy Costs,11/09/2019,30243230,889.06,Revenue,EDF Energy Networks Ltd,Electricity
Peterborough City Council,Adults,Independent Sector Placements,Services,11/09/2019,30243233,3640.00,Revenue,Caretech Community Services Limited,Home Care
Peterborough City Council,Legal Services,Legal Services,Services,11/09/2019,30243234,850.00,Revenue,"Elliott, Ms Margot",Legal Costs
Peterborough City Council,Legal Services,Legal Services,Services,11/09/2019,30243235,850.00,Revenue,"Walji, Miss Shabnam",Legal Costs
Peterborough City Council,Adults,Independent Sector Placements,Services,11/09/2019,30243239,1446.54,Revenue,Anchor Homes,Residential Care
Peterborough City Council,Adults,Mental Capacity Act & DoLs,Services,11/09/2019,30243248,957.00,Revenue,Raj Medical Consultancy Limited,Hired Services
Peterborough City Council,Adults,Mental Capacity Act & DoLs,Services,11/09/2019,30243251,961.72,Revenue,Dr Gino Maurice Hervel,Hired Services
Peterborough City Council,Communities,Housing,Services,11/09/2019,30243263,41304.00,Revenue,Stef & Philips Ltd,Temporary Accommodation Costs
Peterborough City Council,Peterborough Serco Strategic Partnership,PSSP Retained Services,Public Transport,11/09/2019,30243265,10859.29,Revenue,Capita Travel & Events,Public Transport
Peterborough City Council,Communities,Cohesion,Third Party Payments,11/09/2019,30243268,10000.00,Revenue,Vivacity Culture and Leisure,Grant-Third Party
Peterborough City Council,Corporate Property,Commercial Propety,Services,11/09/2019,30243277,5341.45,Revenue,Biffa Waste Services Ltd,Waste Disposal
Peterborough City Council,Corporate Property,Commercial Propety,Energy Costs,11/09/2019,30243278,5720.02,Revenue,EDF Energy Networks Ltd,Electricity
Peterborough City Council,Communities,Cultural Services,Energy Costs,11/09/2019,30243278,1575.42,Revenue,EDF Energy Networks Ltd,Electricity
Peterborough City Council,Communities,Cultural Services,Energy Costs,11/09/2019,30243278,4540.41,Revenue,EDF Energy Networks Ltd,Electricity
Peterborough City Council,"Waste, Cleansing and Open Spaces",Waste & Operational Svs Mgmt,Energy Costs,11/09/2019,30243278,2623.53,Revenue,EDF Energy Networks Ltd,Electricity
Peterborough City Council,Communities,Parking Services,Energy Costs,11/09/2019,30243282,3420.04,Revenue,EDF Energy Networks Ltd,Electricity
Peterborough City Council,City Centre Management,"Markets, Tourism & Events",Energy Costs,11/09/2019,30243282,855.01,Revenue,EDF Energy Networks Ltd,Electricity
Peterborough City Council,Communities,Community Capacity,Energy Costs,11/09/2019,30243282,857.47,Revenue,EDF Energy Networks Ltd,Electricity
Peterborough City Council,Commissioning and Commercial Operations,Clare Lodge,Energy Costs,11/09/2019,30243282,6282.78,Revenue,EDF Energy Networks Ltd,Electricity
Peterborough City Council,Communities,Other Enforcement,Energy Costs,11/09/2019,30243283,820.72,Revenue,EDF Energy Networks Ltd,Electricity
Peterborough City Council,Commissioning and Commercial Operations,Clare Lodge,Agency Staff,11/09/2019,30243284,1225.00,Revenue,Mana Resourcing Ltd,Supply Teachers
Peterborough City Council,Commissioning and Commercial Operations,Clare Lodge,Agency Staff,11/09/2019,30243297,1195.00,Revenue,Mana Resourcing Ltd,Supply Teachers
Peterborough City Council,Children's & Safeguarding,Children's Social Care,Agency Staff,11/09/2019,30243310,1302.40,Revenue,HCL Social Care Ltd,External Temporary Staff
Peterborough City Council,Children's & Safeguarding,Children's Social Care,Agency Staff,11/09/2019,30243312,1302.40,Revenue,HCL Social Care Ltd,External Temporary Staff
Peterborough City Council,Children's & Safeguarding,Children's Social Care,Agency Staff,11/09/2019,30243313,1302.40,Revenue,HCL Social Care Ltd,External Temporary Staff
Peterborough City Council,Adults,Independent Sector Placements,Services,11/09/2019,30243347,502.41,Revenue,Allied Healthcare (UK) Ltd,Home Care
Peterborough City Council,Adults,Independent Sector Placements,Services,11/09/2019,30243350,5149.76,Revenue,LEONARD CHESHIRE DISABILITY,Residential Care
Peterborough City Council,Adults,Independent Sector Placements,Services,11/09/2019,30243351,5149.76,Revenue,LEONARD CHESHIRE DISABILITY,Residential Care
Peterborough City Council,Adults,Independent Sector Placements,Services,11/09/2019,30243354,2695.24,Revenue,LEONARD CHESHIRE DISABILITY,Residential Care
Peterborough City Council,Adults,Independent Sector Placements,Services,11/09/2019,30243355,5079.36,Revenue,LEONARD CHESHIRE DISABILITY,Residential Care
Peterborough City Council,Adults,Independent Sector Placements,Services,11/09/2019,30243357,2449.40,Revenue,Bee's Care Ltd,Home Care
Peterborough City Council,Adults,Independent Sector Placements,Services,11/09/2019,30243363,653.33,Revenue,Bee's Care Ltd,Home Care
Peterborough City Council,Adults,Independent Sector Placements,Services,11/09/2019,30243364,965.24,Revenue,Bee's Care Ltd,Home Care
Peterborough City Council,Adults,Independent Sector Placements,Services,11/09/2019,30243367,2444.88,Revenue,Bee's Care Ltd,Home Care
Peterborough City Council,Adults,Independent Sector Placements,Services,11/09/2019,30243369,516.23,Revenue,Bee's Care Ltd,Home Care
Peterborough City Council,Communities,Housing,Services,11/09/2019,30243396,3150.00,Revenue,Singh and Sons Property Management Ltd,Temporary Accommodation Costs
Peterborough City Council,Communities,Housing,Services,11/09/2019,30243397,1230.00,Revenue,Singh and Sons Property Management Ltd,Temporary Accommodation Costs
Peterborough City Council,Communities,Housing,Services,11/09/2019,30243401,3220.00,Revenue,Singh and Sons Property Management Ltd,Temporary Accommodation Costs
Peterborough City Council,Communities,Housing,Services,11/09/2019,30243403,2660.00,Revenue,Singh and Sons Property Management Ltd,Temporary Accommodation Costs
Peterborough City Council,Corporate,Corporate,Non Revenue,11/09/2019,30243423,4375.00,Capital,NPS Peterborough Ltd,Consultants Fees
Peterborough City Council,Adults,Independent Sector Placements,Social Services,11/09/2019,8000151001,5827.02,Revenue,Redacted Personal Data,Direct Payments
Peterborough City Council,Adults,Independent Sector Placements,Social Services,11/09/2019,8000151063,598.00,Revenue,Redacted Personal Data,Direct Payments
Peterborough City Council,Adults,Independent Sector Placements,Social Services,11/09/2019,8000151064,15822.06,Revenue,Redacted Personal Data,Direct Payments
Peterborough City Council,Adults,Independent Sector Placements,Social Services,11/09/2019,8000151065,871.00,Revenue,Redacted Personal Data,Direct Payments
Peterborough City Council,Adults,Independent Sector Placements,Social Services,11/09/2019,8000151066,8508.76,Revenue,Redacted Personal Data,Direct Payments
Peterborough City Council,Adults,Independent Sector Placements,Social Services,11/09/2019,8000151067,1223.54,Revenue,Redacted Personal Data,Direct Payments
Peterborough City Council,Adults,Independent Sector Placements,Social Services,11/09/2019,8000151068,2184.00,Revenue,Redacted Personal Data,Direct Payments
Peterborough City Council,Adults,Independent Sector Placements,Social Services,11/09/2019,8000151069,643.51,Revenue,Redacted Personal Data,Direct Payments
Peterborough City Council,Adults,Independent Sector Placements,Social Services,11/09/2019,8000151070,3335.09,Revenue,Redacted Personal Data,Direct Payments
Peterborough City Council,Adults,Independent Sector Placements,Social Services,11/09/2019,8000151071,1475.36,Revenue,Redacted Personal Data,Direct Payments
Peterborough City Council,Adults,Independent Sector Placements,Social Services,11/09/2019,8000151072,3535.85,Revenue,Redacted Personal Data,Direct Payments
Peterborough City Council,Adults,Independent Sector Placements,Social Services,11/09/2019,8000151076,1785.96,Revenue,Redacted Personal Data,Direct Payments
Peterborough City Council,Adults,Independent Sector Placements,Social Services,11/09/2019,8000151077,5461.20,Revenue,Redacted Personal Data,Direct Payments
Peterborough City Council,Adults,Independent Sector Placements,Social Services,11/09/2019,8000151078,5887.18,Revenue,Redacted Personal Data,Direct Payments
Peterborough City Council,Adults,Independent Sector Placements,Social Services,11/09/2019,8000151079,6441.98,Revenue,Redacted Personal Data,Direct Payments
Peterborough City Council,Adults,Independent Sector Placements,Social Services,11/09/2019,8000151080,3837.39,Revenue,Redacted Personal Data,Direct Payments
Peterborough City Council,Legal & Democratic,Democratic Services,Contract Hire and Operating Leases,11/09/2019,8000151332,534.32,Revenue,Lex Autolease Ltd,Leasing Charges
Peterborough City Council,Commissioning and Commercial Operations,Access to Resources & Specialist Commissioning,Services,13/09/2019,30239411,3400.04,Revenue,Maze Independent Care Ltd,Boarding Out Fees
Peterborough City Council,Adults,Independent Sector Placements,Services,13/09/2019,30239883,920.00,Revenue,Richmond Fellowship (The),Residential Care
Peterborough City Council,Adults,Independent Sector Placements,Services,13/09/2019,30239884,823.00,Revenue,Richmond Fellowship (The),Residential Care
Peterborough City Council,Adults,Independent Sector Placements,Services,13/09/2019,30239956,823.00,Revenue,Richmond Fellowship (The),Residential Care
Peterborough City Council,Adults,Independent Sector Placements,Services,13/09/2019,30240361,811.00,Revenue,Richmond Fellowship (The),Residential Care
Peterborough City Council,ICT,ICT,Agency Staff,13/09/2019,30241861,1108.04,Revenue,Reed Specialist Recruitment Limited,External Temporary Staff
Peterborough City Council,ICT,ICT,Agency Staff,13/09/2019,30241869,2268.60,Revenue,Reed Specialist Recruitment Limited,External Temporary Staff
Peterborough City Council,Corporate,Corporate,Non Revenue,13/09/2019,30241948,1000.00,Balance Sheet,Redacted Personal Data,Insurance Claims
Peterborough City Council,Peterborough Highway Services,Network and Traffic Management,Services,13/09/2019,30242174,3953.24,Revenue,Dynniq UK Ltd,Infrastructure Maintenance
Peterborough City Council,Peterborough Highway Services,Network and Traffic Management,Services,13/09/2019,30242175,4214.06,Revenue,Dynniq UK Ltd,Infrastructure Maintenance
Peterborough City Council,Adults,Therapy/Reablement/Community Equipment,Agency Staff,13/09/2019,30242285,1431.83,Revenue,Caritas Recruitment,External Temporary Staff
Peterborough City Council,Communities,Housing,Services,13/09/2019,30242298,7666.92,Revenue,DA Rosalia Hotel,Temporary Accommodation Costs
Peterborough City Council,Corporate Property,Commercial Propety,Rents,13/09/2019,30242389,10833.34,Revenue,TP Social Housing 2 Ltd,Rent
Peterborough City Council,Adults,Independent Sector Placements,Services,13/09/2019,30242406,503.90,Revenue,Anchor Homes,Residential Care
Peterborough City Council,Commissioning and Commercial Operations,Access to Resources & Specialist Commissioning,Services,13/09/2019,30242448,557.15,Revenue,Swiis Foster Care Ltd,Boarding Out Fees
Peterborough City Council,Commissioning and Commercial Operations,Access to Resources & Specialist Commissioning,Services,13/09/2019,30242449,780.01,Revenue,Swiis Foster Care Ltd,Boarding Out Fees
Peterborough City Council,Corporate,Corporate,Non Revenue,13/09/2019,30242686,2506.00,Capital,Hewitsons LLP,Consultants Fees
Peterborough City Council,Westcombe Engineering,Westcombe Engineering,"Tools, Equipment, Furniture & Materials",13/09/2019,30242735,576.24,Revenue,Barron Clark Castings Ltd,Materials
Peterborough City Council,Commissioning and Commercial Operations,Access to Resources & Specialist Commissioning,Services,13/09/2019,30242827,1071.42,Revenue,PCH Integration Services Ltd,Boarding Out Fees
Peterborough City Council,Commissioning and Commercial Operations,Access to Resources & Specialist Commissioning,Services,13/09/2019,30242829,1498.28,Revenue,PCH Integration Services Ltd,Boarding Out Fees
Peterborough City Council,Commissioning and Commercial Operations,Access to Resources & Specialist Commissioning,Services,13/09/2019,30242830,1498.28,Revenue,PCH Integration Services Ltd,Boarding Out Fees
Peterborough City Council,Commissioning and Commercial Operations,Access to Resources & Specialist Commissioning,Services,13/09/2019,30242831,1498.28,Revenue,PCH Integration Services Ltd,Boarding Out Fees
Peterborough City Council,Commissioning and Commercial Operations,Access to Resources & Specialist Commissioning,Services,13/09/2019,30242832,1498.28,Revenue,PCH Integration Services Ltd,Boarding Out Fees
Peterborough City Council,Commissioning and Commercial Operations,Access to Resources & Specialist Commissioning,Services,13/09/2019,30242833,1498.28,Revenue,PCH Integration Services Ltd,Boarding Out Fees
Peterborough City Council,Corporate Property,Commercial Propety,Rents,13/09/2019,30242846,500.00,Revenue,English Estates Property Agents,Rent
Peterborough City Council,City Centre Management,"Markets, Tourism & Events","Tools, Equipment, Furniture & Materials",13/09/2019,30242868,3275.00,Revenue,Manor Marquees & Structures,Hire of Equipment
Peterborough City Council,HR,HR,Services,13/09/2019,30243067,2600.00,Revenue,Reed Business Information Ltd,Computer Software
Peterborough City Council,Adults,Independent Sector Placements,Services,13/09/2019,30243101,3963.04,Revenue,PossAbilities CIC,Home Care
Peterborough City Council,Adults,Independent Sector Placements,Services,13/09/2019,30243102,3963.04,Revenue,PossAbilities CIC,Home Care
Peterborough City Council,Adults,Independent Sector Placements,Services,13/09/2019,30243117,3614.61,Revenue,Voyage 1 Limited,Residential Care
Peterborough City Council,Adults,Independent Sector Placements,Services,13/09/2019,30243120,3000.00,Revenue,The Bancroft Residential Home Limited,Residential Care
Peterborough City Council,Adults,Independent Sector Placements,Services,13/09/2019,30243125,9168.60,Revenue,Autism Care (UK) Ltd,Residential Care
Peterborough City Council,Adults,Independent Sector Placements,Services,13/09/2019,30243127,565.00,Revenue,Avery House (Peterborough) t/a Brighterkind,Residential Care
Peterborough City Council,Adults,Independent Sector Placements,Services,13/09/2019,30243128,1521.85,Revenue,Avery Homes (Nelson) Ltd,Residential Care
Peterborough City Council,Adults,Independent Sector Placements,Services,13/09/2019,30243129,-1172.98,Revenue,Avery Homes (Nelson) Ltd,Residential Care
Peterborough City Council,Adults,Independent Sector Placements,Services,13/09/2019,30243131,2997.62,Revenue,Avery Homes (Nelson) Ltd,Residential Care
Peterborough City Council,Adults,Independent Sector Placements,Services,13/09/2019,30243132,1822.32,Revenue,Ashmere,Residential Care
Peterborough City Council,Adults,Independent Sector Placements,Services,13/09/2019,30243139,-3505.92,Revenue,Voyage 1 Limited,Residential Care
Peterborough City Council,Children's & Safeguarding,External Education Placements,Services,13/09/2019,30243210,9380.42,Revenue,Lincolnshire County Council,Education Expenses
Peterborough City Council,Commissioning and Commercial Operations,Clare Lodge,Services,13/09/2019,30243217,2300.00,Revenue,"Asplin, Ms Holly",Hired Services
Peterborough City Council,Marketing & Communications,Marketing & Communications,Services,13/09/2019,30243236,1065.00,Revenue,Print 4 Business Ltd,Printing
Peterborough City Council,Adults,Home Services Delivery Model,Services,13/09/2019,30243237,3017.50,Revenue,Handyman Steve,Contractors
Peterborough City Council,"Waste, Cleansing and Open Spaces",Waste & Operational Svs Mgmt,Third Party Payments,13/09/2019,30243243,147027.13,Revenue,Peterborough Limited,Third Party Payments - Contract
Peterborough City Council,Adults,Mental Capacity Act & DoLs,Services,13/09/2019,30243259,949.00,Revenue,Raj Medical Consultancy Limited,Hired Services
Peterborough City Council,Commissioning and Commercial Operations,Clare Lodge,Repair & Maintenance of Buildings,13/09/2019,30243266,4264.67,Revenue,Southview Building Solutions Ltd,Premises Repairs
Peterborough City Council,Children's & Safeguarding,Early Help ASC/CSC,Agency Staff,13/09/2019,30243288,570.30,Revenue,Reed Specialist Recruitment Limited,External Temporary Staff
Peterborough City Council,Commissioning and Commercial Operations,Access to Resources & Specialist Commissioning,Services,13/09/2019,30243316,874.96,Revenue,Transition Care Peterborough Ltd,Boarding Out Fees
Peterborough City Council,Commissioning and Commercial Operations,Access to Resources & Specialist Commissioning,Services,13/09/2019,30243317,874.96,Revenue,Transition Care Peterborough Ltd,Boarding Out Fees
Peterborough City Council,Commissioning and Commercial Operations,Access to Resources & Specialist Commissioning,Services,13/09/2019,30243318,6742.96,Revenue,Transition Care Peterborough Ltd,Boarding Out Fees
Peterborough City Council,Commissioning and Commercial Operations,Access to Resources & Specialist Commissioning,Services,13/09/2019,30243319,1150.03,Revenue,Transition Care Peterborough Ltd,Boarding Out Fees
Peterborough City Council,Commissioning and Commercial Operations,Access to Resources & Specialist Commissioning,Services,13/09/2019,30243320,1150.03,Revenue,Transition Care Peterborough Ltd,Boarding Out Fees
Peterborough City Council,Commissioning and Commercial Operations,Access to Resources & Specialist Commissioning,Services,13/09/2019,30243325,1150.03,Revenue,Transition Care Peterborough Ltd,Boarding Out Fees
Peterborough City Council,Commissioning and Commercial Operations,Access to Resources & Specialist Commissioning,Services,13/09/2019,30243329,1150.03,Revenue,Transition Care Peterborough Ltd,Boarding Out Fees
Peterborough City Council,Commissioning and Commercial Operations,Access to Resources & Specialist Commissioning,Services,13/09/2019,30243331,1150.03,Revenue,Transition Care Peterborough Ltd,Boarding Out Fees
Peterborough City Council,Commissioning and Commercial Operations,Access to Resources & Specialist Commissioning,Services,13/09/2019,30243333,874.96,Revenue,Transition Care Peterborough Ltd,Boarding Out Fees
Peterborough City Council,Commissioning and Commercial Operations,Access to Resources & Specialist Commissioning,Services,13/09/2019,30243336,819.00,Revenue,Transition Care Peterborough Ltd,Boarding Out Fees
Peterborough City Council,Adults,Independent Sector Placements,Services,13/09/2019,30243392,2616.88,Revenue,HC-One Oval Limited,Residential Care
Peterborough City Council,Adults,Finance,Third Party Payments,13/09/2019,30243393,12791.17,Revenue,Healthwatch Cambridgeshire and Peterborough,Third Party Payments - Contract
Peterborough City Council,Adults,Independent Sector Placements,Services,13/09/2019,30243394,1574.20,Revenue,HC-One Oval Limited,Residential Care
Peterborough City Council,Adults,Independent Sector Placements,Services,13/09/2019,30243395,2616.88,Revenue,HC-One Oval Limited,Residential Care
Peterborough City Council,Adults,Independent Sector Placements,Services,13/09/2019,30243398,1574.20,Revenue,HC-One Oval Limited,Residential Care
Peterborough City Council,Adults,Independent Sector Placements,Services,13/09/2019,30243399,1574.20,Revenue,HC-One Oval Limited,Residential Care
Peterborough City Council,Adults,Independent Sector Placements,Services,13/09/2019,30243400,2616.88,Revenue,HC-One Oval Limited,Residential Care
Peterborough City Council,Communities,Cultural Services,Customer and client receipts - Fees & Charges,13/09/2019,30243405,8399.58,Revenue,Vivacity Culture and Leisure,Refunds
Peterborough City Council,Peterborough Highway Services,Network and Traffic Management,Services,13/09/2019,30243416,1092.01,Revenue,JPIMedia Publishing Ltd,Advertising
Peterborough City Council,"Waste, Cleansing and Open Spaces",Waste Management,Direct Taansport Costs,13/09/2019,30243418,734.46,Revenue,Allstar Business Solutions Ltd.,Petrol
Peterborough City Council,Corporate,Corporate,Non Revenue,13/09/2019,30243424,7570.52,Capital,NPS Peterborough Ltd,Consultants Fees
Peterborough City Council,Corporate,Corporate,Non Revenue,13/09/2019,30243427,9750.00,Capital,Permanent Futures Ltd,Consultants Fees
Peterborough City Council,Adults,Independent Sector Placements,Services,13/09/2019,30243453,1455.21,Revenue,Bee's Care Ltd,Home Care
Peterborough City Council,Communities,Housing,Services,13/09/2019,30243456,9173.50,Revenue,Eastfield Guesthouse,Temporary Accommodation Costs
Peterborough City Council,Communities,Housing,Services,13/09/2019,30243457,12128.82,Revenue,Eastfield Guesthouse,Temporary Accommodation Costs
Peterborough City Council,Commissioning and Commercial Operations,Access to Resources & Specialist Commissioning,Services,13/09/2019,30243459,16411.88,Revenue,Dove Adolescent Services Ltd,Boarding Out Fees
Peterborough City Council,Commissioning and Commercial Operations,Commissioning Team,Agency Staff,13/09/2019,30243468,2243.60,Revenue,Reed Specialist Recruitment Limited,External Temporary Staff
Peterborough City Council,Communities,Cohesion,Agency Staff,13/09/2019,30243469,757.44,Revenue,Reed Specialist Recruitment Limited,External Temporary Staff
Peterborough City Council,"Waste, Cleansing and Open Spaces",Waste Management,Services,13/09/2019,30243471,404711.79,Revenue,Viridor Peterborough Ltd,Waste Disposal
Peterborough City Council,Communities,Cohesion,Repair & Maintenance of Buildings,13/09/2019,30243477,1572.00,Revenue,Bee Lettings Ltd,Premises Repairs
Peterborough City Council,Communities,Cohesion,Services,13/09/2019,30243484,36500.00,Revenue,P'Boro Council For Voluntary Srvs (PCVS),Grant Payment
Peterborough City Council,Peterborough Serco Strategic Partnership,PSSP Retained Services,Services,13/09/2019,30243485,3000.00,Revenue,Pitney Bowes Ltd,Postage
Peterborough City Council,Adults,Independent Sector Placements,Services,13/09/2019,30243486,2377.56,Revenue,THE CLAIR FRANCIS RETIREMENT HOME,Residential Care
Peterborough City Council,Adults,Independent Sector Placements,Services,13/09/2019,30243487,757.40,Revenue,THE CLAIR FRANCIS RETIREMENT HOME,Residential Care
Peterborough City Council,Adults,Independent Sector Placements,Services,13/09/2019,30243488,910.94,Revenue,THE CLAIR FRANCIS RETIREMENT HOME,Residential Care
Peterborough City Council,Adults,Independent Sector Placements,Services,13/09/2019,30243489,1707.03,Revenue,THE CLAIR FRANCIS RETIREMENT HOME,Residential Care
Peterborough City Council,Adults,Independent Sector Placements,Services,13/09/2019,30243490,1134.60,Revenue,THE CLAIR FRANCIS RETIREMENT HOME,Residential Care
Peterborough City Council,Adults,Independent Sector Placements,Services,13/09/2019,30243491,1258.60,Revenue,THE CLAIR FRANCIS RETIREMENT HOME,Residential Care
Peterborough City Council,Adults,Independent Sector Placements,Services,13/09/2019,30243492,2212.04,Revenue,THE CLAIR FRANCIS RETIREMENT HOME,Residential Care
Peterborough City Council,Adults,Independent Sector Placements,Services,13/09/2019,30243494,1821.88,Revenue,THE CLAIR FRANCIS RETIREMENT HOME,Residential Care
Peterborough City Council,Adults,Independent Sector Placements,Services,13/09/2019,30243495,1252.48,Revenue,THE CLAIR FRANCIS RETIREMENT HOME,Residential Care
Peterborough City Council,Adults,Independent Sector Placements,Services,13/09/2019,30243496,1399.92,Revenue,THE CLAIR FRANCIS RETIREMENT HOME,Residential Care
Peterborough City Council,Adults,Independent Sector Placements,Services,13/09/2019,30243497,1821.88,Revenue,THE CLAIR FRANCIS RETIREMENT HOME,Residential Care
Peterborough City Council,Adults,Independent Sector Placements,Services,13/09/2019,30243498,874.84,Revenue,THE CLAIR FRANCIS RETIREMENT HOME,Residential Care
Peterborough City Council,Adults,Independent Sector Placements,Services,13/09/2019,30243499,1821.88,Revenue,THE CLAIR FRANCIS RETIREMENT HOME,Residential Care
Peterborough City Council,Adults,Independent Sector Placements,Services,13/09/2019,30243500,626.36,Revenue,THE CLAIR FRANCIS RETIREMENT HOME,Residential Care
Peterborough City Council,Adults,Independent Sector Placements,Services,13/09/2019,30243501,1355.60,Revenue,THE CLAIR FRANCIS RETIREMENT HOME,Residential Care
Peterborough City Council,Adults,Independent Sector Placements,Services,13/09/2019,30243502,823.00,Revenue,Richmond Fellowship (The),Residential Care
Peterborough City Council,Adults,Independent Sector Placements,Services,13/09/2019,30243503,811.00,Revenue,Richmond Fellowship (The),Residential Care
Peterborough City Council,Adults,Independent Sector Placements,Services,13/09/2019,30243504,1011.00,Revenue,Richmond Fellowship (The),Residential Care
Peterborough City Council,Adults,Independent Sector Placements,Services,13/09/2019,30243505,920.00,Revenue,Richmond Fellowship (The),Residential Care
Peterborough City Council,Adults,Independent Sector Placements,Services,13/09/2019,30243506,1011.00,Revenue,Richmond Fellowship (The),Residential Care
Peterborough City Council,Adults,Independent Sector Placements,Services,13/09/2019,30243507,823.00,Revenue,Richmond Fellowship (The),Residential Care
Peterborough City Council,Adults,Independent Sector Placements,Services,13/09/2019,30243508,920.00,Revenue,Richmond Fellowship (The),Residential Care
Peterborough City Council,Adults,Independent Sector Placements,Services,13/09/2019,30243509,823.00,Revenue,Richmond Fellowship (The),Residential Care
Peterborough City Council,Corporate,Corporate,Non Revenue,13/09/2019,30243512,5707.00,Capital,M J Greaves,Grant Payment
Peterborough City Council,Corporate,Corporate,Non Revenue,13/09/2019,30243513,2385.00,Capital,Dolphin Mobility East Midlands Ltd,Grant Payment
Peterborough City Council,Adults,Independent Sector Placements,Services,13/09/2019,30243514,2421.88,Revenue,Avery House (Peterborough) t/a Brighterkind,Residential Care
Peterborough City Council,Corporate Property,Office Accomodation,Water Services,13/09/2019,30243525,505.62,Revenue,Anglian Water Business National,Water
Peterborough City Council,Communities,Cultural Services,Energy Costs,13/09/2019,30243527,2793.10,Revenue,Southern Electric,Electricity
Peterborough City Council,Education,PFI,Energy Costs,13/09/2019,30243527,4448.51,Revenue,Southern Electric,Electricity
Peterborough City Council,Education,PFI,Energy Costs,13/09/2019,30243527,3343.44,Revenue,Southern Electric,Electricity
Peterborough City Council,Education,PFI,Energy Costs,13/09/2019,30243527,906.78,Revenue,Southern Electric,Electricity
Peterborough City Council,Education,PFI,Energy Costs,13/09/2019,30243527,3029.13,Revenue,Southern Electric,Electricity
Peterborough City Council,Adults,Independent Sector Placements,Services,13/09/2019,30243529,-1037.95,Revenue,Avery House (Peterborough) t/a Brighterkind,Residential Care
Peterborough City Council,Adults,Independent Sector Placements,Services,13/09/2019,30243530,4391.80,Revenue,OAKFIELD (EASTON MAUDIT) LTD,Residential Care
Peterborough City Council,Adults,Independent Sector Placements,Contract Hire and Operating Leases,13/09/2019,30243531,1725.00,Revenue,King Carz Ltd,Hired Transport
Peterborough City Council,Commissioning and Commercial Operations,Commissioning Team,Agency Staff,13/09/2019,30243532,2243.60,Revenue,Reed Specialist Recruitment Limited,External Temporary Staff
Peterborough City Council,Corporate,Corporate,Non Revenue,13/09/2019,30243533,1650.00,Capital,M J Greaves,Grant Payment
Peterborough City Council,Corporate,Corporate,Non Revenue,13/09/2019,30243534,7901.00,Capital,Garfield Builders Ltd,Grant Payment
Peterborough City Council,Corporate,Corporate,Non Revenue,13/09/2019,30243535,7311.00,Capital,Casbon Building Services,Grant Payment
Peterborough City Council,Corporate,Corporate,Non Revenue,13/09/2019,30243536,4007.00,Capital,Movement 2 - Prism Medical UK,Grant Payment
Peterborough City Council,Adults,Independent Sector Placements,Services,13/09/2019,30243537,2640.00,Revenue,Anchor Trust,Residential Care
Peterborough City Council,Adults,Independent Sector Placements,Services,13/09/2019,30243538,2640.00,Revenue,Anchor Trust,Residential Care
Peterborough City Council,Commissioning and Commercial Operations,Access to Resources & Specialist Commissioning,Services,13/09/2019,30243540,500.00,Revenue,Redacted Personal Data,Course Fees
Peterborough City Council,Adults,Independent Sector Placements,Services,13/09/2019,30243579,538.72,Revenue,Choices Care Ltd,Home Care
Peterborough City Council,Communities,Cultural Services,Energy Costs,13/09/2019,30243581,553.88,Revenue,British Gas Business,Electricity
Peterborough City Council,Corporate Property,Office Accomodation,Energy Costs,13/09/2019,30243590,2747.43,Revenue,British Gas Business,Electricity
Peterborough City Council,Communities,Cultural Services,Energy Costs,13/09/2019,30243590,1547.74,Revenue,British Gas Business,Electricity
Peterborough City Council,City Centre Management,"Markets, Tourism & Events",Energy Costs,13/09/2019,30243590,625.21,Revenue,British Gas Business,Electricity
Peterborough City Council,Peterborough Highway Services,Network and Traffic Management,Services,13/09/2019,30243599,2925.81,Revenue,Dynniq UK Ltd,Infrastructure Maintenance
Peterborough City Council,Commissioning and Commercial Operations,Access to Resources & Specialist Commissioning,Services,13/09/2019,30243635,819.00,Revenue,Transition Care Peterborough Ltd,Boarding Out Fees
Peterborough City Council,Children's & Safeguarding,Early Help ASC/CSC,Agency Staff,13/09/2019,30243636,591.00,Revenue,Reed Specialist Recruitment Limited,External Temporary Staff
Peterborough City Council,Commissioning and Commercial Operations,Commissioning,Services,13/09/2019,30243675,4540.83,Revenue,The Lime Academy Trust,Hired Services
Peterborough City Council,Communities,Cultural Services,Energy Costs,13/09/2019,30243682,605.10,Revenue,Corona Energy Retail 4 Limited,Gas
Peterborough City Council,Public Health,DPH Office,Services,13/09/2019,30243685,2880.00,Revenue,University of London,Course Fees
Peterborough City Council,Peterborough Serco Strategic Partnership,PSSP Retained Services,"Tools, Equipment, Furniture & Materials",13/09/2019,30243686,590.36,Revenue,Pitney Bowes Limited,Lease of Equipment
Peterborough City Council,ICT,ICT,Services,13/09/2019,30243719,2933.00,Revenue,Buchanan Computing,Computer Software
Peterborough City Council,Peterborough Highway Services,Transport & Infrastructure Commissioning,Energy Costs,13/09/2019,30243746,1197.10,Revenue,British Gas Business,Electricity
Peterborough City Council,Commissioning and Commercial Operations,Commissioning,Services,13/09/2019,30243802,2160.90,Revenue,Carter Brown The Expert Service Limited,Purchased Social Care Services
Peterborough City Council,Education,HTS & CSC Transport,Contract Hire and Operating Leases,13/09/2019,8000151119,1634.80,Revenue,A2B Euro Cars,Hired Transport
Peterborough City Council,Education,HTS & CSC Transport,Contract Hire and Operating Leases,13/09/2019,8000151120,504.00,Revenue,The Taxi Firm Limited,Hired Transport
Peterborough City Council,Corporate,Corporate,Non Revenue,13/09/2019,8000152200,150000.00,Capital,Medesham Homes LLP,Grant Payment
Peterborough City Council,Corporate,Corporate,Non Revenue,13/09/2019,8000152200,415000.00,Capital,Medesham Homes LLP,Grant Payment
Peterborough City Council,Corporate,Corporate,Non Revenue,13/09/2019,8000152200,800000.00,Capital,Medesham Homes LLP,Grant Payment
Peterborough City Council,Communities,Housing,Services,16/09/2019,30225415,2160.00,Revenue,Redacted Personal Data,Financial Assistance
Peterborough City Council,Adults,Therapy/Reablement/Community Equipment,"Tools, Equipment, Furniture & Materials",16/09/2019,30233839,859.50,Revenue,Royal National Institute of Blind People,Occupational Therapy Equipment
Peterborough City Council,Adults,Independent Sector Placements,Services,16/09/2019,30240825,1905.00,Revenue,Barchester Healthcare (Werrington Lodge),Residential Care
Peterborough City Council,Peterborough Highway Services,Highway & Drainage Control,Agency Staff,16/09/2019,30242289,1848.00,Revenue,Matchtech,External Temporary Staff
Peterborough City Council,Commissioning and Commercial Operations,Access to Resources & Specialist Commissioning,Services,16/09/2019,30242362,1443.85,Revenue,PCH Integration Services Ltd,Boarding Out Fees
Peterborough City Council,Commissioning and Commercial Operations,Access to Resources & Specialist Commissioning,Services,16/09/2019,30242364,1443.85,Revenue,PCH Integration Services Ltd,Boarding Out Fees
Peterborough City Council,Commissioning and Commercial Operations,Access to Resources & Specialist Commissioning,Services,16/09/2019,30242365,2103.42,Revenue,PCH Integration Services Ltd,Boarding Out Fees
Peterborough City Council,Commissioning and Commercial Operations,Access to Resources & Specialist Commissioning,Services,16/09/2019,30242366,1443.85,Revenue,PCH Integration Services Ltd,Boarding Out Fees
Peterborough City Council,Commissioning and Commercial Operations,Access to Resources & Specialist Commissioning,Services,16/09/2019,30242367,1443.85,Revenue,PCH Integration Services Ltd,Boarding Out Fees
Peterborough City Council,Commissioning and Commercial Operations,Access to Resources & Specialist Commissioning,Services,16/09/2019,30242368,2103.42,Revenue,PCH Integration Services Ltd,Boarding Out Fees
Peterborough City Council,Commissioning and Commercial Operations,Access to Resources & Specialist Commissioning,Services,16/09/2019,30242371,1443.85,Revenue,PCH Integration Services Ltd,Boarding Out Fees
Peterborough City Council,Commissioning and Commercial Operations,Access to Resources & Specialist Commissioning,Services,16/09/2019,30242372,1443.85,Revenue,PCH Integration Services Ltd,Boarding Out Fees
Peterborough City Council,Commissioning and Commercial Operations,Access to Resources & Specialist Commissioning,Services,16/09/2019,30242374,1443.85,Revenue,PCH Integration Services Ltd,Boarding Out Fees
Peterborough City Council,Commissioning and Commercial Operations,Access to Resources & Specialist Commissioning,Services,16/09/2019,30242375,1573.27,Revenue,PCH Integration Services Ltd,Boarding Out Fees
Peterborough City Council,Commissioning and Commercial Operations,Access to Resources & Specialist Commissioning,Services,16/09/2019,30242376,1443.85,Revenue,PCH Integration Services Ltd,Boarding Out Fees
Peterborough City Council,Commissioning and Commercial Operations,Access to Resources & Specialist Commissioning,Services,16/09/2019,30242377,1443.85,Revenue,PCH Integration Services Ltd,Boarding Out Fees
Peterborough City Council,Commissioning and Commercial Operations,Access to Resources & Specialist Commissioning,Services,16/09/2019,30242378,1443.85,Revenue,PCH Integration Services Ltd,Boarding Out Fees
Peterborough City Council,Commissioning and Commercial Operations,Access to Resources & Specialist Commissioning,Services,16/09/2019,30242379,1443.85,Revenue,PCH Integration Services Ltd,Boarding Out Fees
Peterborough City Council,Commissioning and Commercial Operations,Access to Resources & Specialist Commissioning,Services,16/09/2019,30242380,2103.42,Revenue,PCH Integration Services Ltd,Boarding Out Fees
Peterborough City Council,Commissioning and Commercial Operations,Access to Resources & Specialist Commissioning,Services,16/09/2019,30242382,1443.85,Revenue,PCH Integration Services Ltd,Boarding Out Fees
Peterborough City Council,Commissioning and Commercial Operations,Access to Resources & Specialist Commissioning,Services,16/09/2019,30242853,2309.56,Revenue,PCH Integration Services Ltd,Boarding Out Fees
Peterborough City Council,Commissioning and Commercial Operations,Access to Resources & Specialist Commissioning,Services,16/09/2019,30243083,1814.57,Revenue,PCH Integration Services Ltd,Boarding Out Fees
Peterborough City Council,Adults,Independent Sector Placements,Services,16/09/2019,30243148,619.92,Revenue,Carers Trust Cambridgeshire,Home Care
Peterborough City Council,Adults,Independent Sector Placements,Services,16/09/2019,30243192,672.84,Revenue,Carers Trust Cambridgeshire,Home Care
Peterborough City Council,Adults,Independent Sector Placements,Services,16/09/2019,30243193,3610.00,Revenue,Carers Trust Cambridgeshire,Home Care
Peterborough City Council,Adults,Independent Sector Placements,Services,16/09/2019,30243194,601.02,Revenue,Carers Trust Cambridgeshire,Home Care
Peterborough City Council,Adults,Independent Sector Placements,Services,16/09/2019,30243196,544.32,Revenue,Carers Trust Cambridgeshire,Home Care
Peterborough City Council,Communities,Parking Services,Services,16/09/2019,30243231,4070.36,Revenue,Flowbird Smart City UK Limited,Hired Services
Peterborough City Council,Financial Services,Finance,Agency Staff,16/09/2019,30243250,2976.15,Revenue,Allen Lane,External Temporary Staff
